Workbook

Sheet Cover
B6: Performance Assessment System PAS Project
C17: SANIPLAN
C20: A City Sanitation Planning Model
C32: Better information for better urban water and sanitation
C39: CEPT University, Ahmedabad
C46: SANIPLAN has been developed by PAS Project at CEPT University. Initial inputs were provided by CRISIL Infrastructure Advisory.

Sheet Introduction
C2: PERFORMANCE ASSESSMENT SYSTEM PROJECT
C4: SANIPLAN - A City Sanitation Planning Model
D7: PERFORMANCE IMPROVEMENT PLAN (PIP)
C8: Performance Improvement component of the PAS Project provides tools and approaches to improve delivery of city-level services for water supply, wastewater and solid waste management. Unlike typical infrastructure investment plans, Performance Improvement Plans are service oriented as they focus on improvement in service delivery. Performance improvement starts with measurement of current performance, followed by identification of potential improvement areas and development of consequent improvement actions to improve service delivery.
D10: MODEL FOR PREPARATION OF CITY SANITATION IMPROVEMENT PLAN
C11: SANIPLAN facilitates decision makers to assess implications of the proposed set of improvement actions and to arrive at a financially viable plan for improvements in delivery of local services for urban water supply, sanitation and solid waste management. It captures the cumulative impact due to a series of actions in the three sub-sectors and helps a review of their financial implications. The model also helps to compare improvement solutions across different options. This makes it easy for users to consider various choices in technology, phasing and financing, and to assess their impact on service levels and municipal finances. The model encourages the service providers to optimise utilisation of existing assets and choose appropriate low-cost actions. The Model makes it easy for users to assess various options by quantifying the impact of each option on service delivery, revenues and costs and financing requirements. Several customised reports on service levels and financial impacts provided in the model help users to compare performance, costs and implications on municipal finance. The model also provides a multi-year activity plan and a financing plan for both capital and operation and maintenance (O&M) expenditure requirements. Such detailed analysis for different options provides a basis for an informed debate at stakeholders’ consultation. Thus, use of SANIPLAN can caution decision makers against making sub-optimal choices which are financially unsustainable and/or do not improve service delivery. The improvement plans prepared using this approach are rooted in service level improvements, rather than focus on new infrastructure.
D13: PREPARATION OF A CITY SANITATION IMPROVEMENT PLAN
D36: A) PERFORMANCE ASSESSMENT
D37: Service performance is assessed using a set of key indicators across five themes: coverage, equity, service levels, efficiency and financial sustainability. These include all the indicators from the Ministry of Urban Development's Service Level Benchmarking (SLB) Initiative. A few additional indicators address issues of equity and help capture more decentralised wastewater management options. This helps to review improvement priorities and plan for short and medium term improvements. Using the PAS data base to identify peer performance, users can compare and prioritise areas that require attention for service performance improvement. This assessment is supported in SANIPLAN through ‘traffic light analysis’ for all indicators. Cities can also track their performance over time to identify priorities. Such analysis provides a more informed basis for stakeholder consultations to identify areas of focus and priority. The key outcome of this stage is a vision for service delivery at urban local body (ULB) level and identification of targets for key performance areas.
D38: B) ACTION PLANNING
D39: Development of a performance improvement plan requires identification of a set of actions to achieve desired service levels. Conventional infrastructure planning process looks at such investments as 'stand alone projects' rather than an integrated service improvement plan. Under the PIP approach, all inter-related implications of actions in one area are taken into account in the integrated software. For example, an increase in quantity of water supplied is assessed by its impact on increase in per capita supply (lpcd), increase in wastewater to be collected and treated and related capacity implications of wastewater treatment. Similarly, impact of increased number of connections is considered on aspects such as coverage, operating costs, per capita supply and municipal and water supply finances. Under this approach and in SANIPLAN, actions are not limited to traditional investments in new assets, but also include measures related to policy changes, process reengineering and refurbishment of existing assets. These are often referred to as 'no-cost – low-cost measures' which can have significant influence on service levels. Even for traditional investments, SANIPLAN enables an easy assessment of technology and management options. Thus, this component of the PIP process involves selection of various improvement actions and assessing their impact on overall service performance. Through this iterative process, a combination of actions with the desired impact on service levels and which is broadly affordable for the city can be shortlisted. SANIPLAN enables users to design each action in detail in relation to its phasing, costs, revenue generation potential and other design decisions. The Model has already identified a large set of actions with guidance on their calibration. In addition, it also allows additional customised actions to be designed by users. The output of this stage is several plan options and their impacts on service performance.
D40: C) FINANCIAL PLANNING
D41: For identifying a financially sustainable improvement plan, it is important to assess the financial strength of service provider to sustain their existing operational expenditure and make new investments. This also includes wider municipal finance assessment. Financial viability is assessed in relation to the possibility of meeting capital expenditure through internal surplus, grants or external borrowing by the ULB. The assessment includes water and sanitation related revenues and expenditure as well as overall revenue and expenditures. SANIPLAN links improvement actions across water and sanitation and helps simulate impact on service levels and on municipal finance (revenue, expenditure and surplus) over a ten year period to assess financial sustainability. Using SANIPLAN, several improvement options can be simulated and analysed in terms of their financial (capital and O&M expenditure and additional revenue) implications. The financing plan for each citywide option is arrived at by assessing different sources for selected actions such as: likely availability of grants, internal resources to fund capital improvements from surplus and external borrowing and potential for private and household contributions. The Model also assesses possibility of sustainable external borrowing for capital investments. To assess the possibility of internal sources, financial assessment is done within a municipal finance framework where surplus on both urban water supply and sanitation (UWSS) and non-UWSS accounts is estimated after meeting the estimated resource requirements of other non-UWSS activities. Based on this overall assessment, the Model also enables users to iteratively assess tariff revisions needed in taxes and user charges to ensure financial sustainability. This provides important analysis and assessment for more informed decisions through stakeholder consultations.
D42: D) IMPROVEMENT OPTIONS FOR PIP
D43: A number of different options can be simulated in the PIP Model through an iterative process. The options are developed to achieve the locally set sectoral vision and related targets for key performance indicators. Each improvement option comprises a discrete set of actions to achieve either different levels of improvement in service performance, or use different feasible technologies to achieve similar performance levels. The options may also be developed to either capture varying phasing of actions and a different timeline on service improvements, or for varying financing arrangements. For example, for the same technology, options may also capture fully grant-based financing versus use of creative financing with contributions from private sector and households/communities. When it is not possible for the service providers to secure grants for large capital expenditure, it enables an easy assessment of measures for increasing efficiency, cost reductions in service delivery, raising revenue sources and implementing low-cost solutions that bring in significant improvements in service levels. Options are assessed against sectoral achievements and financial feasibility.
D46: USING SANIPLAN FOR PREPARATION OF A CITY SANITATION IMPROVEMENT PLAN
D47: Click on coloured boxes for navigating to respective worksheets
D50: Step 1 | F50: Base data of demography, water supply, wastewater and solid waste services for present year
D52: Step 2 | F52: Last five years' municipal budget information and demand collection balance statements
D54: Step 3 | F54: Analysis of present performance levels leading to identification of sectoral goals and improvement priorities
D58: Step 4.1 | F58: Planning of improvement actions for water supply services
D60: Step 4.2 | F60: Planning of improvement actions for wastewater services
D62: Step 4.3 | F62: Planning of improvement actions for solid waste services
D64: Step 5 | F64: Impact of improvement actions on performance levels across plan period
D68: Step 6 | F68: Review of financial implications from Action plan
D70: Step 7 | F70: Forecasting of municipal finances based on past trends
D72: Step 8 | F72: Preparation of feasible capital and operating plan for ULB
D76: Step 9 | F76: Comparison of various CSP options based on key parameters
F80: Detailed guidelines for calibrating improvement actions

Sheet General info
C2: PERFORMANCE ASSESSMENT SYSTEM PROJECT
C4: SANIPLAN - A City Sanitation Planning Model
C6: GENERAL INFORMATION
B9: Instructions for using the model: | D9: INPUT | E9: All blue coloured cells in model are INPUT cells
D11: OUTPUT | E11: All grey coloured cells in model are system generated OUTPUT cells
E13: This switch is placed at the top of each sheet to reset by DELETING all input cells for fresh start.
E15: This switch is placed at the top of each page to activate PRINTING for pre-defined page settings.
C18: Calibration of Plan period in model
C20: Base year of the model | E20: 2014
C21: Start year of model | E21: =IF(E20<>0,E20+1,"") -> 2015
C22: End year of model | E22: =IFERROR(E21+9,"") -> 2024
C24: Date of initiation of CSP process in ULB | E24: WAI
C25: Date of completion of CSP process in ULB
C28: Details of urban local body (ULB)
C30: Name of ULB | E30: WAI
C31: Address
C32: District | E32: Satara
C33: State | E33: Maharashtra
C34: Class of ULB | E34: Class C
C35: Mayor/President of ULB
C36: Commissioner/Chief Officer of ULB | E36: Ms Asha Raut
C37: Telephone No.
C38: Fax No.
C39: Email ID
C40: Website
C43: Details of ULB officials involved in CSP process
C45: Details of key contact persons | E45: Name | F45: Designation | G45: Phone No. | H45: E-Mail
C46: General Administration
C47: Water Supply
C48: Wastewater
C49: Solid waste
C50: Urban community development (UCD)
C51: Accounts
C52: Tax department
C55: Details of PAS Project team members/other consultants involved with ULB for CSP preparation
C57: Name | E57: Organisation | F57: Designation | G57: Phone No. | H57: E-Mail
C58: Paresh
C59: Upasana

Sheet WSS info
C2: PERFORMANCE ASSESSMENT SYSTEM PROJECT
C4: =IFERROR(CONCATENATE("SANITATION IMPROVEMENT PLAN FOR ", UPPER('General info'!E30), " CITY, ", 'General info'!E21, - 'General info'!E22),"PERFORMANCE IMPROVEMENT PLAN") -> SANITATION IMPROVEMENT PLAN FOR WAI CITY, 2015-2024
C6: MODULE I: PERFORMANCE ASSESSMENT
C8: WATER SUPPLY AND SANITATION INFORMATION
A9: Click | D9: Demography | E9: Water Supply | F9: Wastewater | G9: Solid Waste
B10: Instructions for using this sheet: | D10: Information related to water supply, wastewater and solid waste services is to be filled here for Base year. For each sector, details are to be captured across full value chain. A list of information required is provided below:
D11: WATER SUPPLY: Water production, treatment, distribution, connections and taxes/charges
D12: WASTEWATER: Details of sewered and non-sewered areas, toilet facilities, wastewater treatment, disposal, taxes/charges
D13: SOLID WASTE: Solid waste generation, collection, transportation, disposal & treatment and taxes/charges
B15: I | C15: Demography information
B16: A | C16: Population details
C17: Sr. No. | D17: Particulars | F17: Census 2001 | G17: Census 2011
C18: 1 | D18: Total population | F18: 31110 | G18: 36053
C19: 2 | D19: Slum population | F19: 1866.6 | G19: 2140
C20: 3 | D20: Total number of households | F20: 6538 | G20: 7580
C21: 4 | D21: Total number of slum households | F21: 298.3071028 | G21: 342
B23: B | C23: Population growth rate assumptions
C24: Sr. No. | D24: Particulars | F24: Unit | G24: Value
C25: 1 | D25: Decadal population growth rate: 2001 - 2011 | F25: Based on actual growth rate for 2001 and 2011 | G25: =IFERROR((G18-F18)/F18,"") -> 0.1588878174
C26: 2 | D26: Decadal population growth rate: 2011 - 2021 | F26: Estimated growth rate | G26: 0.159
B28: C | C28: Number of properties
C29: Sr. No. | D29: Particulars | F29: Residential properties | G29: Non-residential properties
C30: 1 | D30: Total number of properties in city at present NOTE: Count all the properties irrespective of whether they are assessed for property tax or not | F30: 7948 | G30: 1709
C31: 2 | D31: Annual growth rate for increase in properties | F31: 0.02 | G31: 0.0298
C32: 3 | D32: Total number of properties assessed for taxation NOTE: Count only those properties that are assessed in present year | F32: 7948 | G32: 1709
B34: D | C34: City Area and wards
C35: Sr. No. | D35: Particulars | F35: Unit | G35: Value
C36: 1 | D36: Jurisdictional area of city | F36: Sq. km | G36: 3.6
C37: 2 | D37: Inhabitated area of city | F37: Sq. km | G37: 1.35
C38: 3 | D38: Number of municipal wards | F38: Numbers | G38: 19
C39: 4 | D39: Number of slum settlements in city | F39: Numbers
B42: II | C42: Water supply sector information
B43: A | C43: Water production
B44: i) | C44: Source of water
C45: Sr. No. | D45: Particulars | F45: Allocation in MLD | G45: Actual Drawl in MLD
C46: 1 | D46: Surface water - Own Source | G46: 4.8
C47: 2 | D47: Bulk buying of raw water
C48: 3 | D48: Bulk buying of treated water | G48: 0.03
C49: 4 | D49: Ground water source | G49: 1
D50: Total | F50: =SUM(F46:F49) -> 0 | G50: =SUM(G46:G49) -> 5.83
C51: 5 | D51: Water from non-ULB sources
B53: ii) | C53: Raw water transmission
C54: Sr. No. | D54: Particulars | F54: Unit | G54: Value
C55: 1 | D55: Length of transmission network | F55: Km | G55: 3.4
C56: 2 | D56: Estimated raw water transmission losses | F56: % | G56: 0.05
B58: B | C58: Water treatment
B59: i) | C59: Water treatment plant (WTP)
C60: Sr. No. | D60: Particulars | F60: Unit | G60: Value
C61: 1 | D61: Total installed capacity of all WTPs | F61: MLD | G61: 5.7
C62: 2 | D62: Total functional capacity of all WTPs | F62: MLD | G62: 4.56
C63: 3 | D63: Estimated losses at WTPs | F63: % | G63: 0.02
B65: ii) | C65: Quantity of treated water supply
C66: Sr. No. | D66: Particulars | F66: Treated supply in MLD | G66: Untreated supply in MLD
C67: 1 | D67: Ground water treated | F67: 1 | G67: =MAX(G49-F67,0) -> 0
C68: 2 | D68: Surface water routed through water treatment plants | F68: ='WS calcu'!$E$14 -> 4.56 | G68: =MAX((($G$46+$G$47)*(1-$G$56))-F68,0) -> 0
C69: 3 | D69: Bulk buy of treated water | F69: =G48*(1-$G$56) -> 0.0285 | G69: 0
C70: 4 | D70: Total treated water supplied | F70: =F68*(1-G63)+F67+F69 -> 5.4973 | G70: =G68+G67 -> 0
C71: 5 | D71: Actual water production (treated and untreated) | F71: =F70+G70 -> 5.4973
B73: iii) | C73: Treated water transmission
C74: Sr. No. | D74: Particulars | F74: Unit | G74: Value
C75: 1 | D75: Length of treated water transmission network | F75: Km | G75: 2.75
C76: 2 | D76: Estimated losses in treated water transmission | F76: % | G76: 0.02
B78: C | C78: Water supply distribution
B79: i) | C79: Water storage
C80: Sr. No. | D80: Particulars | F80: Unit | G80: Value
C81: 1 | D81: Total water storage capacity (Aggregate capacity of all elevated service reservoir - ESRs) | F81: ML | G81: 1.81
B83: ii) | C83: Water supply distribution network
C84: Sr. No. | D84: Particulars | F84: Unit | G84: Value
C85: 1 | D85: Total length of distribution network | F85: Km | G85: 45
C86: 2 | D86: Area covered by distribution network | F86: Sq. km | G86: 3
C87: 3 | D87: Slum settlements covered with water supply distribution network | F87: Numbers
B89: iii) | C89: Water supply connections
C90: Sr. No. | D90: Particulars | F90: Number of connections | G90: Number of households served
C91: 1 | D91: Domestic non-slum connections
C92: 1.1 | D92: 0.50 inch | F92: 5918 | G92: 8066
C93: 1.2 | D93: 0.75 inch
C94: 1.3 | D94: 1.00 inch
C95: 1.4 | D95: > 1.00 inch
C96: 2 | D96: Domestic slum connections
C97: 2.1 | D97: 0.50 inch | F97: 12 | G97: 12
C98: 2.2 | D98: 0.75 inch
C99: 2.3 | D99: 1.00 inch
C100: 2.4 | D100: > 1.00 inch
C101: 3 | D101: Commercial/institutional connections
C102: 3.1 | D102: 0.50 inch | F102: 125
C103: 3.2 | D103: 0.75 inch
C104: 3.3 | D104: 1.00 inch
C105: 3.4 | D105: > 1.00 inch
C106: 4 | D106: Others
C107: 4.1 | D107: 0.50 inch
C108: 4.2 | D108: 0.75 inch
C109: 4.3 | D109: 1.00 inch
C110: 4.4 | D110: > 1.00 inch
C111: 5 | D111: Miscellaneous connections
C112: 5.1 | D112: Group connection in slums | F112: 1
C113: 5.3 | D113: Free connections
C114: 5.2 | D114: Public stand posts/taps | F114: 40 | G114: 251
D115: Total | F115: =SUM(F92:F114) -> 6096 | G115: =SUM(G92:G114) -> 8329
B117: iv) | C117: Metering of water supply connections
C118: Sr. No. | D118: Particulars | F118: Metered connections | G118: Functional metered connections
C119: 1 | D119: Domestic non-slum connections
C120: 1.1 | D120: 0.50 inch
C121: 1.2 | D121: 0.75 inch
C122: 1.3 | D122: 1.00 inch
C123: 1.4 | D123: > 1.00 inch
C124: 2 | D124: Domestic slum connections
C125: 2.1 | D125: 0.50 inch
C126: 2.2 | D126: 0.75 inch
C127: 2.3 | D127: 1.00 inch
C128: 2.4 | D128: > 1.00 inch
C129: 3 | D129: Commercial/institutional connections
C130: 3.1 | D130: 0.50 inch
C131: 3.2 | D131: 0.75 inch
C132: 3.3 | D132: 1.00 inch
C133: 3.4 | D133: > 1.00 inch
C134: 4 | D134: Others
C135: 4.1 | D135: 0.50 inch
C136: 4.2 | D136: 0.75 inch
C137: 4.3 | D137: 1.00 inch
C138: 4.4 | D138: > 1.00 inch
C139: 5 | D139: Miscellaneous connections
C140: 5.1 | D140: Group connection in slums
C141: 5.2 | D141: Free connections
D142: Total | F142: =SUM(F120:F141) -> 0 | G142: =SUM(G120:G141) -> 0
B144: v) | C144: Water supply distribution losses
C145: Sr. No. | D145: Particulars | F145: Unit | G145: Value
C146: 1 | D146: Estimated losses in water supply distribution | F146: % | G146: 0.15
C147: 2 | D147: Estimate of households connected with unauthorised connections in city | F147: %
C148: 3 | D148: Estimate of households connected with unauthorised connections in slums | F148: %
B150: vi) | C150: Continuity of water supply
C151: Sr. No. | D151: Particulars | F151: Unit | G151: Value
C152: 1 | D152: Average daily hours of water supply NOTE : Count only those days that receive water supply | F152: Hours/days | G152: 1.5
C153: 2 | D153: Average days of water supply in a month | F153: Days/month | G153: 28
B155: vii) | C155: Quality of water supplied
C156: Sr. No. | D156: Particulars | F156: Unit | G156: Value
C157: 1 | D157: Number of water supply samples taken from city | F157: Samples/month | G157: 60
C158: 2 | D158: Total number of samples meeting quality parameters | F158: Samples/month | G158: 60
B160: viii) | C160: Consumer grievance redressal
C161: Sr. No. | D161: Particulars | F161: Unit | G161: Value
C162: 1 | D162: Number of water supply related complaints received | F162: Number/month | G162: 21
C163: 2 | D163: Number of complaints resolved within 24 hours | F163: Number/month | G163: 20
B165: D | C165: Water supply related taxes and charges
B166: i) | C166: Current tariff regime (Mention 'Yes' against regime followed in your city)
C167: Sr. No. | D167: Particulars | F167: Unit | G167: Select 'Yes' for the regimes followed in your city
C168: 1 | D168: Water tax linked to general property tax | F168: Yes/ No | G168: No
C169: 2 | D169: Flat user charges | F169: Yes/ No | G169: Yes
C170: 3 | D170: Volumetric user charges | F170: Yes/ No | G170: No
C171: 4 | D171: Water benefit tax | F171: Yes/ No | G171: No
B173: ii) | C173: Water tax linked to general property tax
C174: Sr. No. | D174: Particulars | F174: Unit | G174: Value
C175: 1 | D175: Water tax levied as a percentage of property tax | F175: %
B177: iii) | C177: Flat user charges
C178: Sr. No. | D178: Particulars | F178: New connection charges | G178: Annual tariff - Rs./connection/annum
C179: 1 | D179: Domestic non-slum connections
C180: 1.1 | D180: 0.50 inch | F180: 2100 | G180: 1500
C181: 1.2 | D181: 0.75 inch
C182: 1.3 | D182: 1.00 inch
C183: 1.4 | D183: > 1.00 inch
C184: 2 | D184: Domestic slum connections
C185: 2.1 | D185: 0.50 inch | F185: 2100 | G185: 1500
C186: 2.2 | D186: 0.75 inch
C187: 2.3 | D187: 1.00 inch
C188: 2.4 | D188: > 1.00 inch
C189: 3 | D189: Commercial/institutional connections
C190: 3.1 | D190: 0.50 inch | F190: 6500 | G190: 6000
C191: 3.2 | D191: 0.75 inch
C192: 3.3 | D192: 1.00 inch
C193: 3.4 | D193: > 1.00 inch
C194: 4 | D194: Others
C195: 4.1 | D195: 0.50 inch
C196: 4.2 | D196: 0.75 inch
C197: 4.3 | D197: 1.00 inch
C198: 4.4 | D198: > 1.00 inch
C199: 5 | D199: Miscellaneous connections
C200: 5.1 | D200: Group connections in slums
C201: 5.3 | D201: Free connections
C202: 5.2 | D202: Public stand posts/taps
B204: iv) | C204: Volumetric user charges
C205: Sr. No. | D205: Particulars | F205: Unit | G205: Value
C206: 1 | D206: Domestic non-slum connections | F206: Rs. Per KL
C207: 2 | D207: Domestic slum connections | F207: Rs. Per KL
C208: 3 | D208: Commercial/institutional connections | F208: Rs. Per KL
C209: 4 | D209: Others | F209: Rs. Per KL
C210: 5 | D210: Group connections | F210: Rs. Per KL
B212: v) | C212: Water benefit tax
C213: Sr. No. | D213: Particulars | F213: Unit | G213: Value
C214: 1 | D214: Average water benefit tax levied per connection | F214: Rs./connection/annum
B217: III | C217: Wastewater sector information
C219: Select mode of wastewater disposal system in your city | F219: 3. City fully covered with onsite sanitation system
C220: Options: | D220: 1. City fully covered with sewerage network; 2. City partially covered with sewerage network; 3. City fully covered with on-site sanitation system
B223: A | C223: Details of sewered areas in city
B224: i) | C224: Details of sewage and sewerage network in city
C225: Sr. No. | D225: Particulars | F225: Unit | G225: Value
C226: 1 | D226: Total quantity of sewage generated | F226: MLD | G226: =(($F$71*(1-$G$76)*(1-$G$146))+$F$51)*80% -> 3.66340072
C227: 2 | D227: Length of sewerage network | F227: Km
C228: 3 | D228: Area covered by sewerage network | F228: Sq. km
C229: 4 | D229: Slum settlements covered with sewerage network | F229: Numbers
C230: 5 | D230: Estimated losses in sewerage network | F230: %
B232: ii) | C232: Sewerage connections
C233: Sr. No. | D233: Particulars | E233: Number of sewerage connections | F233: Number of households connected to sewerage | G233: Number of sewerage connected households with individual toilets
... 177 more rows

Sheet Finance info
C2: PERFORMANCE ASSESSMENT SYSTEM PROJECT
C4: =IFERROR(CONCATENATE("SANITATION IMPROVEMENT PLAN FOR ", UPPER('General info'!E30), " CITY, ", 'General info'!E21, - 'General info'!E22),"PERFORMANCE IMPROVEMENT PLAN") -> SANITATION IMPROVEMENT PLAN FOR WAI CITY, 2015-2024
C6: MODULE I: PERFORMANCE ASSESSMENT
C8: MUNICIPAL FINANCE INFORMATION
A9: Click | B9: Municipal Finance | D9: Water supply | E9: Wastewater | G9: Solid waste | I9: Property tax | J9: All figures in Rs. Lakhs
B10: Instructions for using this sheet: | D10: Municipal finance information related to overall municipal account and separately for water supply, wastewater and solid waste services are to be filled here. To arrive at best trend estimates for municipal finance projections, past five years' budget figures are compiled for reference. For most of the cities, first four years' 'Actual' figures shall be available definitely. Last year's 'Actual' figures might not be available, hence provide 'Revised' estimates. Additionally, current year's financial figures shall be required to calibrate the Model. A table is provided below for specifying status of municipal budgets for each year. Following are the Main Heads of Budget Items for which information has to be furnished: A. Revenue Account - Breakup of Revenue income and expenditure B. Capital Account - Breakup of Capital income and expenditure C. Extraordinary Account - Extraordinary income and expenditure There may be cases of municipal budgets, principally not being aligned with the above three account type structure for budget item heads. Hence, it is imperative to first classify them properly for any analysis. It is suggested to re-classify the budget item heads as per their functions and then furnish recasted figures for this Model. Accounting guidelines like National Municipal Accounts Manual (NMAM) can be refered for the same. Demand and Collection statement for consolidated property tax and separately for each of the three sectors has to be filled in. All ULBs shall have Demand Collection Balance (DCB) statements prepared every year by Tax Department for assessment and collection of taxes (which can be referred to fill this section).
C12: Inflation assumptions
C13: Sr. No. | D13: Particulars | E13: Unit | F13: Value | G13: NOTE : Estimate inflation rate based on average trend of last five years. Please refer to statistics published by Government of India (GoI) for the same. These Inflation rates shall be applied to all financial projections, thereforearrive at best possible estimates.
C14: 1 | D14: Inflation for capital expenditure items | E14: % per annum | F14: 0.07
C15: 2 | D15: Inflation for O&M cost items | E15: % per annum | F15: 0.05
C16: 3 | D16: Inflation for revenue generated | E16: % per annum | F16: 0.03
B19: I | C19: Municipal revenue and expenditure
C20: Status of municipal budget figures
C21: Particulars | E21: =IFERROR(F21-1,"") -> 2009 | F21: =IFERROR(G21-1,"") -> 2010 | G21: =IFERROR(H21-1,"") -> 2011 | H21: =IFERROR(I21-1,"") -> 2012 | I21: =IFERROR(J21-1,"") -> 2013 | J21: =IF('General info'!$E$20=0,"",'General info'!$E$20) -> 2014
C22: Select type of budget figures provided for each year | E22: Actual figure | F22: Actual figure | G22: Actual figure | H22: Actual figure | I22: Revised estimate | J22: Budget estimate
C23: Abbreviation for budget type | E23: =IF(E$22="Actual figure"," (A)",IF(E$22="Revised estimate"," (RE)"," (B)")) -> (A) | F23: (A) | G23: (A) | H23: (A) | I23: (RE) | J23: (B)
B25: A | C25: Revenue account
B26: i) | C26: Revenue receipts
C27: Sr. No. | D27: Particulars | E27: =CONCATENATE(E$21," ",E$23) -> 2009 (A) | F27: 2010 (A) | G27: 2011 (A) | H27: 2012 (A) | I27: 2013 (RE) | J27: 2014 (B)
D28: Opening balance | E28: 295.2397 | F28: 315.22092 | G28: 300.15591 | H28: 473.27787 | I28: 743.5 | J28: 858.04
C29: 1 | D29: Municipal taxes and cess 1.1. Consolidated property tax | E29: 89.55987 | F29: 85.79254 | G29: 86.87656 | H29: 142.1378 | I29: 200.7 | J29: 250.08
D30: 1.2. Others | E30: 57.8593 | F30: 71.68442 | G30: 63.70093 | H30: 95.81537 | I30: 172.43 | J30: 179.64
C31: 2 | D31: Special charges | E31: 0.86754 | F31: 0.89545 | G31: 0.9099 | H31: 2.19116 | I31: 1.91 | J31: 2.83
C32: 3 | D32: Service charges | E32: 0 | F32: 0.002 | G32: 0.014 | H32: 0.112 | I32: 0.35 | J32: 0.58
C33: =C32+1 -> 4 | D33: Grants and contributions | E33: 400.55834 | F33: 545.699275 | G33: 563.738225 | H33: 681.8686 | I33: 893.22685 | J33: 837.757
C34: =C33+1 -> 5 | D34: Others | E34: 44.42907 | F34: 55.91695 | G34: 92.24066 | H34: 79.871 | I34: 120.35 | J34: 133.055
D35: Total | E35: =SUM(E29:E34) -> 593.27412 | F35: 759.990635 | G35: 807.480275 | H35: 1001.99593 | I35: 1388.96685 | J35: 1403.942
B37: ii) | C37: Revenue expenditure
C38: Sr. No. | D38: Particulars | E38: =E$27 -> 2009 (A) | F38: 2010 (A) | G38: 2011 (A) | H38: 2012 (A) | I38: 2013 (RE) | J38: 2014 (B)
C39: 1 | D39: General administration department | E39: 122.0335 | F39: 191.59434 | G39: 163.82003 | H39: 196.26444 | I39: 185.40233 | J39: 283.69808
C40: 2 | D40: Social security | E40: 30.08259 | F40: 36.33439 | G40: 39.37022 | H40: 46.49397 | I40: 70.5364 | J40: 91.1012
C41: 3 | D41: Public health and welfare | E41: 258.6444 | F41: 363.64212 | G41: 340.19139 | H41: 428.61191 | I41: 532.74988 | J41: 598.32321
C42: 4 | D42: Education | E42: 4.08329 | F42: 9.47424 | G42: 19.4849 | H42: 19.42 | I42: 4.23319 | J42: 9.65424
C43: 5 | D43: Contributions | E43: 0.84908 | F43: 1.34882 | G43: 0.92166 | H43: 69.3521 | I43: 3.25 | J43: 10.106
C44: 6 | D44: Other departments | E44: 130.82683 | F44: 199.73577 | G44: 160.92203 | H44: 158.18804 | I44: 373.1696 | J44: 327.8216
D45: Total | E45: =SUM(E39:E44) -> 546.51969 | F45: 802.12968 | G45: 724.71023 | H45: 918.33046 | I45: 1169.3414 | J45: 1320.70433
B47: B | C47: Capital account
B48: i) | C48: Capital receipts
C49: Sr. No. | D49: Particulars | E49: =E$27 -> 2009 (A) | F49: 2010 (A) | G49: 2011 (A) | H49: 2012 (A) | I49: 2013 (RE) | J49: 2014 (B)
C50: 1 | D50: State scheme grants | E50: 339.58455 | F50: 175.683375 | G50: 477.789275 | H50: 128.93709 | I50: 910.6 | J50: 628.2
C51: 2 | D51: Central scheme grants | E51: 99.455 | F51: 0 | G51: 166.2315 | H51: 0 | I51: 32 | J51: 35
C52: 3 | D52: External funds | E52: 24.5 | F52: 20.85 | G52: 0 | H52: 0 | I52: 20 | J52: 25
C53: 4 | D53: Others | E53: 0 | F53: 0 | G53: 0 | H53: 0 | I53: 0 | J53: 0
D54: Total | E54: =SUM(E50:E53) -> 463.53955 | F54: 196.533375 | G54: 644.020775 | H54: 128.93709 | I54: 962.6 | J54: 688.2
B56: ii) | C56: Capital expenditure
C57: Sr. No. | D57: Particulars | E57: =E$27 -> 2009 (A) | F57: 2010 (A) | G57: 2011 (A) | H57: 2012 (A) | I57: 2013 (RE) | J57: 2014 (B)
C58: 1 | D58: Capital work in progress | E58: 341.09778 | F58: 160.90088 | G58: 932.5652 | H58: 185.11113 | I58: 892 | J58: 422
C59: 2 | D59: Principal repayments of external funds/ borrowing | E59: 18.91441 | F59: 20.35294 | G59: 21.70046 | H59: 21.07436 | I59: 35 | J59: 37
C60: 3 | D60: Others | E60: 4.97812 | F60: 7.02691 | G60: 4.35873 | H60: 8.81547 | I60: 12.1 | J60: 12.2
D61: Total | E61: =SUM(E58:E60) -> 364.99031 | F61: 188.28073 | G61: 958.62439 | H61: 215.00096 | I61: 939.1 | J61: 471.2
B63: C | C63: Extraordinary account
C64: Sr. No. | D64: Particulars | E64: =E$27 -> 2009 (A) | F64: 2010 (A) | G64: 2011 (A) | H64: 2012 (A) | I64: 2013 (RE) | J64: 2014 (B)
C65: 1 | D65: Extraordinary receipts | E65: 152.76596 | F65: 506.39527 | G65: 137.2241 | H65: 258.47985 | I65: 297.18 | J65: 168.475
C66: 2 | D66: Extraordinary expenditure | E66: 154.43871 | F66: 274.97481 | G66: 192.23752 | H66: 312.99047 | I66: 597.84 | J66: 500.59
B68: D | C68: Final statement
C69: Sr. No. | D69: Particulars | E69: =E$27 -> 2009 (A) | F69: 2010 (A) | G69: 2011 (A) | H69: 2012 (A) | I69: 2013 (RE) | J69: 2014 (B)
C70: 1 | D70: Opening Balance | E70: =E28 -> 295.2397 | F70: 315.22092 | G70: 300.15591 | H70: 473.27787 | I70: 743.5 | J70: 858.04
C71: 2 | D71: Total income | E71: =E35+E54+E65 -> 1209.57963 | F71: 1462.91928 | G71: 1588.72515 | H71: 1389.41287 | I71: 2648.74685 | J71: 2260.617
C72: 3 | D72: Total expenditure | E72: =E45+E61+E66 -> 1065.94871 | F72: 1265.38522 | G72: 1875.57214 | H72: 1446.32189 | I72: 2706.2814 | J72: 2292.49433
C73: 4 | D73: Closing balance | E73: =E70+E71-E72 -> 438.87062 | F73: 512.75498 | G73: 13.30892 | H73: 416.36885 | I73: 685.96545 | J73: 826.16267
B76: II | C76: Water supply revenue and expenditure
B77: A | C77: Water supply revenue account
B78: i) | C78: Water supply revenue receipts
C79: Sr. No. | D79: Particulars | E79: =E$27 -> 2009 (A) | F79: 2010 (A) | G79: 2011 (A) | H79: 2012 (A) | I79: 2013 (RE) | J79: 2014 (B)
C80: 1 | D80: Water tax | E80: 51.49242 | F80: 62.99007 | G80: 53.24534 | H80: 81.71282 | I80: 150 | J80: 155
C81: 2 | D81: Water benefit tax | E81: 0 | F81: 0 | G81: 0 | H81: 0 | I81: 0 | J81: 0
C82: 3 | D82: Water charges | E82: 0.7062 | F82: 0.71525 | G82: 0.7592 | H82: 0.5683 | I82: 1 | J82: 1.8
C83: 4 | D83: Grants | E83: 0 | F83: 0 | G83: 0 | H83: 0 | I83: 0 | J83: 0
C84: 5 | D84: Miscellaneous | E84: 0.024 | F84: 0.08 | G84: 0.007 | H84: 0.085 | I84: 0.21 | J84: 0.42
D85: Total | E85: =SUM(E80:E84) -> 52.22262 | F85: 63.78532 | G85: 54.01154 | H85: 82.36612 | I85: 151.21 | J85: 157.22
B87: ii) | C87: Water supply revenue expenditure
C88: Sr. No. | D88: Particulars | E88: =E$27 -> 2009 (A) | F88: 2010 (A) | G88: 2011 (A) | H88: 2012 (A) | I88: 2013 (RE) | J88: 2014 (B)
C89: 1 | D89: Administrative and establishment expenses | E89: 26.98492 | F89: 39.34892 | G89: 38.97406 | H89: 52.82855 | I89: 49.2749 | J89: 57.3708
C90: 2 | D90: Bulk water | E90: 14.64504 | F90: 16.71359 | G90: 12.14348 | H90: 9.56061 | I90: 10 | J90: 12
C91: 3 | D91: Energy expenses | E91: 0 | F91: 0 | G91: 0 | H91: 30.288 | I91: 20 | J91: 21
C92: 4 | D92: Other O&M expenses | E92: 1.03822 | F92: 9.04752 | G92: 0.21987 | H92: 3.20589 | I92: 14.8 | J92: 17
C93: 5 | D93: Miscellaneous expenses | E93: 0 | F93: 0 | G93: 0 | H93: 0 | I93: 0 | J93: 0
C94: 6 | D94: Interest payment | E94: 23.55257 | F94: 25.47054 | G94: 33.71488 | H94: 0.85527 | I94: 18.75 | J94: 17.35
D95: Total | E95: =SUM(E89:E94) -> 66.22075 | F95: 90.58057 | G95: 85.05229 | H95: 96.73832 | I95: 112.8249 | J95: 124.7208
B97: B | C97: Water supply capital account
B98: i) | C98: Water supply capital receipts
C99: Sr. No. | D99: Particulars | E99: =E$27 -> 2009 (A) | F99: 2010 (A) | G99: 2011 (A) | H99: 2012 (A) | I99: 2013 (RE) | J99: 2014 (B)
C100: 1 | D100: State scheme grants | E100: 0 | F100: 0 | G100: 0 | H100: 0 | I100: 36 | J100: 38
C101: 2 | D101: Central scheme grants | E101: 0 | F101: 0 | G101: 0 | H101: 0 | I101: 0 | J101: 0
C102: 3 | D102: External funds | E102: 0 | F102: 0 | G102: 0 | H102: 0 | I102: 0 | J102: 0
C103: 4 | D103: Others | E103: 0 | F103: 0 | G103: 0 | H103: 0 | I103: 0 | J103: 0
D104: Total | E104: =SUM(E100:E103) -> 0 | F104: 0 | G104: 0 | H104: 0 | I104: 36 | J104: 38
B106: ii) | C106: Water supply capital expenditure
C107: Sr. No. | D107: Particulars | E107: =E$27 -> 2009 (A) | F107: 2010 (A) | G107: 2011 (A) | H107: 2012 (A) | I107: 2013 (RE) | J107: 2014 (B)
C108: 1 | D108: Capital work in progress | E108: 18.41926 | F108: 0 | G108: 13.14084 | H108: 0.14022 | I108: 47 | J108: 40
C109: 2 | D109: Principal repayments of external funds/ borrowing | E109: 0 | F109: 0 | G109: 0 | H109: 0 | I109: 0 | J109: 0
C110: 3 | D110: Others | E110: 4.97812 | F110: 7.02691 | G110: 4.35873 | H110: 8.81547 | I110: 12.1 | J110: 12.2
D111: Total | E111: =SUM(E108:E110) -> 23.39738 | F111: 7.02691 | G111: 17.49957 | H111: 8.95569 | I111: 59.1 | J111: 52.2
B114: III | C114: Wastewater revenue and expenditure
B115: A | C115: Wastewater revenue account
B116: i) | C116: Wastewater revenue receipts
C117: Sr. No. | D117: Particulars | E117: =E$27 -> 2009 (A) | F117: 2010 (A) | G117: 2011 (A) | H117: 2012 (A) | I117: 2013 (RE) | J117: 2014 (B)
C118: 1 | D118: Sewerage tax | E118: 0 | F118: 0 | G118: 0 | H118: 0 | I118: 0 | J118: 0
C119: 2 | D119: Sewerage benefit tax | E119: 0 | F119: 0 | G119: 0 | H119: 0 | I119: 0 | J119: 0
C120: 3 | D120: Sewerage charges | E120: 0 | F120: 0 | G120: 0 | H120: 0 | I120: 0 | J120: 0
C121: 4 | D121: Grants | E121: 0 | F121: 0 | G121: 0 | H121: 0 | I121: 0 | J121: 0
C122: 5 | D122: Miscellaneous | E122: 0 | F122: 0 | G122: 0 | H122: 0 | I122: 0 | J122: 0
D123: Total | E123: =SUM(E118:E122) -> 0 | F123: 0 | G123: 0 | H123: 0 | I123: 0 | J123: 0
B125: ii) | C125: Wastewater revenue expenditure
C126: Sr. No. | D126: Particulars | E126: =E$27 -> 2009 (A) | F126: 2010 (A) | G126: 2011 (A) | H126: 2012 (A) | I126: 2013 (RE) | J126: 2014 (B)
C127: 1 | D127: Administrative and establishment expenses | E127: 0 | F127: 0 | G127: 0 | H127: 0 | I127: 0 | J127: 0
C128: 2 | D128: Energy expenses | E128: 0 | F128: 0 | G128: 0 | H128: 0 | I128: 0 | J128: 0
C129: 3 | D129: Other O&M expenses | E129: 55.48879 | F129: 68.53132 | G129: 84.86091 | H129: 111.6152 | I129: 121.2 | J129: 108
C130: 4 | D130: Miscellaneous expenses | E130: 0 | F130: 0 | G130: 0 | H130: 0 | I130: 0 | J130: 0
C131: 5 | D131: Interest payment | E131: 0 | F131: 0 | G131: 0 | H131: 0 | I131: 0 | J131: 0
D132: Total | E132: =SUM(E127:E131) -> 55.48879 | F132: 68.53132 | G132: 84.86091 | H132: 111.6152 | I132: 121.2 | J132: 108
B134: B | C134: Wastewater capital account
B135: i) | C135: Wastewater capital receipts
C136: Sr. No. | D136: Particulars | E136: =E$27 -> 2009 (A) | F136: 2010 (A) | G136: 2011 (A) | H136: 2012 (A) | I136: 2013 (RE) | J136: 2014 (B)
C137: 1 | D137: State scheme grants | E137: 0 | F137: 0 | G137: 0 | H137: 0 | I137: 0 | J137: 0
C138: 2 | D138: Central scheme grants | E138: 0 | F138: 0 | G138: 0 | H138: 0 | I138: 0 | J138: 0
C139: 3 | D139: External funds | E139: 0 | F139: 0 | G139: 0 | H139: 0 | I139: 0 | J139: 0
C140: 4 | D140: Others | E140: 0 | F140: 0 | G140: 0 | H140: 0 | I140: 0 | J140: 0
D141: Total | E141: =SUM(E137:E140) -> 0 | F141: 0 | G141: 0 | H141: 0 | I141: 0 | J141: 0
B143: ii) | C143: Wastewater capital expenditure
C144: Sr. No. | D144: Particulars | E144: =E$27 -> 2009 (A) | F144: 2010 (A) | G144: 2011 (A) | H144: 2012 (A) | I144: 2013 (RE) | J144: 2014 (B)
C145: 1 | D145: Capital work in progress | E145: 0 | F145: 0 | G145: 0 | H145: 0 | I145: 0 | J145: 0
C146: 2 | D146: Principal repayments of external funds/ borrowings | E146: 0 | F146: 0 | G146: 0 | H146: 0 | I146: 0 | J146: 0
C147: 3 | D147: Others | E147: 0 | F147: 0 | G147: 0 | H147: 0 | I147: 0 | J147: 0
D148: Total | E148: =SUM(E145:E147) -> 0 | F148: 0 | G148: 0 | H148: 0 | I148: 0 | J148: 0
B151: IV | C151: Solid waste revenue and expenditure
B152: A | C152: Solid waste revenue account
B153: i) | C153: Solid waste revenue receipts
C154: Sr. No. | D154: Particulars | E154: =E$27 -> 2009 (A) | F154: 2010 (A) | G154: 2011 (A) | H154: 2012 (A) | I154: 2013 (RE) | J154: 2014 (B)
C155: 1 | D155: Solid waste tax | E155: 0 | F155: 0 | G155: 0 | H155: 0 | I155: 0 | J155: 0
C156: 2 | D156: Grants | E156: 30.6026952 | F156: 33.7009568 | G156: 5.75 | H156: 0 | I156: 0.26 | J156: 0.27
C157: 3 | D157: Miscellaneous | E157: 0 | F157: 0 | G157: 0 | H157: 0 | I157: 0 | J157: 0
D158: Total | E158: =SUM(E155:E157) -> 30.6026952 | F158: 33.7009568 | G158: 5.75 | H158: 0 | I158: 0.26 | J158: 0.27
B160: ii) | C160: Solid waste revenue expenditure
C161: Sr. No. | D161: Particulars | E161: =E$27 -> 2009 (A) | F161: 2010 (A) | G161: 2011 (A) | H161: 2012 (A) | I161: 2013 (RE) | J161: 2014 (B)
C162: 1 | D162: Administrative and establishment expenses | E162: 67.18685 | F162: 105.57496 | G162: 105.99656 | H162: 140.02913 | I162: 118.7483 | J162: 133.3588
C163: 2 | D163: Energy expenses | E163: 5.04824 | F163: 4.99085 | G163: 7.24467 | H163: 7.16201 | I163: 7 | J163: 8
C164: 3 | D164: Other O&M expenses | E164: 2.22203 | F164: 8.92051 | G164: 13.73785 | H164: 5.27251 | I164: 49.1 | J164: 62.2
C165: 4 | D165: Miscellaneous expenses | E165: 11.69895 | F165: 5.23978 | G165: 3.89875 | H165: 2.86389 | I165: 13.96 | J165: 9.17
C166: 5 | D166: Interest payment | E166: 0 | F166: 0 | G166: 0 | H166: 0 | I166: 0 | J166: 0
D167: Total | E167: =SUM(E162:E166) -> 86.15607 | F167: 124.7261 | G167: 130.87783 | H167: 155.32754 | I167: 188.8083 | J167: 212.7288
B169: B | C169: Solid waste capital account
B170: i) | C170: Solid waste capital receipts
C171: Sr. No. | D171: Particulars | E171: =E$27 -> 2009 (A) | F171: 2010 (A) | G171: 2011 (A) | H171: 2012 (A) | I171: 2013 (RE) | J171: 2014 (B)
C172: 1 | D172: State scheme grants | E172: 0 | F172: 0 | G172: 0 | H172: 0 | I172: 0 | J172: 0
C173: 2 | D173: Central scheme grants | E173: 0 | F173: 0 | G173: 0 | H173: 0 | I173: 0 | J173: 0
C174: 3 | D174: External funds | E174: 0 | F174: 0 | G174: 0 | H174: 0 | I174: 0 | J174: 0
C175: 4 | D175: Others | E175: 0 | F175: 0 | G175: 0 | H175: 0 | I175: 0 | J175: 0
D176: Total | E176: =SUM(E172:E175) -> 0 | F176: 0 | G176: 0 | H176: 0 | I176: 0 | J176: 0
B178: ii) | C178: Solid waste capital expenditure
C179: Sr. No. | D179: Particulars | E179: =E$27 -> 2009 (A) | F179: 2010 (A) | G179: 2011 (A) | H179: 2012 (A) | I179: 2013 (RE) | J179: 2014 (B)
C180: 1 | D180: Capital work in progress | E180: 0 | F180: 7.69199 | G180: 35.77352 | H180: 10.93689 | I180: 20 | J180: 23
C181: 2 | D181: Principal repayments of external funds/ borrowings | E181: 0 | F181: 0 | G181: 0 | H181: 0 | I181: 0 | J181: 0
C182: 3 | D182: Others | E182: 0 | F182: 0 | G182: 0 | H182: 0 | I182: 0 | J182: 0
D183: Total | E183: =SUM(E180:E182) -> 0 | F183: 7.69199 | G183: 35.77352 | H183: 10.93689 | I183: 20 | J183: 23
B186: V | C186: Property Tax
B187: A | C187: Demand and Collection balance statement (Rs. in lakhs)
C189: Sr. No. | D189: Particulars | E189: =H179 -> 2012 (A) | G189: =I179 -> 2013 (RE) | I189: =J179 -> 2014 (B)
E190: Demand | F190: Collection | G190: Demand | H190: Collection | I190: Demand | J190: Collection
D191: CURRENT DEMAND
C192: 1 | D192: General property tax | E192: 112.60714 | F192: 94.92834 | G192: 111.63313 | H192: 91.77799 | I192: =G192 -> 111.63313 | J192: =H192 -> 91.77799
C193: 2 | D193: Water supply related taxes and charges | E193: 70.01 | F193: 56 | G193: 93.64 | H193: 78.78 | I193: =G193 -> 93.64 | J193: =H193 -> 78.78
C194: 3 | D194: Wastewater related taxes and charges | E194: 0 | F194: 0 | G194: 0 | H194: 0 | I194: 0 | J194: 0
C195: 4 | D195: Solid waste related taxes and charges | E195: 0 | F195: 0 | G195: 0 | H195: 0 | I195: 0 | J195: 0
C196: 5 | D196: Others | E196: 41.14688 | F196: 34.38571 | G196: 41.01555 | H196: 33.7375 | I196: 41.01555 | J196: 33.7375
D197: Total | E197: =SUM(E192:E196) -> 223.76402 | F197: 185.31405 | G197: 246.28868 | H197: 204.29549 | I197: 246.28868 | J197: 204.29549
D198: ARREAR DEMAND
C199: 1 | D199: General property tax | E199: 66.17284 | F199: 46.85441 | G199: 37.64224 | H199: 19.33794 | I199: =G199 -> 37.64224 | J199: =H199 -> 19.33794
C200: 2 | D200: Water supply related taxes and charges | E200: 29 | F200: 23.2 | G200: 37.69 | H200: 30.9 | I200: =G200 -> 37.69 | J200: =H200 -> 30.9
C201: 3 | D201: Wastewater related taxes and charges | E201: 0 | F201: 0 | G201: 0 | H201: 0 | I201: 0 | J201: 0
C202: 4 | D202: Solid waste related taxes and charges | E202: 0 | F202: 0 | G202: 0 | H202: 0 | I202: 0 | J202: 0
C203: 5 | D203: Others | E203: 24.20614 | F203: 16.81976 | G203: 14.26977 | H203: 6.87847 | I203: 14.26977 | J203: 6.87847
D204: Total | E204: =SUM(E199:E203) -> 119.37898 | F204: 86.87417 | G204: 89.60201 | H204: 57.11641 | I204: 89.60201 | J204: 57.11641

Sheet Perf assessment
C2: PERFORMANCE ASSESSMENT SYSTEM PROJECT
C4: =IFERROR(CONCATENATE("SANITATION IMPROVEMENT PLAN FOR ", UPPER('General info'!E30), " CITY, ", 'General info'!E21, - 'General info'!E22),"PERFORMANCE IMPROVEMENT PLAN") -> SANITATION IMPROVEMENT PLAN FOR WAI CITY, 2015-2024
C6: MODULE I: PERFORMANCE ASSESSMENT
C8: PERFORMANCE ASSESSMENT
A9: Click | C9: Water supply | D9: Wastewater | I9: Solid waste
C10: Instructions for using this sheet:
C11: Based on sectoral and finance information provided in previous sheets, level of services provided by ULB is assessed. Key Performance Indicators (KPIs) are reported for ULB and compared against the peers (state and city class) to evaluate its comparative position. Next to performance assessment level is identifying specific local/ contextual areas that need improvement. Hence, relevant charts are provided under each KPI theme (Access and Coverage, Service Levels and Quality, Efficiency in Service Operations and Financial Sustainability) to help identify these areas. Actions are suggested for each of the possible problematic areas in the table below. The table also highlights possibility of impacting the KPIs by each of these actions. Review these charts and KPI peer comparison to decide on Actions that need to be implemented for ULB. All the actions under each theme are categorised into four types depending on their nature of implementation.
C12: A. Data improvement measures | D12: For most of the ULBs, quality of data is very poor. These actions shall help improve it but will not directly impact the performance levels.
C13: B. Process/policy improvement measures | D13: This category highlights the understated process or policy areas that may have been primary hurdle in reform implementation.
C14: C. Existing system improvement measures | D14: This category highlights the scope for improving existing infrastructure to achieve desired results at low-cost.
C15: D. Create new infrastructure | D15: This category complies a list of all the new infrastructure projects that can be undertaken.
C16: As mentioned, based on review of present performance key problematic areas are identified for the city. These shall define sectoral vision - goals and planning priorities of each sector. A check box is provided against each KPI and action. Click on the box beside relevant KPI and action for arriving at summary of sectoral improvement vision at the end of this sheet.
B18: I | C18: WATER SUPPLY
C21: Key Performance Indicator | D21: Value | T21: WATER SUPPLY
T22: =COUNTIF($U$22:U22,TRUE) -> 0
C23: Coverage of individual water supply connections in city | D23: ='Summary of CSP'!D24 -> 0.9564286614 | T23: =COUNTIF($U$22:U23,TRUE) -> 1 | U23: TRUE
C24: Coverage of individual water supply connection in slums | D24: ='Summary of CSP'!D26 -> 0.03351955307 | T24: =COUNTIF($U$22:U24,TRUE) -> 1
C25: Per capita supply of water at consumer end (lpcd) | D25: ='Summary of CSP'!D35 -> 120.6721837 | T25: =COUNTIF($U$22:U25,TRUE) -> 1
C26: Continuity of water supplied (hours/day) | D26: ='Summary of CSP'!D37 -> 1.4 | T26: =COUNTIF($U$22:U26,TRUE) -> 1
C27: Extent of Non-revenue water | D27: ='Summary of CSP'!D50 -> 0.2169075344 | T27: =COUNTIF($U$22:U27,TRUE) -> 1
C28: Extent of functional metering of water supply connections | D28: ='Summary of CSP'!D52 -> 0 | T28: =COUNTIF($U$22:U28,TRUE) -> 1
C29: Quality of water supplied | D29: ='Summary of CSP'!D39 -> 1 | T29: =COUNTIF($U$22:U29,TRUE) -> 1
C30: Efficiency in redressal of customer complaints | D30: ='Summary of CSP'!D54 -> 0.9523809524 | T30: =COUNTIF($U$22:U30,TRUE) -> 2 | U30: TRUE
C31: Efficiency in collection of water supply charges and taxes | D31: ='Summary of CSP'!D65 -> 0.8413071337 | T31: =COUNTIF($U$22:U31,TRUE) -> 2
C32: Cost recovery in water supply services | D32: ='Summary of CSP'!D67 -> 0.7507969801
C35: ACCESS AND COVERAGE | I35: Click here | J35: Simulate Improvement Plan
C37: Actions for performance improvement | D37: Impact of actions on KPIs
D38: Coverage of individual connections in city | E38: Coverage of individual connections in slums | F38: Per capita supply of water | G38: Continuity of water supplied | H38: Extent of non- revenue water | I38: Extent of functional metering | J38: Quality of water supplied | K38: Efficiency in redressal of complaints | L38: Efficiency in collection of water supply charges | M38: Extent of water supply cost recovery
C39: A) Data improvement measures | T39: =COUNTIF($U$39:U39,TRUE) -> 0
C40: ='WS Plan'!F22 -> Household survey to assess water supply services | T40: =COUNTIF($U$39:U40,TRUE) -> 0
C41: ='WS Plan'!F28 -> Computerise water supply records | T41: =COUNTIF($U$39:U41,TRUE) -> 1 | U41: TRUE
C42: B) Process/Policy improvement measures - No cost | T42: =COUNTIF($U$39:U42,TRUE) -> 1
C43: ='WS Plan'!F34 -> Process improvement for new water supply connection applications | T43: =COUNTIF($U$39:U43,TRUE) -> 2 | U43: TRUE
C44: ='WS Plan'!F35 -> Policy for providing individual water connections in slums | T44: =COUNTIF($U$39:U44,TRUE) -> 3 | U44: TRUE
C45: C) Existing system improvement measures - Low cost | T45: =COUNTIF($U$39:U45,TRUE) -> 3
C46: ='WS Plan'!F39 -> Regularise unauthorised water supply connections | T46: =COUNTIF($U$39:U46,TRUE) -> 4 | U46: TRUE
C47: ='WS Plan'!F44 -> Increase connections using existing water supply distribution network | T47: =COUNTIF($U$39:U47,TRUE) -> 5 | U47: TRUE
C48: ='WS Plan'!F49 -> Convert stand posts/public taps into group connections | T48: =COUNTIF($U$39:U48,TRUE) -> 6 | U48: TRUE
C49: D) Create new infrastructure - High cost | T49: =COUNTIF($U$39:U49,TRUE) -> 6
C50: ='WS Plan'!F55 -> Lay new water supply distribution network | T50: =COUNTIF($U$39:U50,TRUE) -> 6
C51: ='WS Plan'!F64 -> Lay internal infrastructure of water supply lines in slums | T51: =COUNTIF($U$39:U51,TRUE) -> 6
C52: SERVICE LEVELS AND QUALITY | I52: Click here | J52: Simulate Improvement Plan | T52: =COUNTIF($U$39:U52,TRUE) -> 6
T53: =COUNTIF($U$39:U53,TRUE) -> 6
C54: Actions for performance improvement | D54: Impact of actions on KPIs | T54: =COUNTIF($U$39:U54,TRUE) -> 6
D55: Coverage of individual connections in city | E55: Coverage of individual connections in slums | F55: Per capita supply of water | G55: Continuity of water supplied | H55: Extent of non- revenue water | I55: Extent of functional metering | J55: Quality of water supplied | K55: Efficiency in redressal of complaints | L55: Efficiency in collection of water supply charges | M55: Extent of water supply cost recovery | T55: =COUNTIF($U$39:U55,TRUE) -> 6
C56: A) Process/Policy improvement measures - No cost | T56: =COUNTIF($U$39:U56,TRUE) -> 6
C57: ='WS Plan'!F76 -> Improve water supply quality surveillance | T57: =COUNTIF($U$39:U57,TRUE) -> 6 | U57: FALSE
C58: B) Existing system improvement measures - Low cost | T58: =COUNTIF($U$39:U58,TRUE) -> 6
C59: ='WS Plan'!F80 -> Increase continuity of water supply services | T59: =COUNTIF($U$39:U59,TRUE) -> 7 | U59: TRUE
C60: ='WS Plan'!F87 -> Repair existing water treatment plant to improve water quality | T60: =COUNTIF($U$39:U60,TRUE) -> 7
C61: ='WS Plan'!F94 -> Treatment of untreated supply ground water | T61: =COUNTIF($U$39:U61,TRUE) -> 7
C62: C) Create new infrastructure - High cost | T62: =COUNTIF($U$39:U62,TRUE) -> 7
C63: ='WS Plan'!F101 -> Augment water supply sources | T63: =COUNTIF($U$39:U63,TRUE) -> 7
C64: ='WS Plan'!F125 -> Expand/replace water supply transmission network | T64: =COUNTIF($U$39:U64,TRUE) -> 7
C65: ='WS Plan'!F129 -> Construct/augment water treatment plant | T65: =COUNTIF($U$39:U65,TRUE) -> 7
C66: ='WS Plan'!F135 -> Construct/augment water storage capacity | T66: =COUNTIF($U$39:U66,TRUE) -> 7
C67: EFFICIENCY IN SERVICE OPERATION | I67: Click here | J67: Simulate Performance Improvement Plan | T67: =COUNTIF($U$39:U67,TRUE) -> 7
T68: =COUNTIF($U$39:U68,TRUE) -> 7
C69: Actions for performance improvement | D69: Impact of actions on KPIs | T69: =COUNTIF($U$39:U69,TRUE) -> 7
D70: Coverage of individual connections in city | E70: Coverage of individual connections in slums | F70: Per capita supply of water | G70: Continuity of water supplied | H70: Extent of non- revenue water | I70: Extent of functional metering | J70: Quality of water supplied | K70: Efficiency in redressal of complaints | L70: Efficiency in collection of water supply charges | M70: Extent of water supply cost recovery | T70: =COUNTIF($U$39:U70,TRUE) -> 7
C71: A) Data improvement measures | T71: =COUNTIF($U$39:U71,TRUE) -> 7
C72: ='WS Plan'!F147 -> Conduct water audit | T72: =COUNTIF($U$39:U72,TRUE) -> 8 | U72: TRUE
C73: ='WS Plan'!F149 -> Conduct energy audit | T73: =COUNTIF($U$39:U73,TRUE) -> 9 | U73: TRUE
C74: ='WS Plan'!F151 -> Install bulk flow meters | T74: =COUNTIF($U$39:U74,TRUE) -> 10 | U74: TRUE
C75: ='WS Plan'!F155 -> Map water supply and wastewater network | T75: =COUNTIF($U$39:U75,TRUE) -> 11 | U75: TRUE
C76: ='WS Plan'!F159 -> Conduct Hydraulic modelling | T76: =COUNTIF($U$39:U76,TRUE) -> 12 | U76: TRUE
C77: ='WS Plan'!F161 -> Conduct Utilities survey (asset mapping) | T77: =COUNTIF($U$39:U77,TRUE) -> 12 | U77: FALSE
C78: B) Process/Policy improvement measures - No cost | T78: =COUNTIF($U$39:U78,TRUE) -> 12
C79: ='WS Plan'!F168 -> Improve processes for regular checking of water losses | T79: =COUNTIF($U$39:U79,TRUE) -> 13 | U79: TRUE
C80: ='WS Plan'!F169 -> Policy to introduce universal consumer meters | T80: =COUNTIF($U$39:U80,TRUE) -> 13
C81: ='WS Plan'!F170 -> Improve processes for management of consumer complaints | T81: =COUNTIF($U$39:U81,TRUE) -> 14 | U81: TRUE
C82: C) Existing system improvement measures - Low-cost | T82: =COUNTIF($U$39:U82,TRUE) -> 14
C83: ='WS Plan'!F174 -> Reduce losses in trunk main transmission network | T83: =COUNTIF($U$39:U83,TRUE) -> 14
C84: ='WS Plan'!F178 -> Reduce losses at water treatment plant | T84: =COUNTIF($U$39:U84,TRUE) -> 14
C85: ='WS Plan'!F182 -> Reduce losses in treated water transmission network | T85: =COUNTIF($U$39:U85,TRUE) -> 14
C86: ='WS Plan'!F189 -> Refurbishment of water storage reservoirs | T86: =COUNTIF($U$39:U86,TRUE) -> 14
C87: ='WS Plan'!F192 -> Improvement in water supply distribution network | T87: =COUNTIF($U$39:U87,TRUE) -> 14
C88: ='WS Plan'!F195 -> Plugging of leakages at valves | T88: =COUNTIF($U$39:U88,TRUE) -> 14
C89: ='WS Plan'!F198 -> Replacement of service line connections | T89: =COUNTIF($U$39:U89,TRUE) -> 14
C90: ='WS Plan'!F202 -> Reduce free water supply | T90: =COUNTIF($U$39:U90,TRUE) -> 14 | U90: FALSE
C91: ='WS Plan'!F206 -> Repair non-functional metered water supply connections | T91: =COUNTIF($U$39:U91,TRUE) -> 14
C92: ='WS Plan'!F215 -> Improve consumer grievance redressal system | T92: =COUNTIF($U$39:U92,TRUE) -> 15 | U92: TRUE
C93: D) Create new infrastructure - High cost | T93: =COUNTIF($U$39:U93,TRUE) -> 15
C94: ='WS Plan'!F222 -> Metering of consumer water supply connections | T94: =COUNTIF($U$39:U94,TRUE) -> 15
C95: FINANCIAL SUSTAINAIBILITY | I95: Click here | J95: Simulate Improvement Plan | T95: =COUNTIF($U$39:U95,TRUE) -> 15
T96: =COUNTIF($U$39:U96,TRUE) -> 15
C97: Actions for performance improvement | D97: Impact of actions on KPIs | T97: =COUNTIF($U$39:U97,TRUE) -> 15
D98: Coverage of individual connections in city | E98: Coverage of individual connections in slums | F98: Per capita supply of water | G98: Continuity of water supplied | H98: Extent of non- revenue water | I98: Extent of functional metering | J98: Quality of water supplied | K98: Efficiency in redressal of complaints | L98: Efficiency in collection of water supply charges | M98: Extent of water supply cost recovery | T98: =COUNTIF($U$39:U98,TRUE) -> 15
C99: A) Process/Policy improvement measures - No cost | T99: =COUNTIF($U$39:U99,TRUE) -> 15
C100: ='WS Plan'!F258 -> Improve billing and collection of water supply bills | T100: =COUNTIF($U$39:U100,TRUE) -> 15
C101: B) Existing system improvement measures - Low-cost | T101: =COUNTIF($U$39:U101,TRUE) -> 15
C102: ='WS Plan'!F262 -> Improve collection efficiency of water supply charges and taxes | T102: =COUNTIF($U$39:U102,TRUE) -> 16 | U102: TRUE
C103: ='WS Plan'!F268 -> Replace pumping machinery | T103: =COUNTIF($U$39:U103,TRUE) -> 16
C104: ='WS Plan'!F274 -> Other measures to optimise power and energy expenses | T104: =COUNTIF($U$39:U104,TRUE) -> 16
B108: II | C108: WASTEWATER
C110: Key Performance Indicator | D110: Value
T111: =COUNTIF($U$111:U111,TRUE) -> 1 | U111: TRUE
C112: Coverage of households with individual toilets in city | D112: ='Summary of CSP'!D85 -> 0.5845611384 | T112: =COUNTIF($U$111:U112,TRUE) -> 2 | U112: TRUE
C113: Coverage of households with individual toilets in slums | D113: ='Summary of CSP'!D87 -> 0.5335195531 | T113: =COUNTIF($U$111:U113,TRUE) -> 3 | U113: TRUE
C114: Coverage of households with adequate sanitation system | D114: ='Summary of CSP'!D98 -> 0.05339377912 | T114: =COUNTIF($U$111:U114,TRUE) -> 4 | U114: TRUE
C115: Efficiency of wastewater and septage collection system | D115: ='Summary of CSP'!D100 -> 0.05339377912 | T115: =COUNTIF($U$111:U115,TRUE) -> 4
C116: Adequacy of wastewater and septage treatment capacity | D116: ='Summary of CSP'!D102 -> 0 | T116: =COUNTIF($U$111:U116,TRUE) -> 4
C117: Quality of wastewater and septage treatment | D117: ='Summary of CSP'!D123 -> 0 | T117: =COUNTIF($U$111:U117,TRUE) -> 4
C118: Extent of reuse/recycling of treated wastewater and septage | D118: ='Summary of CSP'!D121 -> 0 | T118: =COUNTIF($U$111:U118,TRUE) -> 4
C119: Efficiency in redressal of customer complaints | D119: ='Summary of CSP'!D125 -> 1 | T119: =COUNTIF($U$111:U119,TRUE) -> 4
C120: Efficiency in collection of wastewater charges and taxes | D120: ='Summary of CSP'!D134 -> 0 | T120: =COUNTIF($U$111:U120,TRUE) -> 4
C121: Extent of cost recovery in wastewater services | D121: ='Summary of CSP'!D136 -> 0
C123: ACCESS AND COVERAGE | I123: Click here | J123: Simulate Improvement Plan
C125: Actions for performance improvement | D125: Impact of actions on KPIs
D126: Coverage of households with individual toilets in city | E126: Coverage of households with individual toilets in slum | F126: Household coverage with adequate sanitation system | G126: Collection efficiency of wastewater & septage disposal | H126: Adequacy of treatment for wastewater & septage | I126: Quality of treatment for wastewater & septage | J126: Extent of reuse/ recycle of treated wastewater & septage | K126: Efficiency in redressal of complaints | L126: Efficiency in collection of wastewater charges | M126: Extent of wastewater cost recovery
C127: A) Data improvement measures
C128: ='WW Plan'!F22 -> Household survey to assess wastewater services | T128: =COUNTIF($U$127:U128,TRUE) -> 0
C129: ='WW Plan'!F28 -> Surveys and monitoring of open defecation sites | T129: =COUNTIF($U$127:U129,TRUE) -> 0
C130: ='WW Plan'!F32 -> Computerise wastewater records | T130: =COUNTIF($U$127:U130,TRUE) -> 0
C131: B) Process/Policy improvement measures - No cost | T131: =COUNTIF($U$127:U131,TRUE) -> 0
C132: ='WW Plan'!F38 -> Policy for providing sanitation services in slums | T132: =COUNTIF($U$127:U132,TRUE) -> 0
C133: C) Existing system improvement measures - Low-cost | T133: =COUNTIF($U$127:U133,TRUE) -> 0
C134: ='WW Plan'!F42 -> Improve condition of existing individual toilets by providing safe sanitation disposal system | T134: =COUNTIF($U$127:U134,TRUE) -> 0
C135: ='WW Plan'!F57 -> Improve condition of existing Community toilets | T135: =COUNTIF($U$127:U135,TRUE) -> 0
C136: ='WW Plan'!F79 -> Improve condition of existing Public toilets | T136: =COUNTIF($U$127:U136,TRUE) -> 0
C137: ='WW Plan'!F97 -> Refurbishment of exisiting septic tanks in city | T137: =COUNTIF($U$127:U137,TRUE) -> 0
C138: ='WW Plan'!F106 -> Information, education and communication (IEC) campaigns for sanitation awareness | T138: =COUNTIF($U$127:U138,TRUE) -> 0
C139: D) Create new infrastructure - High cost | T139: =COUNTIF($U$127:U139,TRUE) -> 0
C140: ='WW Plan'!F111 -> Construct new individual toilets | T140: =COUNTIF($U$127:U140,TRUE) -> 0
C141: ='WW Plan'!F137 -> Construct new group toilets | T141: =COUNTIF($U$127:U141,TRUE) -> 0
C142: ='WW Plan'!F161 -> Construct new community toilet blocks | T142: =COUNTIF($U$127:U142,TRUE) -> 0
C143: ='WW Plan'!F182 -> Construct new public toilet blocks | T143: =COUNTIF($U$127:U143,TRUE) -> 0
C144: SERVICE LEVELS AND QUALITY | I144: Click here | J144: Simulate Improvement Plan | T144: =COUNTIF($U$127:U144,TRUE) -> 0
T145: =COUNTIF($U$127:U145,TRUE) -> 0
C146: Actions for performance improvement | D146: Impact of actions on KPIs | T146: =COUNTIF($U$127:U146,TRUE) -> 0
D147: Coverage of households with individual toilets in city | E147: Coverage of households with individual toilets in slum | F147: Household coverage with adequate sanitation system | G147: Collection efficiency of wastewater & septage disposal | H147: Adequacy of treatment for wastewater & septage | I147: Quality of treatment for wastewater & septage | J147: Extent of reuse/ recycle of treated wastewater & septage | K147: Efficiency in redressal of complaints | L147: Efficiency in collection of wastewater charges | M147: Extent of wastewater cost recovery | T147: =COUNTIF($U$127:U147,TRUE) -> 0
C148: A) Process/Policy improvement measures - No cost | T148: =COUNTIF($U$127:U148,TRUE) -> 0
C149: ='WW Plan'!F208 -> Process improvement for new sewerage connection applications | T149: =COUNTIF($U$127:U149,TRUE) -> 0
C150: ='WW Plan'!F209 -> Improve processes for regular cleaning of drains and sewers | T150: =COUNTIF($U$127:U150,TRUE) -> 0
C151: B) Existing system improvement measures - Low-cost | T151: =COUNTIF($U$127:U151,TRUE) -> 0
C152: ='WW Plan'!F213 -> Regularise unauthorised sewerage connections | T152: =COUNTIF($U$127:U152,TRUE) -> 0
C153: ='WW Plan'!F217 -> Increase connections using existing sewerage network | T153: =COUNTIF($U$127:U153,TRUE) -> 0
C154: ='WW Plan'!F225 -> Improve existing sewerage network and plug leakages | T154: =COUNTIF($U$127:U154,TRUE) -> 0
C155: ='WW Plan'!F231 -> Increase septage collection with existing suction emptier trucks | T155: =COUNTIF($U$127:U155,TRUE) -> 0
C156: ='WW Plan'!F241 -> Increase efficiency of all existing treatment plants | T156: =COUNTIF($U$127:U156,TRUE) -> 0
C157: ='WW Plan'!F256 -> Upgrade open surface drains to closed drains for storm water drainage | T157: =COUNTIF($U$127:U157,TRUE) -> 0
C158: ='WW Plan'!F264 -> Reduce water logging/flooding in city | T158: =COUNTIF($U$127:U158,TRUE) -> 0
C159: C) Create new infrastructure - High cost | T159: =COUNTIF($U$127:U159,TRUE) -> 0
C160: ='WW Plan'!F275 -> Provide soak pits for wastewater disposal | T160: =COUNTIF($U$127:U160,TRUE) -> 0
C161: ='WW Plan'!F282 -> Lay new settled sewer for wastewater conveyance | T161: =COUNTIF($U$127:U161,TRUE) -> 0
C162: ='WW Plan'!F293 -> Expand or lay new sewerage network for wastewater conveyance | T162: =COUNTIF($U$127:U162,TRUE) -> 0
C163: ='WW Plan'!F308 -> Procure new suction emptier trucks | T163: =COUNTIF($U$127:U163,TRUE) -> 0
C164: ='WW Plan'!F323 -> Construct/augment fecal sludge treatment plant | T164: =COUNTIF($U$127:U164,TRUE) -> 0
C165: ='WW Plan'!F332 -> Construct/augment treatment plant for effluent and sullage | T165: =COUNTIF($U$127:U165,TRUE) -> 0
C166: ='WW Plan'!F341 -> Construct/augment sewage treatment plant | T166: =COUNTIF($U$127:U166,TRUE) -> 0
C167: ='WW Plan'!F353 -> Construct closed surface drains for storm water drainage | T167: =COUNTIF($U$127:U167,TRUE) -> 0
C168: EFFICIENCY IN SERVICE OPERATION | I168: Click here | J168: Simulate Improvement Plan | T168: =COUNTIF($U$127:U168,TRUE) -> 0
T169: =COUNTIF($U$127:U169,TRUE) -> 0
C170: Actions for performance improvement | D170: Impact of actions on KPIs | T170: =COUNTIF($U$127:U170,TRUE) -> 0
D171: Coverage of households with individual toilets in city | E171: Coverage of households with individual toilets in slum | F171: Household coverage with adequate sanitation system | G171: Collection efficiency of wastewater & septage disposal | H171: Adequacy of treatment for wastewater & septage | I171: Quality of treatment for wastewater & septage | J171: Extent of reuse/ recycle of treated wastewater & septage | K171: Efficiency in redressal of complaints | L171: Efficiency in collection of wastewater charges | M171: Extent of wastewater cost recovery | T171: =COUNTIF($U$127:U171,TRUE) -> 0
C172: A) Process/Policy improvement measures - No cost | T172: =COUNTIF($U$127:U172,TRUE) -> 0
C173: ='WW Plan'!F366 -> Improve wastewater and septage quality surveillance | T173: =COUNTIF($U$127:U173,TRUE) -> 0
C174: ='WW Plan'!F367 -> Improve processes for management of consumer complaints | T174: =COUNTIF($U$127:U174,TRUE) -> 0
C175: B) Existing system improvement measures - Low-cost | T175: =COUNTIF($U$127:U175,TRUE) -> 0
C176: ='WW Plan'!F371 -> Increase in reuse/recycling of treated wastewater and septage | T176: =COUNTIF($U$127:U176,TRUE) -> 0
C177: ='WW Plan'!F393 -> Conduct regular wastewater and septage quality tests at laboratory, if not done | T177: =COUNTIF($U$127:U177,TRUE) -> 0
C178: ='WW Plan'!F397 -> Improve consumer grievance redressal system | T178: =COUNTIF($U$127:U178,TRUE) -> 0
C179: FINANCIAL SUSTAINAIBILITY | I179: Click here | J179: Simulate Improvement Plan | T179: =COUNTIF($U$127:U179,TRUE) -> 0
T180: =COUNTIF($U$127:U180,TRUE) -> 0
C181: Actions for performance improvement | D181: Impact of actions on KPIs | T181: =COUNTIF($U$127:U181,TRUE) -> 0
D182: Coverage of households with individual toilets in city | E182: Coverage of households with individual toilets in slum | F182: Household coverage with adequate sanitation system | G182: Collection efficiency of wastewater & septage disposal | H182: Adequacy of treatment for wastewater & septage | I182: Quality of treatment for wastewater & septage | J182: Extent of reuse/ recycle of treated wastewater & septage | K182: Efficiency in redressal of complaints | L182: Efficiency in collection of wastewater charges | M182: Extent of wastewater cost recovery | T182: =COUNTIF($U$127:U182,TRUE) -> 0
C183: A) Process/ Policy improvement measures - No cost | T183: =COUNTIF($U$127:U183,TRUE) -> 0
C184: ='WW Plan'!F407 -> Improve billing and collection of wastewater bills | T184: =COUNTIF($U$127:U184,TRUE) -> 0
C185: B) Existing system improvement measures - Low-cost | T185: =COUNTIF($U$127:U185,TRUE) -> 0
C186: ='WW Plan'!F411 -> Improve collection efficiency of wastewater charges and taxes | T186: =COUNTIF($U$127:U186,TRUE) -> 0
B189: III | C189: SOLID WASTE MANAGEMENT (SWM)
C191: Key Performance Indicators | D191: Value
T192: =COUNTIF($U$192:U192,TRUE) -> 0
C193: Coverage of household level solid waste services in city | D193: ='Summary of CSP'!D154 -> 1 | T193: =COUNTIF($U$192:U193,TRUE) -> 0
C194: Coverage of household level solid waste services in slums | D194: ='Summary of CSP'!D156 -> 1 | T194: =COUNTIF($U$192:U194,TRUE) -> 0
C195: Efficiency of collection of solid waste | D195: ='Summary of CSP'!D161 -> 0.9999215317 | T195: =COUNTIF($U$192:U195,TRUE) -> 0
C196: Extent of segregation of solid waste | D196: ='Summary of CSP'!D163 -> 0.3333594915 | T196: =COUNTIF($U$192:U196,TRUE) -> 0
C197: Extent of solid waste recovered | D197: ='Summary of CSP'!D165 -> 0 | T197: =COUNTIF($U$192:U197,TRUE) -> 0
C198: Extent of scientific disposal of solid waste | D198: ='Summary of CSP'!D174 -> 0 | T198: =COUNTIF($U$192:U198,TRUE) -> 0
C199: Efficiency in redressal of customer complaints | D199: ='Summary of CSP'!D176 -> 0.9736842105 | T199: =COUNTIF($U$192:U199,TRUE) -> 0
C200: Efficiency in collection of solid waste charges and taxes | D200: ='Summary of CSP'!D181 -> 0 | T200: =COUNTIF($U$192:U200,TRUE) -> 0
C201: Extent of cost recovery in solid waste services | D201: ='Summary of CSP'!D183 -> 0
C204: ACCESS AND COVERAGE | I204: Click here | J204: Simulate Improvement Plan
C206: Actions for performance improvement | E206: Impact of actions on KPIs
E207: Coverage of household level SW services in city | F207: Coverage of household level SW services in slum | G207: Efficiency of collection of solid waste | H207: Extent of segregation of solid waste | I207: Extent of solid waste recovered | J207: Extent of scientific disposal of SW | K207: Efficiency in redressal of complaints | L207: Efficiency in collection of SW charges | M207: Extent of solid waste cost recovery
C208: A) Data improvement measures
C209: ='SW Plan'!F22 -> Household survey to assess solid waste services | T209: =COUNTIF($U$208:U209,TRUE) -> 0
C210: ='SW Plan'!F28 -> Computerise solid waste records | T210: =COUNTIF($U$208:U210,TRUE) -> 0
C211: B) Process/Policy improvement measures - No cost | T211: =COUNTIF($U$208:U211,TRUE) -> 0
C212: ='SW Plan'!F34 -> Prepare management plan to efficiently deploy manpower and resources | T212: =COUNTIF($U$208:U212,TRUE) -> 0
C213: C) Existing system improvement measures - Low-cost | T213: =COUNTIF($U$208:U213,TRUE) -> 0
C214: ='SW Plan'!F38 -> Procure equipments for street sweeping and drain cleaning | T214: =COUNTIF($U$208:U214,TRUE) -> 0
C215: ='SW Plan'!F45 -> Procure equipments for door to door solid waste collection (collection bins, ghantagaadis, containerised cycle rickshaw, handcarts etc.) | T215: =COUNTIF($U$208:U215,TRUE) -> 0
C216: ='SW Plan'!F54 -> Information, education and communication (IEC) campaign for awareness of solid waste management | T216: =COUNTIF($U$208:U216,TRUE) -> 0
C217: D) Create new infrastructure - High cost | T217: =COUNTIF($U$208:U217,TRUE) -> 0
C218: ='SW Plan'!F59 -> Employ additional staff on contract for improving solid waste service delivery | T218: =COUNTIF($U$208:U218,TRUE) -> 0
C219: ='SW Plan'!F70 -> Engage with private service providers to provide solid waste services | T219: =COUNTIF($U$208:U219,TRUE) -> 0
C220: SERVICE LEVELS AND QUALITY | I220: Click here | J220: Simulate Improvement Plan | T220: =COUNTIF($U$208:U220,TRUE) -> 0
T221: =COUNTIF($U$208:U221,TRUE) -> 0
C222: Actions for performance improvement | E222: Impact of actions on KPIs | T222: =COUNTIF($U$208:U222,TRUE) -> 0
... 102 more rows

Sheet WS Plan
C2: PERFORMANCE ASSESSMENT SYSTEM PROJECT
C4: =IFERROR(CONCATENATE("SANITATION IMPROVEMENT PLAN FOR ", UPPER('General info'!E30), " CITY, ", 'General info'!E21, - 'General info'!E22),"PERFORMANCE IMPROVEMENT PLAN") -> SANITATION IMPROVEMENT PLAN FOR WAI CITY, 2015-2024
F6: MODULE II: ACTION PLANNING
C8: ACTION PLAN FOR WATER SUPPLY SERVICES
A9: Click | C9: Access and coverage | G9: Service levels and quality | M9: Efficiency in service operations | S9: Financial sustainability
B10: Instructions for using this sheet: | F10: Action Planning is a process that aims to consolidate various dimensions of problem solving into output based tangible Action Plan. The planning objectives identified in 'Performance assessment' sheet are set of actions that need to be implemented in city for improving service delivery. These planning objectives are essentially individual actions that would be calibrated as output based tangible targets in this sheet. A set of these calibrated actions will form an implementation plan for ULB across ten years of plan period. Hence, this Action Plan must evolve through an iterative process of identifying appropriate actions, phasing and financing pattern. To facilitate this process, all the actions are compiled in an easy to use tabular structure along with pictorial graphs to show its impact simultaneously. These graphs display collective impact of all the actions in each theme (Access and Coverage, Service Levels and Quality, Efficiency in Service Operations and Financial Sustainability) in terms of performance improvement (dark coloured area graphs) and financial requirement (translucent coloured area graphs). The tabular structure for each Action has following components:
F11: LINK FOR ACTION GUIDELINE | G11: This is a hyperlinked cell placed on top most left corner of table. It leads to another sheet of Annexure, where detailed guidelines are provided to explain an action with assumptions to be considered for calibrating it.
F12: ACTIVATE/ DEACTIVATE ACTION | G12: A simple drop-down switch is provided on top left corner of table (besides learn more) to 'Activate/Deactivate' an action. By activating switch, the corresponding action can be included in the proposed Action Plan. Light blue colour of box indicates actions prioritised in Performance assessment sheet. The colour turns to dark blue if action is actually activated. Any action can be activated irrespective of whether they were prioritised earlier or not (i.e. box being grey or light blue; colour is only indicative)
F13: PHASING OF ACTIONS | G13: These two cells on top most right corner of table turn blue when an action is activated. User has to fill in implementation period of the action. First cell is for starting year of action and second cell is for completing year of action.
F14: BASELINE INFORMATION | G14: These are first set of rows in a table displaying important background information about the Action. It will facilitate decision making for user.
F15: IMPROVEMENT INFORMATION | G15: Next set of rows are for filling in information about improvement in performance envisaged by implementing the action. Instructions for calculating this are provided in Action guidelines of Annexure.
F16: FINANCE INFORMATION | G16: These are last set of rows to fill in basic financial details to implement the Action like basic block cost estimates, O&M expenses and revenue generation. Instructions for calculating this are provided in Action guidelines of Annexure.
D19: I | E19: Access and coverage
E21: 1 | F21: Data improvement measures
D22: Learn more | E22: Deactivate | F22: Household survey to assess water supply services | Z22: ='Perf assessment'!U40 -> 0
D23: Baseline | F23: - Present number of households in city | G23: Numbers | H23: =Population!$E$31 -> 7941
D24: Improvement | F24: - Percentage of households for which survey is to be conducted | G24: %
F25: - Periodic updation time of survey | G25: Number of years
D26: Finance | E26: Finance | F26: - Per household cost of survey | G26: Rs./ Household
F27: - Cost of updating the survey | G27: Rs.lakhs/ updation
D28: Learn more | E28: Activate | F28: Computerise water supply records | G28: 2015 | H28: 2016 | Z28: ='Perf assessment'!U41 -> TRUE
D29: Finance | F29: - Total cost of computerisation of records (lump-sum) | G29: Rs. lakhs | H29: =35*(1+Inflation1)^2 -> 40.0715
F30: - Annual recurring cost for updating the records | G30: Rs. lakhs/ annum | H30: 1
E33: 2 | F33: Process/Policy improvement measures
D34: Learn more | E34: Deactivate | F34: Process improvement for new water supply connection applications | Z34: ='Perf assessment'!U43 -> TRUE
D35: Learn more | E35: Deactivate | F35: Policy for providing individual water connections in slums | Z35: ='Perf assessment'!U44 -> TRUE
E38: 3 | F38: Existing system improvement measures
D39: Learn more | E39: Deactivate | F39: Regularise unauthorised water supply connections | Z39: ='Perf assessment'!U46 -> TRUE
D40: Baseline | F40: - Estimated percentage of households with unauthorised water supply connections in city | G40: % | H40: ='WSS info'!$G$147 -> 0
F41: - Estimated percentage of households with unauthorised water supply connections in slums | G41: % | H41: ='WSS info'!$G$148 -> 0
D42: Improvement | F42: - Percentage of unauthorised connections to be regularised with improvement measures | G42: %
D43: Finance | F43: - Penalty charges to be levied for regularisation of connections | G43: Rs/ connection
D44: Learn more | E44: Deactivate | F44: Increase connections using existing water supply distribution network | G44: 2013 | H44: 2015 | Z44: ='Perf assessment'!U47 -> TRUE
D45: Baseline | F45: - Inhabited area served by distribution network as compared to total inhabited area | G45: Sq.kms. | H45: =CONCATENATE('WSS info'!$G$86," / ",'WSS info'!$G$37) -> 3 / 1.35
F46: - Households served by individual water supply connections as compared to total households in city | G46: Number | H46: =CONCATENATE(SUM('WSS info'!$G$92:$G$100)," / ",Population!$E$31) -> 8078 / 7941
D47: Improvement | F47: - Additional connections to be given in non-slum households | G47: Number | H47: 500
F48: - Additional connections to be given in slum households | G48: Number
D49: Learn more | E49: Deactivate | F49: Convert stand posts/public taps into group connections | G49: 2013 | H49: 2013 | Z49: ='Perf assessment'!U48 -> TRUE
D50: Baseline | F50: - Present number of public taps and stand posts | G50: Number | H50: ='WSS info'!$F$114 -> 40
D51: Improvement | F51: - Stand posts and public taps to be converted to group/ individual connections | G51: Number | H51: 20
E54: 4 | F54: Create new infrastructure
D55: Learn more | E55: Deactivate | F55: Lay new water supply distribution network | G55: 2015 | H55: 2017 | Z55: ='Perf assessment'!U50 -> 0
D56: Baseline | F56: - Inhabited area served by distribution network as compared to total inhabited area | G56: Area served/total area in Sq.kms. | H56: =CONCATENATE('WSS info'!$G$86," / ",'WSS info'!$G$37) -> 3 / 1.35
F57: - Existing length of distribution network | G57: Kms | H57: ='WSS info'!$G$85 -> 45
F58: - Households served by individual water supply connections as compared to total households in city | G58: HHs served/ total HHs | H58: =CONCATENATE(SUM('WSS info'!$G$92:$G$100)," / ",Population!$E$31) -> 8078 / 7941
D59: Improvement | F59: - Increase in length of new distribution network | G59: Km | H59: 11
F60: - Additional area to be covered with new distribution network | G60: Sq. km | H60: 2
F61: - New connections that can be given by laying distribution network in non-slum areas | G61: Number | H61: 1500
D62: Finance | F62: - Block cost to lay distribution network | G62: Rs lakhs/ km | H62: 20
F63: - O&M expenses to maintain new distribution network | G63: % of CapEx/year | H63: 0.05
D64: Learn more | E64: Deactivate | F64: Lay internal infrastructure of water supply lines in slums | G64: 2013 | H64: 2015 | Z64: ='Perf assessment'!U51 -> 0
D65: Baseline | F65: - Existing slum settlements with water supply network | G65: Number | H65: ='WSS info'!G87 -> 0
F66: - Households served by individual water supply connections as compared to total households in slums | G66: HHs served/ total HHs | H66: =CONCATENATE(SUM('WSS info'!$G$97:$G$100)," / ",Population!$E$30) -> 12 / 358
D67: Improvement | F67: - Slum settlements to be connected with internal water supply lines | G67: Number | H67: 2
F68: - New connections that can be given by laying internal water supply line in slums | G68: Number | H68: 342
D69: Finance | F69: - Block cost for providing water supply infrastructure in slums | G69: Rs/ Household
F70: - O&M expenses to maintain new water supply infrastructure | G70: % of CapEx/year
D73: II | E73: Service levels and quality
E75: 1 | F75: Process/Policy improvement measures
D76: Learn more | E76: Deactivate | F76: Improve water supply quality surveillance | Z76: ='Perf assessment'!U57 -> FALSE
E79: 2 | F79: Existing system improvement measures
D80: Learn more | E80: Deactivate | F80: Increase continuity of water supply services | Z80: ='Perf assessment'!U59 -> TRUE
D81: Baseline | F81: - Duration of water supplied in a day presently | G81: Hours/ day | H81: ='WSS info'!G152 -> 1.5
F82: - Days of water supplied in a month presently | G82: Days/ month | H82: ='WSS info'!G153 -> 28
D83: Improvement | F83: - Duration of water supply targeted in a day | G83: Hours/ day
F84: - Days of water supply targeted in a month | G84: Days/ month
D85: Finance | F85: - Total capital expenses incurred to increase water supply continuity, if any (lump-sum) | G85: Rs. lakhs
F86: - O&M expenses incurred, if any | G86: % of CapEx/ annum
D87: Learn more | E87: Deactivate | F87: Repair existing water treatment plant to improve water quality | Z87: ='Perf assessment'!U60 -> 0
D88: Baseline | F88: - Functional capacity of water treatment plant as compared to total installed capacity of treatment plant | G88: MLD | H88: =CONCATENATE('WSS info'!G62," / ",'WSS info'!G61) -> 4.56 / 5.7
F89: - Quality of water supplied presently | G89: % | H89: =IFERROR('WSS info'!G158/'WSS info'!G157,0) -> 1
D90: Improvement | F90: - Non-functional capacity of treatment plant to be repaired and made functional | G90: MLD
F91: - Targeted level of water quality to be achieved | G91: %
D92: Finance | F92: - Capital cost incurred to repair treatment plant and improve water quality, if any (lump-sum) | G92: Rs. lakhs
F93: - Additional expenses incurred for improving water quality like regular quality tests, procuring more chemicals etc. | G93: Rs/ month
D94: Learn more | E94: Deactivate | F94: Treatment of untreated supply ground water | Z94: ='Perf assessment'!U61 -> 0
D95: Baseline | F95: - Quantity of untreated ground water supplied by ULB presently | G95: MLD | H95: ='WSS info'!$G$67 -> 0
D96: Improvement | F96: - Additional quantity of ground water to be treated | G96: MLD
D97: Finance | F97: - Block cost to treat ground water | G97: Rs/ MLD
E100: 3 | F100: Create new infrastructure
F101: Augment water supply sources | Z101: ='Perf assessment'!U63 -> 0
D102: Baseline | F102: - Quantity of water produced presently | G102: MLD | H102: ='WSS info'!G50 -> 5.83
D103: Learn more | E103: Deactivate | F103: Augment water supply - Own surface water
D104: Improvement | F104: - Capacity of additional/new water source to be augmented | G104: MLD
F105: - Annual usage increment of additional water augmented (Note: Utilisation capacity of water source shall increase with population growth) | G105: MLD increase/ year
D106: Finance | F106: - Block cost to augment the source | G106: Rs. lakhs/ MLD
F107: - O&M expenses of the source | G107: % of CapEx/ annum
D108: Learn more | E108: Deactivate | F108: Augment water supply - Ground water
D109: Improvement | F109: - Additional/new ground water capacity to be augmented | G109: MLD
F110: - Annual usage increment of additional water capacity augmented (Note: Abstraction of ground water shall increase with population growth) | G110: MLD increase/ year
D111: Finance | F111: - Block cost to augment the source | G111: Rs. lakhs/ MLD
F112: - O&M expenses of the ground water source | G112: % of CapEx/ annum
D113: Learn more | E113: Deactivate | F113: Augment water supply - Buy additional treated bulk water
D114: Improvement | F114: - Additional bulk water sanctioned/allocated for ULB | G114: MLD
F115: - Annual increment in actual drawl of water allocated | G115: MLD increase/ year
D116: Finance | F116: - Capital cost incurred, if any (lump-sum) | G116: Rs. lakhs
F117: - O&M expenses if incurred | G117: % of CapEx/ annum
F118: - Cost to buy treated bulk water | G118: Rs/ MLD
D119: Learn more | E119: Deactivate | F119: Augment water supply - Buy additional raw bulk water
D120: Improvement | F120: - Additional bulk buy sanctioned/allocated for ULB | G120: MLD
F121: - Annual increment in actual drawl of water allocated | G121: MLD increase/ year
D122: Finance | F122: - Capital cost incurred, if any (lump-sum) | G122: Rs. lakhs
F123: - O&M expenses incurred, if any | G123: % of CapEx/ annum
F124: - Cost to buy raw bulk water | G124: Rs/ MLD
D125: Learn more | E125: Deactivate | F125: Expand/replace water supply transmission network | Z125: ='Perf assessment'!U64 -> 0
D126: Improvement | F126: - Expansion/replacement of transmission network | G126: Kms
D127: Finance | F127: - Block cost to lay transmission network | G127: Rs lakhs/ km
F128: - O&M expenses | G128: % of CapEx/ annum
D129: Learn more | E129: Deactivate | F129: Construct/augment water treatment plant | Z129: ='Perf assessment'!U65 -> 0
D130: Baseline | F130: - Aggregate installed capacity of existing water treatment plants in ULB | G130: MLD | H130: ='WSS info'!$G$61 -> 5.7
F131: - Quantity of untreated surface water supplied presently | G131: MLD | H131: ='WSS info'!$G$68 -> 0
D132: Improvement | F132: - Additional/new treatment capacity to be augmented | G132: MLD
D133: Finance | F133: - Block to cost to augment treatment capacity | G133: Rs lakhs / MLD
F134: - O&M expenses | G134: % of CapEx/ annum
D135: Learn more | E135: Deactivate | F135: Construct/augment water storage capacity | Z135: ='Perf assessment'!U66 -> 0
D136: Baseline | F136: - Aggregate existing water storage capacity | G136: % | H136: ='WSS info'!$G$81 -> 1.81
F137: - Surplus/(deficit) in storage capacity | G137: MLD | H137: ='WSS info'!G81-'WSS info'!F71*(1-'WSS info'!G76)*1/3 -> 0.01421533333
D138: Improvement | F138: - Additional/new storage capacity to be augmented | G138: MLD
D139: Finance | F139: - Block costs to construct storage reserviors | G139: Rs lakhs/ ML
F140: - O&M expenses | G140: % of CapEx/ annum
D144: III | E144: Efficiency in service operations
E146: 1 | F146: Data improvement measures
D147: Learn more | E147: Deactivate | F147: Conduct water audit | G147: 2014 | H147: 2015 | Z147: ='Perf assessment'!U72 -> TRUE
D148: Finance | F148: - Total cost to conduct water audit (lump-sum) | G148: Rs. lakhs | H148: 9
D149: Learn more | E149: Deactivate | F149: Conduct energy audit | Z149: ='Perf assessment'!U73 -> TRUE
D150: Finance | F150: - Total cost to conduct energy audit (lump-sum) | G150: Rs. lakhs
D151: Learn more | E151: Deactivate | F151: Install bulk flow meters | Z151: ='Perf assessment'!U74 -> TRUE
D152: Improvement | F152: - New bulk flow meters to be installed | G152: Numbers
D153: Finance | F153: - Block cost for installation of bulk flow meters | G153: Rs ./meters
F154: - Annual recurring cost for meters | G154: % of CapEx/ annum
D155: Learn more | E155: Deactivate | F155: Map water supply and wastewater network | Z155: ='Perf assessment'!U75 -> TRUE
D156: Improvement | F156: - Periodic updation time of maps | G156: Number of years
D157: Finance | F157: - Total cost of mapping water and wastewater network (lump-sum) | G157: Rs. lakhs
F158: - Cost of updating the maps | G158: Rs. lakhs/ updation
D159: Learn more | E159: Deactivate | F159: Conduct Hydraulic modelling | Z159: ='Perf assessment'!U76 -> TRUE
D160: Finance | F160: - Total cost of conducting hydraulic modeling exercise in city (lump-sum) | G160: Rs. lakhs
D161: Learn more | E161: Deactivate | F161: Conduct Utilities survey (asset mapping) | Z161: ='Perf assessment'!U77 -> FALSE
D162: Improvement | F162: - Periodic updation time of survey | G162: Number of years
D163: Finance | F163: - Total cost of conducting survey (lump-sum) | G163: Rs. lakhs
F164: - Cost of updation the survey | G164: Rs.lakhs/ updation
E167: 2 | F167: Process/Policy improvement measures
D168: Learn more | E168: Deactivate | F168: Improve processes for regular checking of water losses | Z168: ='Perf assessment'!U79 -> TRUE
D169: Learn more | E169: Deactivate | F169: Policy to introduce universal consumer meters | Z169: ='Perf assessment'!U80 -> 0
D170: Learn more | E170: Deactivate | F170: Improve processes for management of consumer complaints | Z170: ='Perf assessment'!U81 -> TRUE
E173: 3 | F173: Existing system improvement measures
D174: Learn more | E174: Deactivate | F174: Reduce losses in trunk main transmission network | Z174: ='Perf assessment'!U83 -> 0
D175: Baseline | F175: - Current level of transmission losses | G175: % | H175: ='WSS info'!$G$56 -> 0.05
D176: Improvement | F176: - Targeted level of transmission losses | G176: %
D177: Finance | F177: - Total CapEx for loss reduction (lump-sum) | G177: Rs. lakhs
D178: Learn more | E178: Deactivate | F178: Reduce losses at water treatment plant | Z178: ='Perf assessment'!U84 -> 0
D179: Baseline | F179: - Current level of treatment losses | G179: % | H179: ='WSS info'!$G$63 -> 0.02
D180: Improvement | F180: - Targeted level of treatment losses | G180: %
D181: Finance | F181: - CapEx for improvement in treatment plant efficiency (lump-sum) | G181: Rs. lakhs
D182: Learn more | E182: Deactivate | F182: Reduce losses in treated water transmission network | Z182: ='Perf assessment'!U85 -> 0
D183: Baseline | F183: - Current level of transmission losses | G183: % | H183: ='WSS info'!$G$76 -> 0.02
D184: Improvement | F184: - Targeted level of transmission losses | G184: %
D185: Finance | F185: - Total CapEx for loss reduction (lump-sum) | G185: Rs. lakhs
F186: Reduce losses in water supply distribution
D187: Baseline | F187: - Current level of losses in water supply distribution | G187: % | H187: ='WSS info'!$G$146 -> 0.15
F188: - Reduction in distribution losses after implementation of corrective measures | G188: % | H188: =$H$187-((IF($E$195="Activate",$H$196,0))+(IF($E$198="Activate",$H$200,0))+(IF($E$189="Activate",$H$190,0))+(IF($E$192="Activate",$H$193,0))) -> 0.15
D189: Learn more | E189: Deactivate | F189: Refurbishment of water storage reservoirs | Z189: ='Perf assessment'!U86 -> 0
D190: Improvement | F190: - Possible reduction in distribution losses through refurbishment of storage reservoirs (ESRs and GSRs) | G190: %
D191: Finance | F191: - Cost of carrying out of the activity (lump-sum) | G191: Rs. lakhs
D192: Learn more | E192: Deactivate | F192: Improvement in water supply distribution network | Z192: ='Perf assessment'!U87 -> 0
D193: Improvement | F193: - Possible reduction in distribution losses through improvement in distribution network | G193: %
D194: Finance | F194: - Cost of carrying out of the activity (lump-sum) | G194: Rs. lakhs
D195: Learn more | E195: Deactivate | F195: Plugging of leakages at valves | Z195: ='Perf assessment'!U88 -> 0
D196: Improvement | F196: - Possible reduction in distribution losses through plugging of leakages at valves | G196: %
D197: Finance | F197: - Total cost of carrying out of this activity (lump-sum) | G197: Rs. lakhs
D198: Learn more | E198: Deactivate | F198: Replacement of service line connections | Z198: ='Perf assessment'!U89 -> 0
D199: Improvement | F199: - Number of service line connections to be replaced | G199: Numbers
F200: - Possible reduction in distribution losses through replacement of these service line connections | G200: %
D201: Finance | F201: - Block cost for replacing service line connections | G201: Rs. /connection
D202: Learn more | E202: Deactivate | F202: Reduce free water supply | Z202: ='Perf assessment'!U90 -> FALSE
D203: Baseline | F203: - Current number of free connections | G203: Numbers | H203: ='WSS info'!$F$113 -> 0
F204: - Current share of free connections as compared to total water supply connections | G204: % | H204: =IFERROR(H203/('WSS info'!$F$115-'WSS info'!$F$114),0) -> 0
D205: Improvement | F205: - Targeted share of free water supply connections | G205: %
D206: Learn more | E206: Deactivate | F206: Repair non-functional metered water supply connections | Z206: ='Perf assessment'!U91 -> 0
D207: Improvement | F207: Type of connections | G207: No. of non-functional meters | H207: No. of meters to be repaired
F208: - Domestic non-slum connections | G208: =SUM('WSS info'!F120:F123)-SUM('WSS info'!G120:G123) -> 0
F209: - Domestic slum connections | G209: =SUM('WSS info'!F125:F128)-SUM('WSS info'!G125:G128) -> 0
F210: - Commercial/institutional connections | G210: =SUM('WSS info'!F130:F133)-SUM('WSS info'!G130:G133) -> 0
F211: - Others connections | G211: =SUM('WSS info'!F135:F138)-SUM('WSS info'!G135:G138) -> 0
F212: - Group connections in slums | G212: ='WSS info'!F140-'WSS info'!G140 -> 0
D213: Finance | F213: - Block cost to repair a non-functional meter | G213: Rs. / meter
F214: - Percentage share of repairing cost to be borne by Beneficiary | G214: %
D215: Learn more | E215: Deactivate | F215: Improve consumer grievance redressal system | Z215: ='Perf assessment'!U92 -> TRUE
D216: Baseline | F216: - Current level of consumer grievance redressal (percentage complaints resolved in 24 hours) | G216: % | H216: =IFERROR('WSS info'!$G$163/'WSS info'!$G$162,0) -> 0.9523809524
D217: Improvement | F217: - Targeted level of consumer grievance redressal | G217: %
D218: Finance | F218: - One time cost of improvement in the system for recording and solving complaints (lump-sum) | G218: Rs. lakhs
E221: 4 | F221: Create new infrastructure
D222: Learn more | E222: Deactivate | F222: Metering of consumer water supply connections | Z222: ='Perf assessment'!U94 -> 0
F223: i) Domestic non-slum connections
D224: Baseline | F224: - Present number of residential non-slum connections | G224: Numbers | H224: =SUM('WSS info'!F92:F95) -> 5918
F225: - Current percentage of metered connections | G225: % | H225: =IFERROR(SUM('WSS info'!$F$120:$F$123)/SUM('WSS info'!$F$92:$F$95),0) -> 0
D226: Improvement | F226: - Targeted percentage of connections to be metered | G226: %
D227: Finance | F227: - Block cost of meter | G227: Rs./ meter
F228: - Percentage cost of meter to be borne by Beneficiary | G228: %
F229: ii) Domestic slum connections
D230: Baseline | F230: - Present number of residential slum connections | G230: Numbers | H230: =SUM('WSS info'!F97:F100) -> 12
... 54 more rows

Sheet WW Plan
C2: PERFORMANCE ASSESSMENT SYSTEM PROJECT
C4: =IFERROR(CONCATENATE("SANITATION IMPROVEMENT PLAN FOR ", UPPER('General info'!E30), " CITY, ", 'General info'!E21, - 'General info'!E22),"PERFORMANCE IMPROVEMENT PLAN") -> SANITATION IMPROVEMENT PLAN FOR WAI CITY, 2015-2024
F6: MODULE II: ACTION PLANNING
C8: ACTION PLAN FOR WASTEWATER SERVICES
A9: Click | C9: Access and coverage | G9: Service levels and quality | M9: Efficiency in service operations | P9: WW Plan'!E338 | S9: Financial sustainability
B10: Instructions for using this sheet: | F10: Action Planning is a process that aims to consolidate various dimensions of problem solving into output based tangible Action Plan. The planning objectives identified in 'Performance Assessment' sheet are set of actions that need to be implemented in a city for improving service delivery. These planning objectives are essentially individual actions that would be calibrated as output based tangile targets in this sheet. A set of these calibrated actions will form an implementation plan for ULB across ten years of plan period. Hence, this Action Plan must evolve through an iterative process of identifying appropriate actions, phasing and financing pattern. To facilitate this process, all the actions are compiled in an easy to use tabular structure along with pictorial graphs to show its impact simultaneously. These graphs display collective impact of all the actions in each theme (Access and Coverage, Service Levels and Quality, Efficiency in Service Operations and Financial Sustainability) in terms of performance improvement (dark coloured area graphs) and financial requirement (translucent coloured area graphs). The tabular structure for each Action has following components:
F11: LINK FOR ACTION GUIDELINE | G11: This is a hyperlinked cell placed on top most left corner of table. It leads to another sheet of Annexure, where detailed guidelines are provided to explain an action with assumptions to be considered for calibrating it.
F12: ACTIVATE/ DEACTIVATE ACTION | G12: A simple drop-down switch is provided on top left corner of table (besides learn more) to 'Activate/Deactivate' an action. By activating switch, the corresponding action can be included in the proposed Action Plan. Light blue colour of box indicates actions prioritised in Performance assessment sheet. The colour turns to dark blue if action is actually activated. Any action can be activated irrespective of whether they were prioritised earlier or not (i.e. box being grey or light blue; colour is only indicative)
F13: PHASING OF ACTIONS | G13: These two cells on top most right corner of table turn blue when an action is activated. User has to fill in implementation period of the action. First cell is for starting year of action and second cell is for completing year of action.
F14: BASELINE INFORMATION | G14: These are first set of rows in a table displaying important background information about the Action. It will facilitate decision making for user.
F15: IMPROVEMENT INFORMATION | G15: Next set of rows are for filling in information about improvement in performance envisaged by implementing the action. Instructions for calculating this are provided in Action guidelines of Annexure.
F16: FINANCE INFORMATION | G16: These are last set of rows to fill in basic financial details to implement the Action like basic block cost estimates, O&M expenses and revenue generation. Instructions for calculating this are provided in Action Guidelines of Annexure.
D19: I | E19: Access and coverage
E21: 1 | F21: Data improvement measures
D22: Learn more | E22: Deactivate | F22: Household survey to assess wastewater services | G22: 2017 | H22: 2018 | Z22: ='Perf assessment'!U128 -> 0
D23: Baseline | F23: - Number of households in city | G23: Numbers | H23: =Population!$E$31 -> 7941
D24: Improvement | F24: - Percentage of households for which survey is to be conducted | G24: % | H24: 1
F25: - Periodic updation time of survey | G25: Number of years
D26: Finance | F26: - Per household cost of survey | G26: Rs./ Household | H26: 15
F27: - Cost of updating the survey | G27: Rs.lakhs/updation
D28: Learn more | E28: Deactivate | F28: Surveys and monitoring of open defecation sites | Z28: ='Perf assessment'!U129 -> 0
D29: Improvement | F29: - Periodic updation time of survey | G29: Number of years
D30: Finance | F30: - Total cost to conduct the survey (lump-sum) | G30: Rs. lakhs
F31: - Cost of updating the survey | G31: Rs.lakhs/updation
D32: Learn more | E32: Deactivate | F32: Computerise wastewater records | G32: 2013 | H32: 2015 | Z32: ='Perf assessment'!U130 -> 0
D33: Finance | F33: - Total cost of computerisation of records (lump-sum) | G33: Rs. lakhs
F34: - Annual recurring cost for updating the records | G34: Rs. lakhs/annum
E37: 2 | F37: Process/Policy improvement measures
D38: Learn more | E38: Deactivate | F38: Policy for providing sanitation services in slums | Z38: ='Perf assessment'!U132 -> 0
E41: 3 | F41: Existing system improvement measures
D42: Learn more | E42: Activate | F42: Improve condition of existing individual toilets by providing safe sanitation disposal system | G42: 2015 | H42: 2017 | Z42: ='Perf assessment'!U134 -> 0
D43: Baseline | G43: Non-slum household | H43: Slum household
F44: - Number of households with unsafe open/ closed drains for effluent disposal | G44: ='WSS info'!F257 -> 3816 | H44: ='WSS info'!G257 -> 189
F45: - Number of households with unsafe pit latrines and open/ closed drains | G45: ='WSS info'!F258 -> 211 | H45: ='WSS info'!G258 -> 2
F46: - Total number of households with unsafe sanitation disposal system | G46: =G44+G45 -> 4027 | H46: =H44+H45 -> 191
D47: Improvement | F47: - Of the total households with unsafe sanitation disposal system, number of households to be upgraded to safe system | G47: 4027 | H47: 191
F48: Specify details safe sanitation disposal systems for upgradation of toilets:
F49: - Onsite sanitation system with septic tanks connected to soak pits for effluent disposal (%) | G49: 1 | H49: 1
F50: - Onsite sanitation system with septic tanks connected to settled sewer for effluent disposal (%)
F51: - Sewered sanitation system linked to existing sewerage network(%)
F52: - Sewered sanitation system linked to new sewerage network to be proposed (%) | G52: =1-(G49+G50+G51) -> 0 | H52: =1-(H49+H50+H51) -> 0
D53: Finance | F53: - Block cost of upgrading pit toilets to onsite septic tanks (Rs/ toilet) | G53: =((1+Inflation1)^2)*1112*15000/(G47+H47) -> 4527.485064
F54: - Block cost of upgrading effluent disposal system to soak pits (Rs/ toilet) | G54: =(1+Inflation1)^2*2573*1000/G47 -> 731.5191706
F55: - Block cost of upgradation by connecting to sewerage or settled sewer network (NOTE : Rs/ toilet for constructing connection chamber; do not consider connection cost here) | G55: =(1+Inflation1)^2*2573*1000/G47 -> 731.5191706
F56: - Percentage cost of upgradation to be borne Beneficiaries | G56: 1 | H56: 1
D57: Learn more | E57: Activate | F57: Improve condition of existing Community toilets | Z57: ='Perf assessment'!U135 -> 0
F58: Super-structure | G58: 2015 | H58: 2017
D59: Baseline | G59: Non-slum household | H59: Slum household
F60: - Number of non-functional community toilet seats as compared to total toilet seats (Non-functional seats / total seats) | G60: =CONCATENATE(IF('WSS info'!$F$292="",0,'WSS info'!$F$292)," / ",'WSS info'!$F$291) -> 45 / 253 | H60: =CONCATENATE(IF('WSS info'!$G$292="",0,'WSS info'!$G$292)," / ",'WSS info'!$G$291) -> 0 / 12
F61: - Average number of households dependent per toilet seat | G61: ='WW calcu'!E114 -> 10 | H61: ='WW calcu'!E131 -> 0
D62: Improvement | F62: - Number of non-functional toilet seats to be refurbished | G62: 45 | H62: 0
F63: - Targeted average number of households to be dependent per toilet seat (Note: For equity considerations, apply same dependency for slum and non-slum household) | G63: 10
D64: Finance | F64: - Block cost to refurbish a toilet seat | G64: Rs./seat | H64: =((1+Inflation1)^2)*3*15*10^5/(G62+H62) -> 114490
F65: - O&M expenses to maintain a refurbished toilet seat, henceforth | G65: Rs./seat/month | H65: =5000/8 -> 625
F66: - Estimated revenue generation from refurbishing a toilet seat for ULB, if converted to pay and use | G66: Rs./seat/month
F67: Sub-structure : sanitation disposal system | G67: 2015 | H67: 2017
D68: Baseline | F68: - Number of community toilet blocks connected to unsafe pits/ leach pits/ other systems as compared to total blocks | G68: Non-slum household | H68: Slum household
G69: =CONCATENATE(IF('WSS info'!$F$297="",0,'WSS info'!$F$297)," / ",'WSS info'!$F$290) -> 46 / 46 | H69: =CONCATENATE(IF('WSS info'!$G$297="",0,'WSS info'!$G$297)," / ",'WSS info'!$G$290) -> 2 / 2
D70: Improvement | F70: - Number of community toilet blocks with unsafe disposal system to be upgraded to safe sanitation disposal system | G70: 46 | H70: 2
F71: Specify details of toilet blocks to be upgraded to safe disposal systems:
F72: - Onsite sanitation system with septic tanks connected to soak pits for effluent disposal (%)
F73: - Onsite sanitation system with septic tanks connected to settled sewer for effluent disposal (%) | G73: 1 | H73: 1
F74: - Sewered sanitation system linked to existing sewerage network (%)
F75: - Sewered sanitation system linked to new sewerage network to be proposed (%) | G75: =1-(G72+G73+G74) -> 0 | H75: =1-(H72+H73+H74) -> 0
D76: Finance | F76: - Block cost of upgrading unsafe community toilet blocks to onsite septic tanks with soak pits | G76: Rs./toilet block
F77: - Block cost of upgrading unsafe community toilet blocks to onsite septic tanks with settled sewer connection | G77: Rs./toilet block
F78: - Block cost of upgrading unsafe community toilet blocks by connecting to sewered system | G78: Rs./toilet block
D79: Learn more | E79: Deactivate | F79: Improve condition of existing Public toilets | Z79: ='Perf assessment'!U136 -> 0
F80: Super-structure | G80: 2013 | H80: 2014
D81: Baseline | F81: - Number of non-functional public toilet seats as compared to total toilet seats (Non-functional seats/total seats) | G81: Numbers | H81: =CONCATENATE(IF('WSS info'!$F$303="",0,'WSS info'!$F$303)," / ",'WSS info'!$F$302) -> 0 / 22
D82: Improvement | F82: - Number of non-functional toilet seats to be refurbished | G82: Numbers
D83: Finance | F83: - Block cost to refurbish a toilet seat | G83: Rs./seat
F84: - O&M expenses to maintain a refurbished toilet seat, henceforth | G84: Rs./seat/month
F85: - Estimated revenue generation from refurbishing a toilet seat for ULB, if converted to pay and use | G85: Rs./seat/month
F86: Sub-structure : sanitation disposal system
D87: Baseline | F87: - Number of public toilet blocks connected to unsafe pits/leach pits/other systems as compared to total blocks | G87: Numbers | H87: =CONCATENATE(IF('WSS info'!$F$308="",0,'WSS info'!$F$308)," / ",'WSS info'!$F$301) -> 0 / 4
D88: Improvement | F88: - Number of public toilet blocks with unsafe disposal system to be upgraded to safe sanitation disposal system | G88: Numbers
F89: Specify details of toilet blocks to be upgraded to safe disposal systems:
F90: - Onsite sanitation system with septic tanks connected to soak pits for effluent disposal
F91: - Onsite sanitation system with septic tanks connected to settled sewer for effluent disposal
F92: - Sewered sanitation system linked to existing sewerage network
F93: - Sewered sanitation system linked to new sewerage network to be proposed | H93: =1-(H90+H91+H92) -> 1
D94: Finance | F94: - Block cost of upgrading unsafe community toilet blocks to onsite septic tanks with soak pits | G94: Rs./toilet block
F95: - Block cost of upgrading unsafe community toilet blocks to onsite septic tanks with settled sewer connection | G95: Rs./toilet block
F96: - Block cost of upgrading unsafe public toilet blocks by connecting to sewered system | G96: Rs./toilet block
D97: Learn more | E97: Deactivate | F97: Refurbishment of exisiting septic tanks in city | G97: 2015 | H97: 2019 | Z97: ='Perf assessment'!U137 -> 0
D98: Baseline | G98: Non-slum household | H98: Slum household
F99: - Number of community and public toilets connected to septic tanks for on-site sanitation disposal | G99: ='WSS info'!F296+'WSS info'!G296+'WSS info'!F307:G307 -> 0
F100: - Number of individual toilets connected to septic tanks for on-site sanitation disposal | G100: ='WSS info'!F256+'WSS info'!F257 -> 4240 | H100: ='WSS info'!G256+'WSS info'!G257 -> 189
D101: Improvement | F101: - Number of communty and public toilet septic tanks to be refurbished
F102: - Number of individual toilet septic tanks to be refurbished | G102: =ROUNDUP(0.1*G100,0) -> 424 | H102: =ROUNDUP(0.1*H100,0) -> 19
D103: Finance | F103: - Block cost to refurbish community/ public toilet (Rs./block)
F104: - Block cost to refurbish an individual toilet (Rs.toilet) | G104: =2753*1000/(G100+H100) -> 621.5850079
F105: - Percentage cost of individual toilet refurbishment to be borne by Beneficiaries
D106: Learn more | E106: Deactivate | F106: Information, education and communication (IEC) campaigns for sanitation awareness | Z106: ='Perf assessment'!U138 -> 0
D107: Finance | F107: - Total cost for IEC campaign (lump sum) | G107: Rs. lakhs
E110: 4 | F110: Create new infrastructure
D111: Learn more | E111: Activate | F111: Construct new individual toilets | Z111: ='Perf assessment'!U140 -> 0
D112: Baseline | G112: Non-slum household | H112: Slum household
F113: - Number of households with individual toilet facilities as compared to total households | G113: =CONCATENATE(IF('WSS info'!F286="",0,'WSS info'!F286)," / ",Population!$E$29) -> 4451 / 7583 | H113: =CONCATENATE(IF('WSS info'!G286="",0,'WSS info'!G286)," / ",Population!$E$30) -> 191 / 358
F114: - Number of households dependent on exisitng community toilet facilities | G114: ='WW calcu'!E125 -> 2080 | H114: ='WW calcu'!E142 -> 0
D115: Improvement | F115: - Number of households to be provided with new individual toilet facilities | G115: =7583-4451 -> 3132 | H115: =358-191 -> 167
F116: - Number of these households to replace community toilet using households
F117: Individual toilets connected to on-site sanitation (septic tanks) system with soak pits
D118: Baseline | F118: - Number of existing individual toilets with this disposal system | G118: ='WSS info'!F256 -> 424 | H118: ='WSS info'!G256 -> 0
D119: Improvement | F119: - Percentage of new individual toilets to be provided with this disposal system
F120: - Number of households to be provided with new individual toilet facilities | G120: =ROUND(G119*$G$115,0) -> 0 | H120: =ROUND(H119*$H$115,0) -> 0
D121: Finance | F121: - Block cost to construct an individual toilet with septic tank and soak pit (Rs/toilet)
F122: - Percentage cost of toilet construction to be borne by Benecifiary
F123: Individual toilets connected to on-site sanitation (septic tanks) system with settled sewer | G123: 2015 | H123: 2019
D124: Improvement | F124: - Percentage of new individual toilets to be provided with this disposal system | G124: 1 | H124: 1
F125: - Number of new individual toilets to be constructed | G125: =ROUND(G124*$G$115,0) -> 3132 | H125: =ROUND(H124*$H$115,0) -> 167
D126: Finance | F126: - Block cost to construct an individual toilet with septic tank (Rs/toilet) (Note : Cost for settled sewer connection to be included in action - 'Lay new settled sewer for wastewater conveyance' ) | G126: =((1+Inflation1)^2)*30000*2093/(G125) -> 22952.83238
F127: - Percentage cost of toilet construction to be borne by Benecifiary | G127: 0.8 | H127: 0.8
F128: Individual toilets connected to off-site sanitation system with conventional sewerage network
D129: Baseline | F129: - Number of existing individual toilets with this disposal system | G129: ='WSS info'!G234 -> 0 | H129: ='WSS info'!G235 -> 0
D130: Improvement | F130: - Number of new individual toilets to be constructed with sewerage network | G130: =G115-G120-G125 -> 0 | H130: =H115-H120-H125 -> 0
F131: Mention details of sewerage network to be connected:
F132: - Connect to households already having sewerage connection (%)
F133: - Connect to existing sewerage with new connection (%)
F134: - Connect to new sewerage network (to be proposed) (%) | G134: =IF(G130>0,1-(G133+G132),0) -> 0 | H134: =IF(H130>0,1-(H133+H132),0) -> 0
D135: Finance | F135: - Block cost to construct an individual toilet (Rs/toilet) (Note : Cost for sewerage connection to be included in action - 'Expand or lay new sewerage network for wastewater conveyance')
F136: - Percentage cost of toilet construction to be borne by Benecifiary
D137: Learn more | E137: Deactivate | F137: Construct new group toilets | Z137: ='Perf assessment'!U167 -> 0
D138: Improvement | G138: Non-slum household | H138: Slum household
F139: - Number of new group toilets to be constructed
F140: - Average number of households to share one group toilet (HHs/toilet)
F141: - Total number of households to be served by group toilets
F142: - Number of these households to replace households using existing community toilets
F143: Group toilets connected to on-site sanitation (septic tanks) system with soak pits
D144: Improvement | F144: - Percentage of new group toilets to be connected with this disposal system
F145: - Number of these group toilets | G145: =(G144*$G$139) -> 0 | H145: =(H144*$H$139) -> 0
D146: Finance | F146: - Block cost to construct a group toilet with septic tank and soak pit (Rs/toilet)
F147: - Percentage cost of toilet construction to be borne by group of benecifiaries for a toilet
F148: Group toilets connected to on-site sanitation (septic tanks) system with settled sewer
D149: Improvement | F149: - Percentage of new group toilets to be connected with this disposal system
F150: - Number of these group toilets | G150: =(G149*$G$139) -> 0 | H150: =(H149*$H$139) -> 0
D151: Finance | F151: - Block cost to construct a group toilet with septic tank (Rs/toilet) (Note : Cost for settled sewer connection to be included in action - 'Lay new settled sewer for wastewater conveyance' )
F152: - Percentage cost of toilet construction to be borne by group of benecifiaries for a toilet
F153: Group toilets connected to off-site sanitation system with conventional sewerage network
D154: Improvement | F154: - Number of new group toilets to be constructed with sewerage network | G154: =G139-G145-G150 -> 0 | H154: =H139-H145-H150 -> 0
F155: Mention details of sewerage network to be connected:
F156: - Connect to households already having sewerage connection (%)
F157: - Connect to existing sewerage with new connection (%)
F158: - Connect to new sewerage network (to be proposed) (%) | G158: =IF(G154>0,1-(G157+G156),0) -> 0 | H158: =IF(H154>0,1-(H157+H156),0) -> 0
D159: Finance | F159: - Block cost to construct a group toilet (Rs/toilet) (Note : Cost for sewerage connection to be included in action - 'Expand or lay new sewerage network for wastewater conveyance')
F160: - Percentage cost of toilet construction to be borne by group of benecifiaries for a toilet
D161: Learn more | E161: Deactivate | F161: Construct new community toilet blocks | Z161: ='Perf assessment'!U142 -> 0
D162: Baseline | G162: Non-slum household | H162: Slum household
F163: - Number of existing community toilet blocks | G163: ='WSS info'!F290 -> 46 | H163: ='WSS info'!G290 -> 2
F164: - Total number of toilet seats in these blocks | G164: ='WSS info'!F291 -> 253 | H164: ='WSS info'!G291 -> 12
D165: Improvement | F165: - Number of new community toilet blocks to be constructed
F166: - Total number of toilet seats to be constructed in these blocks
F167: - Average number of households to be dependent per community toilet seat (Households/toilet seat)
D168: Finance | F168: - O&M expenses to maintain a community toilet seat | G168: Rs./seat/month
F169: - Estimated revenue generation from new toilets for ULB, if converted to pay and use | G169: Rs./seat/month
F170: Community toilets connected to on-site sanitation (septic tanks) system with soak pits
D171: Finance | F171: - Percentage of new toilet seats to be provided with this disposal system
F172: - Number of new community toilet seats to be constructed | G172: =G171*G166 -> 0 | H172: =H171*H166 -> 0
F173: - Block cost to construct a community toilet seat with septic tank and soak pit | G173: Rs./seat
F174: Community toilets connected to on-site sanitation (septic tanks) system with settled sewer
D175: Finance | F175: - Percentage of new toilet seats to be provided with this disposal system
F176: - Number of new community toilet seats to be constructed | G176: =G166*G175 -> 0 | H176: =H175*H166 -> 0
F177: - Block cost to construct a community toilet seat with septic tank and settled sewer connection | G177: Rs./seat
F178: Community toilets connected to off-site sanitation system with conventional sewerage network
D179: Finance | F179: - Percentage of new toilet seats to be provided with this disposal system | G179: =1-(G175+G171) -> 1 | H179: =1-(H175+H171) -> 1
F180: - Number of new community toilet seats to be constructed | G180: =G179*G166 -> 0 | H180: =H179*H166 -> 0
F181: - Block cost to construct a community toilet seat with sewerage connection | G181: Rs./seat
D182: Learn more | E182: Activate | F182: Construct new public toilet blocks | Z182: ='Perf assessment'!U143 -> 0
D183: Baseline | F183: - Number of existing public toilet blocks | G183: Blocks | H183: ='WSS info'!F301 -> 4
F184: - Total number of toilet seats in these blocks | G184: Seats | H184: ='WSS info'!$F$302 -> 22
D185: Improvement | F185: - Number of new public toilet blocks to be constructed | G185: Blocks | H185: 3
F186: - Total number of toilet seats to be constructed in these blocks | G186: Seats | H186: 11
F187: - Estimated number of users expected per public toilet seat | G187: Users/seat/day | H187: 40
D188: Finance | F188: - O&M expenses to maintain a public toilet seat | G188: Rs./seat/month
F189: - Estimated revenue generation from new toilets for ULB, if converted to pay and use | G189: Rs./seat/month
F190: Public toilets connected to on-site sanitation (septic tanks) system with soak pits
D191: Finance | F191: - Percentage of new toilet seats to be provided with this disposal system | G191: %
F192: - Number of new public toilet seats to be constructed | G192: Seats | H192: =H191*$H$186 -> 0
F193: - Block cost to construct a public toilet seat with septic tank and soak pit | G193: Rs./seat
F194: Public toilets connected to on-site sanitation (septic tanks) system with settled sewer | G194: 2015 | H194: 2016
D195: Finance | F195: - Percentage of new toilet seats to be provided with this disposal system | G195: % | H195: 1
F196: - Number of new public toilet seats to be constructed | G196: Seats | H196: =H195*$H$186 -> 11
F197: - Block cost to construct a public toilet seat with septic tank and settled sewer connection | G197: Rs./seat | H197: =((1+Inflation1)^2)*19*10^5/H196 -> 197755.4545
F198: Public toilets connected to off-site sanitation system with conventional sewerage network
D199: Finance | F199: - Percentage of new toilet seats to be provided with this disposal system | G199: % | H199: =1-(H191+H195) -> 0
F200: - Number of new public toilet seats to be constructed | G200: Seats | H200: =H199*$H$186 -> 0
F201: - Block cost to construct a public toilet seat with sewerage connection | G201: %
D205: II | E205: Service levels and quality
E207: 1 | F207: Process/Policy improvement measures
D208: Learn more | E208: Deactivate | F208: Process improvement for new sewerage connection applications | Z208: ='Perf assessment'!U149 -> 0
D209: Learn more | E209: Deactivate | F209: Improve processes for regular cleaning of drains and sewers | Z209: ='Perf assessment'!U150 -> 0
E212: 2 | F212: Existing system improvement measures
D213: Learn more | E213: Deactivate | F213: Regularise unauthorised sewerage connections | Z213: ='Perf assessment'!U152 -> 0
D214: Baseline | F214: - Estimated households with unauthorised sewerage connections in city | G214: % | H214: ='WSS info'!$E$238 -> 0
D215: Improvement | F215: - Targeted reduction in unauthorised connections with improvement measures | G215: %
D216: Finance | F216: - Penalty charges to be levied for regularisation of connections | G216: Rs./ connection
D217: Learn more | E217: Deactivate | F217: Increase connections using existing sewerage network | Z217: ='Perf assessment'!U153 -> 0
D218: Baseline | F218: - Percentage of inhabited area served by sewerage network | G218: =IFERROR('WSS info'!$G$228/'WSS info'!$G$37,0) -> 0
F219: - Households connected to sewerage network (households connected/total households) | G219: Non-slum household | H219: Slum household
... 196 more rows

Sheet SW Plan
C2: PERFORMANCE ASSESSMENT SYSTEM PROJECT
C4: =IFERROR(CONCATENATE("SANITATION IMPROVEMENT PLAN FOR ", UPPER('General info'!E30), " CITY, ", 'General info'!E21, - 'General info'!E22),"PERFORMANCE IMPROVEMENT PLAN") -> SANITATION IMPROVEMENT PLAN FOR WAI CITY, 2015-2024
F6: MODULE II: ACTION PLANNING
C8: ACTION PLAN FOR SOLID WASTE MANAGEMENT SERVICES
A9: Click | C9: Access and coverage | G9: Service levels and quality | M9: Efficiency in service operations | S9: Financial sustainability
B10: Instructions for using this sheet: | F10: Action Planning is a process that aims to consolidate various dimensions of problem solving into output based tangible Action Plan. The planning objectives identified in 'Performance Assessment' sheet are set of actions that need to be implemented in city for improving service delivery. These planning objectives are essentially individual actions that would be calibrated as output based tangile targets in this sheet. A set of these calibrated actions will form an implementation plan for ULB across ten years of plan period. Hence, this Action Plan must evolve through an iterative process of identifying appropriate actions, phasing and financing pattern. To facilitate this process, all the actions are compiled in an easy to use tabular structure along with pictorial graphs to show its impact simultaneously. These graphs display collective impact of all the actions in each theme (Access and Coverage, Service Levels and Quality, Efficiency in Service Operations and Financial Sustainability) in terms of performance improvement (dark coloured area graphs) and financial requirement (translucent coloured area graphs). The tabular structure for each Action has following components:
F11: LINK FOR ACTION GUIDELINE | G11: This is a hyperlinked cell placed on top most left corner of table. It leads to another sheet of Annexure, where detailed guidelines are provided to explain an action with assumptions to be considered for calibrating it.
F12: ACTIVATE/ DEACTIVATE ACTION | G12: A simple drop-down switch is provided on top left corner of table (besides learn more) to 'Activate/Deactivate' an action. By activating switch, the corresponding action can be included in the proposed Action Plan. Light blue colour of box indicates actions prioritised in Performance assessment sheet. The colour turns to dark blue if action is actually activated. Any action can be activated irrespective of whether they were prioritised earlier or not (i.e. box being grey or light blue; colour is only indicative.
F13: PHASING OF ACTIONS | G13: These two cells on top most right corner of table turn blue when an action is activated. User has to fill in implementation period of the action. First cell is for starting year of action and second cell is for completing year of action.
F14: BASELINE INFORMATION | G14: These are first set of rows in a table displaying important background information about the Action. It will facilitate decision-making for user.
F15: IMPROVEMENT INFORMATION | G15: Next set of rows are for filling in information about improvement in performance envisaged by implementing the action. Instructions for calculating this are provided in Action Guidelines of Annexure.
F16: FINANCE INFORMATION | G16: These are last set of rows to fill in basic financial details to implement the Action like basic block cost estimates, O&M expenses and revenue generation. Instructions for calculating this are provided in Action guidelines of Annexure.
D19: I | E19: Access and coverage
E21: 1 | F21: Data improvement measures
D22: Learn more | E22: Deactivate | F22: Household survey to assess solid waste services | G22: 2017 | H22: 2018 | Z22: ='Perf assessment'!U209 -> 0
D23: Baseline | F23: - Present number of households in city | G23: Numbers | H23: =Population!$E$31 -> 7941
D24: Improvement | F24: - Percentage of households for which survey is to be conducted | G24: % | H24: 1
F25: - Periodic updation time of survey | G25: Number of years
D26: Finance | F26: - Per household cost of survey | G26: Rs./Household | H26: 15
F27: - Cost of updating the survey | G27: Rs.lakhs/ updation
D28: Learn more | E28: Deactivate | F28: Computerise solid waste records | G28: 2013 | H28: 2015 | Z28: ='Perf assessment'!U210 -> 0
D29: Finance | F29: - Total cost of computerisation of records (lump-sum) | G29: Rs. lakhs | H29: 10.33
F30: - Annual recurring cost for updating the records | G30: Rs. lakhs/annum
E33: 2 | F33: Process/Policy improvement measures
D34: Learn more | E34: Activate | F34: Prepare management plan to efficiently deploy manpower and resources | Z34: ='Perf assessment'!U212 -> 0
E37: 3 | F37: Existing system improvement measures
D38: Learn more | E38: Deactivate | F38: Procure equipments for street sweeping and drain cleaning | Z38: ='Perf assessment'!U214 -> 0
D39: Baseline | F39: - Average frequency of cleaning drains in a month | G39: Number/month | H39: ='WSS info'!$G$395 -> 26
F40: - Average frequency of sweeping a street in a month | G40: Number/month | H40: ='WSS info'!$G$396 -> 26
D41: Improvement | F41: - Improvement in frequency of drain cleaning | G41: Number/month
F42: - Improvement in frequency of street sweeping | G42: Number/month
D43: Finance | F43: - Total cost to carry out the activity (lump-sum) | G43: Rs. lakhs
F44: - O&M expenses | G44: % of CapEx/annum
D45: Learn more | E45: Deactivate | F45: Procure equipments for door to door solid waste collection (collection bins, ghantagaadis, containerised cycle rickshaw, handcarts etc.) | Z45: ='Perf assessment'!U215 -> 0
F46: i) Procure equipments for already served areas to improve efficiency of services
D47: Finance | F47: - Total cost to carry out the activity (lump-sum) | G47: Rs. lakhs
F48: - O&M expenses | G48: % of CapEx/annum
F49: ii) Procure equipments for unserved areas to increase coverage
D50: Improvement | F50: - Estimated additional Non-slum households that can be served (Note: Do not account for additional households already included in other actions of 'Additional staff' and 'Private contract') | G50: Numbers
F51: - Estimated additional Slum households that can be served | G51: Numbers
D52: Finance | F52: - Total cost to carry out the activity (lump-sum) | G52: Rs. lakhs
F53: - O&M expenses | G53: % of CapEx/ annum
D54: Learn more | E54: Activate | F54: Information, education and communication (IEC) campaign for awareness of solid waste management | G54: 2015 | H54: 2019 | Z54: ='Perf assessment'!U216 -> 0
D55: Finance | F55: - Cost of conducting IEC campaign (lump-sum) | G55: Rs. lakhs | H55: =((1+Inflation1)^2)*30 -> 34.347
E58: 4 | F58: Create new infrastructure
D59: Learn more | E59: Deactivate | F59: Employ additional staff on contract for improving solid waste service delivery | Z59: ='Perf assessment'!U218 -> 0
D60: Finance | F60: - Average monthly salary of a staff member | G60: Rs./person/month
F61: - Other contingency expenditure to be incurred | G61: Rs./person/month
F62: i) Employ staff in already served areas to improve efficiency of services
D63: Improvement | F63: - Additional staff members to be deployed | G63: Numbers
D64: Finance | F64: - Total cost incurred to deploy additional staff | G64: Rs. lakhs/annum | H64: =((H60*H63*12)+(H61*H63))/10^5 -> 0
F65: ii) Employ staff in unserved areas to increase coverage
D66: Improvement | F66: - Additional staff members to be deployed | G66: Numbers
F67: - Estimated additional Non-slum households that can be served (Note: Do not account for additional households already included in other actions of 'Procure equipments' and 'Private contract') | G67: Numbers
F68: - Estimated additional Slum households that can be served | G68: Numbers
D69: Finance | F69: - Total cost incurred to deploy staff | G69: Rs lakhs/ annum
D70: Learn more | E70: Activate | F70: Engage with private service providers to provide solid waste services | Z70: ='Perf assessment'!U219 -> 0
F71: i) Contract for already served areas to improve efficiency of services
D72: Finance | F72: Furnish details as applicable in the contract:
F73: - Monthly royalty to be paid to service provider by ULB, if any | G73: Rs. lakhs/month
F74: - Monthly royalty to be paid to ULB by service provider, if any | G74: Rs. lakhs/month
F75: - Other contingency expenditure to be incurred by ULB | G75: Rs. lakhs/month
F76: ii) Contract for unserved areas to increase coverage | G76: 2015 | H76: 2024
D77: Improvement | F77: - Estimated additional Non-slum households that can be served (Note: Do not account additional households already included in other actions of 'Procure equipments' and 'Additional staff') | G77: Numbers | H77: =1300-351 -> 949
F78: - Estimated additional Slum households that can be served | G78: Numbers | H78: =1300*0.27 -> 351
D79: Finance | F79: Furnish details as applicable in the contract:
F80: - Monthly royalty to be paid to service provider by ULB, if any | G80: Rs. lakhs/month | H80: =((1+Inflation2)^2)*1.2 -> 1.323
F81: - Monthly royalty to be paid to ULB by service provider, if any | G81: Rs. lakhs/month
F82: - Other contingency expenditure to be incurred by ULB | G82: Rs. lakhs/month
D87: II | E87: Service levels and quality
E89: 1 | F89: Data improvement measures
D90: Learn more | E90: Deactivate | F90: Track movement of solid waste transportation vehicles to achieve optimum operational efficiency | Z90: ='Perf assessment'!U225 -> 0
D91: Finance | F91: - Cost of procuring and installing global positioning system (GPS) system in all vehicles (lump-sum) | G91: Rs. lakhs
F92: - O&M expenses | G92: % of CapEx/ annum
E95: 2 | F95: Process/Policy improvement measures
D96: Learn more | E96: Deactivate | F96: Improve processes for maintaining daily logs of solid waste across SWM value chain | Z96: ='Perf assessment'!U227 -> 0
D97: Learn more | E97: Activate | F97: Process for periodic estimation of recyclable material collected by recyclers | Z97: ='Perf assessment'!U228 -> 0
E100: 3 | F100: Existing system improvement measures
D101: Learn more | E101: Activate | F101: Segregation of collection and transportation of solid waste | G101: 2015 | H101: 2015 | Z101: ='Perf assessment'!U230 -> 0
D102: Baseline | F102: - Households and establishments where solid waste is stored and collected in segregated manner | G102: Numbers | H102: ='WSS info'!$G$380+'WSS info'!$G$381 -> 0
D103: Improvement | F103: - Solid waste to be stored and collected in segregated manner from households already covered by door to door collection | G103: Numbers | H103: 1200
F104: - Solid waste to be stored and collected in segregated manner from households not served by door to door collection presently | G104: Numbers
D105: Finance | F105: - Total cost to carry out the activity (lump-sum) | G105: Rs. lakhs | H105: =((1+Inflation1)^2)*0.84 -> 0.961716
D106: Learn more | E106: Deactivate | F106: Improve solid waste collection through secondary storage bins | Z106: ='Perf assessment'!U231 -> 0
D107: Baseline | F107: - Households dependent on secondary storage bins for solid waste collection (Note: These households are not served by doorstep solid waste collection) | G107: Numbers | H107: ='WSS info'!G385+'WSS info'!G386 -> 1047
F108: - Existing number of secondary bins | G108: Numbers | H108: ='WSS info'!$G$387 -> 75
F109: - Aggregate storage capacity of all the bins | G109: Metric tonnes | H109: ='WSS info'!$G$388 -> 37.5
D110: Improvement | F110: Improve coverage with existing storage capacity:
F111: - Additional households that can be served with existing storage capacity (Note: If these households are converted to doorstep collection, then write number of such households with a negative sign) | G111: Numbers
F112: Improve coverage with additional storage capacity:
F113: - Procure additional bins for secondary collection system | G113: Numbers
F114: - Additional storage capacity created | G114: Metric tonnes
F115: - Additional households served with new storage capacity (Note: These households should not be included for doorstep collection system) | G115: Numbers
D116: Finance | F116: - Cost of procuring secondary storage bin | G116: Rs./bin
F117: - Cost for asphalt/concrete flooring for each bin | G117: Rs./bin
F118: - O&M expenses | G118: % of CapEx/annum
D119: Learn more | E119: Deactivate | F119: Install litter bins at public places | Z119: ='Perf assessment'!U232 -> 0
D120: Improvement | F120: - Number of litter bins to be procured | G120: Numbers
D121: Finance | F121: - Block cost to procure a litter bin | G121: Rs./bin
F122: - O&M expenses | G122: % of CapEx/annum
D123: Learn more | E123: Deactivate | F123: Improve collection efficiency of solid waste with existing vehicles | Z123: ='Perf assessment'!U233 -> 0
D124: Baseline | F124: - Existing number of transportation vehicles with ULB | G124: Numbers | H124: =SUM('WSS info'!$F$412:$F$412) -> 1
D125: Improvement | F125: - Number of vehicles that require repair and maintenance | G125: Numbers
F126: Increase trips of solid waste transportation vehicles: | G126: Present number of trips/ day | H126: Maximum trips possible/day
F127: - Three wheeler auto tippers | G127: ='WSS info'!G416 -> 3
F128: - Tipper trucks | G128: ='WSS info'!G417 -> 0
F129: - Tractor trailer | G129: ='WSS info'!G418 -> 2
F130: - Mini lorries | G130: ='WSS info'!G419 -> 0
F131: - Dumper placers | G131: ='WSS info'!G420 -> 0
F132: - Trucks | G132: ='WSS info'!G421 -> 1
D133: Finance | F133: - Total cost of repairing vehicles (lump-sum) | G133: Rs. lakhs
F134: - Additional O&M expenses for an additional trip | G134: Rs./trip/day
D135: Learn more | E135: Deactivate | F135: Repair existing solid waste processing plant | G135: 2013 | H135: 2013 | Z135: ='Perf assessment'!U234 -> 0
D136: Baseline | F136: - Existing capacity of solid waste processing plant | G136: Metric tonnes/ day | H136: ='WSS info'!G431 -> 12
F137: - Existing functional capacity of processing plant | G137: Metric tonnes/ day | H137: ='WSS info'!G432 -> 0
D138: Improvement | F138: - Non-functional capacity of processing plant to be repaired and made functional | G138: Metric tonnes/ day
F139: - By-product derived from additional solid waste treated | G139: %
D140: Finance | F140: - Total cost of repairing the plant (lump-sum) | G140: Rs lakhs | H140: 2
F141: - Additional O&M expenses, if incurred | G141: Rs lakhs/ annum | H141: 11.4
F142: - Additional revenue generated by selling processed waste, if any | G142: Rs lakhs/ annum | H142: 1.8
E145: 4 | F145: Create new infrastructure
D146: Learn more | E146: Activate | F146: Procure new vehicles for solid waste collection and transportation | G146: 2015 | H146: 2015 | Z146: ='Perf assessment'!U236 -> 0
D147: Baseline | F147: - Maximum quantity of waste that can be transported with present vehicles of ULB | G147: Metric tonnes/day | H147: =SUMPRODUCT('WSS info'!$F$407:$F$412,'WSS info'!$G$407:$G$412,IF($E$123="Activate",'SW Plan'!$H$127:$H$132, $G$127:$G$132)) -> 12
D148: Improvement | F148: Aadditional vehicles to be procured: | G148: Number | H148: Capacity (Tonnes)
F149: - Three wheeler auto tippers | G149: 1 | H149: 0.5
F150: - Tipper trucks
F151: - Tractor trailer
F152: - Mini lorries
F153: - Dumper placers
F154: - Trucks
F155: Maximum trips possible in a day:
F156: - Three wheeler auto tippers | G156: Trips/ day | H156: 3
F157: - Tipper trucks | G157: Trips/ day
F158: - Tractor trailer | G158: Trips/ day
F159: - Mini lorries | G159: Trips/ day
F160: - Dumper placers | G160: Trips/ day
F161: - Trucks | G161: Trips/ day
D162: Finance | F162: - Total cost to procure all vehicles | G162: Rs lakhs | H162: =((1+Inflation1)^2)*3.5 -> 4.00715
F163: - O&M expenses | G163: % of CapEx/ annum | H163: 0.1
D164: Learn more | E164: Deactivate | F164: Construct new solid waste transfer station | Z164: ='Perf assessment'!U237 -> 0
D165: Baseline | F165: - Existing number of transfer station in ULB | G165: Numbers | H165: ='WSS info'!$G$389 -> 0
F166: - Aggregate storage capacity at all the transfer stations | G166: Metric tonnes/ day | H166: ='WSS info'!$G$390 -> 0
D167: Improvement | F167: - Additional transfer stations to be constructed | G167: Numbers
F168: - Aggregate additional storage capacity to be created | G168: Metric tonnes/day
D169: Finance | F169: - Cost to develop one site | G169: Rs lakhs/ site
F170: - O&M expenses | G170: % of CapEx/ annum
D171: Learn more | E171: Deactivate | F171: Install weigh bridges to quantify solid waste collected and transported | Z171: ='Perf assessment'!U238 -> 0
D172: Improvement | F172: - Number of weigh bridges to be installed | G172: Numbers
D173: Finance | F173: - Cost of Installation of one weigh bridge | G173: Rs. lakhs/unit
F174: - O&M expenses | G174: % of CapEx/ annum
D175: Learn more | E175: Deactivate | F175: Construct new solid waste processing plant | Z175: ='Perf assessment'!U239 -> 0
D176: Baseline | F176: - Existing capacity of solid waste processing plant | G176: Metric tonnes/day | H176: ='WSS info'!$G$431 -> 12
D177: Improvement | F177: - Construct new solid waste processing plant | G177: Metric tonnes/day
F178: - If city already has a processing plant, percentage of solid waste to be processed at this new facility | G178: %
F179: Details of by-products derived from solid waste processed at the plant:
F180: - Percentage of compost derived from solid waste | G180: %
F181: - Percentage of refuse-derive fuel (RDF)/fluff derived from solid waste | G181: %
F182: - Percentage of recyclable material segregated from solid waste reaching at the plant | G182: %
F183: - Year till when entire production of by-products shall be sold commercially | G183: Year
D184: Finance | F184: - Block cost to construct solid waste processing plant | G184: Rs. lakhs/Metric tonnes
F185: - Selling price of compost, if sold commercially by ULB | G185: Rs./Metric tonnes
F186: - Selling price of RDF/fluff, if sold commercially by ULB | G186: Rs./Metric tonnes
F187: - Selling price of recyclable material, if sold commercially by ULB | G187: Rs./Metric tonnes
F188: - O&M expenses to operate the plant | G188: % of CapEx/annum
D192: III | E192: Efficiency in service operations
E194: 1 | F194: Process/Policy improvement measures
D195: Learn more | E195: Deactivate | F195: Improve processes for management of consumer complaints | Z195: ='Perf assessment'!U245 -> 0
D196: Learn more | E196: Deactivate | F196: Process for allotment of government land for processing and disposal of solid waste | Z196: ='Perf assessment'!U246 -> 0
D197: Learn more | E197: Activate | F197: Process to obtain authorisation from concerned authorities and furnish annual report of compliance | Z197: ='Perf assessment'!U247 -> 0
D198: Learn more | E198: Deactivate | F198: Review of operating practices at scientific landfill sites to ensure compliance with MSW Rules 2000 | Z198: ='Perf assessment'!U248 -> 0
E201: 2 | F201: Existing system improvement measures
D202: Learn more | E202: Deactivate | F202: Improve consumer grievance redressal system | Z202: ='Perf assessment'!U250 -> 0
D203: Baseline | F203: - Current level of consumer grievance redressal (percentage complaints resolved in 24 hours) | G203: % | H203: =IFERROR('WSS info'!G401/'WSS info'!G400,0) -> 0.9736842105
D204: Improvement | F204: - Targeted level of consumer grievance redressal | G204: %
D205: Finance | F205: - One time cost of improvement in the system for recording and solving complaints (lump-sum) | G205: Rs. lakhs
E208: 3 | F208: Create new infrastructure
D209: Learn more | E209: Activate | F209: Construct sanitary landfill facility for solid waste disposal | G209: 2022 | H209: 2024 | Z209: ='Perf assessment'!U252 -> 0
D210: Baseline | F210: - Presence of sanitary landfill facility in city | G210: Yes / No | H210: ='WSS info'!$G$439 -> No
F211: - Remaining capacity of sanitary landfill site, if present | G211: Metric tonnes | H211: ='WSS info'!$G$441 -> 0
D212: Improvement | F212: - Construct new sanitary landfill facility | G212: Metric tonnes | H212: 20
D213: Finance | F213: - Total cost of construction of landfill site (lump-sum) | G213: Rs. lakhs | H213: =190*(1+Inflation1)^2 -> 217.531
F214: - O&M expenses | G214: % of CapEx/annum | H214: 0.02
D215: Learn more | E215: Deactivate | F215: Closure of existing dumping site in scientific manner as prescribed by MSW Rules 2000 | Z215: ='Perf assessment'!U253 -> 0
D216: Finance | F216: - Total cost of closing the site (lump-sum) | G216: Rs. lakhs
D220: IV | E220: Financial sustainability
E222: 1 | F222: Process/Policy improvement measures
D223: Learn more | E223: Deactivate | F223: Improve billing and collection of solid waste bills | Z223: ='Perf assessment'!U259 -> 0
E226: 2 | F226: Existing system improvement measures
D227: Learn more | E227: Deactivate | F227: Improve collection efficiency of solid waste charges and taxes | Z227: ='Perf assessment'!U261 -> 0
D228: Baseline | F228: - Present collection efficiency of current demand from solid waste related charges and taxes | G228: % | H228: =IFERROR('Finance info'!J195/'Finance info'!I195,0) -> 0
F229: - Present collection efficiency of solid waste related arrears | G229: % | H229: =IFERROR('Finance info'!J202/'Finance info'!I202,0) -> 0
D230: Improvement | F230: - Targeted level of current collection efficiency | G230: %
F231: - Targeted level of arrear collection efficiency | G231: %
D232: Finance | F232: - One time cost of improvement in collection system (if any, lump-sum) | G232: Rs. lakhs
E236: Customised actions
E239: Deactivate | F239: SW Customised action 1 | L239: Description of customised actions
D240: Baseline
D241: Improvement
D242: Finance | F242: - Revenue generation by implementing the action, if any (Rs.lakhs/yr)
F243: - Cost of carrying out of the activity (lump-sum) | G243: Rs. lakhs
... 7 more rows

Sheet Summary of CSP
C2: PERFORMANCE ASSESSMENT SYSTEM PROJECT
C4: =IFERROR(CONCATENATE("SANITATION IMPROVEMENT PLAN FOR ", UPPER('General info'!E30), " CITY, ", 'General info'!E21, - 'General info'!E22),"PERFORMANCE IMPROVEMENT PLAN") -> SANITATION IMPROVEMENT PLAN FOR WAI CITY, 2015-2024
C6: MODULE II: ACTION PLANNING
C8: SUMMARY OF CSP ACTION PLAN
A9: Click | C9: PAS performance indicators | G9: Standardised Service Level Benchmark Report
C10: Instructions for using this sheet:
C11: Improvement actions activated for each sector will have combined effect on performance of all the three sectors – Water Supply, Wastewater and Solid Waste Management. The impact of this Action Plan on service levels is assessed through a range of Performance Indicators. Key Performance Indicators (KPIs) are reported along with its corresponding Local Action Indicators (LAIs) for all four performance measurement themes. LAIs are essentially drilled down indicators, supplemented with main KPIs to establish contextual relevance. Definitions of all these performance indicators (KPIs and LAIs) are also provided alongside. To facilitate analysis of Action Plan impact, traffic light analysis is done across time series with respect to benchmark values of KPIs. An option is also provided to customise these benchmark values from default benchmarks, adopted from 'Standardised Service Level Benchmarks (SSLB)' of MoUD, GoI. KPIs specified by SSLB are also reported separately for all the years. This would also facilitate target setting exercise of future years, mandated by Thirteenth Finance Commission on the lines of SSLB.
Q13: Traffic light analysis of Key Performance Indicators
R14: Traffic light analysis based on KPI values compared against benchmark values
C16: NOTE:- TO CALCULATE FINANCE INDICATORS, PLEASE FILL 'MUNICIPAL FINANCE' SHEET FIRST FOR FOERCASTING OF BUSINESS AS USUAL SCENARIO OF MUNICIPAL FINANCE. | R16: Select method for fixing traffic light ranges | T16: Red | U16: Orange | V16: Green
R17: I. STANDARD SLB BENCHMARKS | T17: < 50% | U17: 50%-90% | V17: > 90%
B18: I | C18: PAS performance indicators | R18: Option I: Standard SLB benchmarks recommended by MoUD, GoI Option II: Customize KPI benchmarks as per your priorities
C19: View ranges for traffic light analysis of Key performance indicators
B20: A | C20: Performance of Water supply services | R20: Ranges for Water Supply KPIs | AA20: FALSE
AA21: 0
C22: Performance levels | D22: =D$220 -> 2014 | E22: =E$220 -> 2015 | F22: 2016 | G22: 2017 | H22: 2018 | I22: 2019 | J22: 2020 | K22: 2021 | L22: 2022 | M22: 2023 | N22: 2024 | AA22: 0.5
C23: Access and coverage | R23: SLB Benchmark | S23: Customise value | T23: Red | U23: Orange | V23: Green | AA23: 0.9
C24: Coverage of individual water supply connections in city | D24: ='WS calcu'!E170 -> 0.9564286614 | E24: ='WS calcu'!F170 -> 0.9563609667 | F24: ='WS calcu'!G170 -> 0.9564121518 | G24: ='WS calcu'!H170 -> 0.9563519195 | H24: ='WS calcu'!I170 -> 0.9564017632 | I24: ='WS calcu'!J170 -> 0.9563382757 | J24: ='WS calcu'!K170 -> 0.956386922 | K24: ='WS calcu'!L170 -> 0.9564342393 | L24: ='WS calcu'!M170 -> 0.9563569593 | M24: ='WS calcu'!N170 -> 0.9563923807 | N24: ='WS calcu'!O170 -> 0.9564219904 | R24: 1 | T24: =IF($R$17="II. CUSTOMIZE BENCHMARKS",$S24,$R24)*$AA$21 -> 0 | U24: =IF($R$17="II. CUSTOMIZE BENCHMARKS",$S24,$R24)*$AA$22 -> 0.5 | V24: =IF($R$17="II. CUSTOMIZE BENCHMARKS",$S24,$R24)*$AA$23 -> 0.9
C25: Number of households connected to water supply network with a private (not shared) service connection, as percentage of total households in city.
C26: Coverage of individual water supply connections in slum | D26: ='WS calcu'!E171 -> 0.03351955307 | E26: ='WS calcu'!F171 -> 0.03346734396 | F26: ='WS calcu'!G171 -> 0.03350738862 | G26: ='WS calcu'!H171 -> 0.0334569056 | H26: ='WS calcu'!I171 -> 0.03349592842 | I26: ='WS calcu'!J171 -> 0.03344706218 | J26: ='WS calcu'!K171 -> 0.03348511305 | K26: ='WS calcu'!L171 -> 0.03352220304 | L26: ='WS calcu'!M171 -> 0.03346367643 | M26: ='WS calcu'!N171 -> 0.03348882836 | N26: ='WS calcu'!O171 -> 0.03351325301 | R26: 1 | T26: =IF($R$17="II. CUSTOMIZE BENCHMARKS",$S26,$R26)*$AA$21 -> 0 | U26: =IF($R$17="II. CUSTOMIZE BENCHMARKS",$S26,$R26)*$AA$22 -> 0.5 | V26: =IF($R$17="II. CUSTOMIZE BENCHMARKS",$S26,$R26)*$AA$23 -> 0.9
C27: Number of households in slum settlements connected to water supply network with a private (not shared) service connection, as percentage of total slum household.
C28: Coverage of improved water supply services | D28: ='WS calcu'!E172 -> 0.9880367712 | E28: ='WS calcu'!F172 -> 0.9874946804 | F28: ='WS calcu'!G172 -> 0.9870892479 | G28: ='WS calcu'!H172 -> 0.9865783164 | H28: ='WS calcu'!I172 -> 0.9861975846 | I28: ='WS calcu'!J172 -> 0.9857121786 | J28: ='WS calcu'!K172 -> 0.9853540311 | K28: ='WS calcu'!L172 -> 0.9850056679 | L28: ='WS calcu'!M172 -> 0.9844802086 | M28: ='WS calcu'!N172 -> 0.9840812941 | N28: ='WS calcu'!O172 -> 0.9836927423
C29: Population with access to potable water supply (includes group connections, public taps and stand posts), as percentage of total population in city (as per JMP).
C30: Spatial coverage of water supply distribution network | D30: ='WS calcu'!E173 -> 0.8333333333 | E30: ='WS calcu'!F173 -> 0.8333333333 | F30: ='WS calcu'!G173 -> 0.8333333333 | G30: ='WS calcu'!H173 -> 0.8333333333 | H30: ='WS calcu'!I173 -> 0.8333333333 | I30: ='WS calcu'!J173 -> 0.8333333333 | J30: ='WS calcu'!K173 -> 0.8333333333 | K30: ='WS calcu'!L173 -> 0.8333333333 | L30: ='WS calcu'!M173 -> 0.8333333333 | M30: ='WS calcu'!N173 -> 0.8333333333 | N30: ='WS calcu'!O173 -> 0.8333333333
C31: Municipal area covered by water supply distribution network as percentage of total jurisdictional area of city.
C32: Unauthorised water supply connections | D32: ='WS calcu'!E131 -> 0 | E32: ='WS calcu'!F131 -> 0 | F32: ='WS calcu'!G131 -> 0 | G32: ='WS calcu'!H131 -> 0 | H32: ='WS calcu'!I131 -> 0 | I32: ='WS calcu'!J131 -> 0 | J32: ='WS calcu'!K131 -> 0 | K32: ='WS calcu'!L131 -> 0 | L32: ='WS calcu'!M131 -> 0 | M32: ='WS calcu'!N131 -> 0 | N32: ='WS calcu'!O131 -> 0
C33: Number of estimated illegal water supply connections as percentage of total water supply connections in city.
C34: Service levels and quality | R34: SLB Benchmark | S34: Customise value | T34: Red | U34: Orange | V34: Green
C35: Per capita supply of water at consumer end (lpcd) | D35: ='WS calcu'!E251 -> 120.6721837 | E35: ='WS calcu'!F251 -> 118.9260433 | F35: ='WS calcu'!G251 -> 117.229716 | G35: ='WS calcu'!H251 -> 115.5669901 | H35: ='WS calcu'!I251 -> 113.9644894 | I35: ='WS calcu'!J251 -> 112.4058229 | J35: ='WS calcu'!K251 -> 110.8892163 | K35: ='WS calcu'!L251 -> 109.41299 | L35: ='WS calcu'!M251 -> 107.7539679 | M35: ='WS calcu'!N251 -> 106.1326056 | N35: ='WS calcu'!O251 -> 104.5708631 | R35: =Population!$D$167 -> 70 | T35: =IF($R$17="II. CUSTOMIZE BENCHMARKS",$S35,$R35)*$AA$21 -> 0 | U35: =IF($R$17="II. CUSTOMIZE BENCHMARKS",$S35,$R35)*$AA$22 -> 35 | V35: =IF($R$17="II. CUSTOMIZE BENCHMARKS",$S35,$R35)*$AA$23 -> 63
C36: Total water supplied to consumers (authorised billed and unbilled residential consumers) expressed by population served per day.
C37: Continuity of water supply (hours/day) | D37: ='WS calcu'!E267 -> 1.4 | E37: ='WS calcu'!F267 -> 1.4 | F37: ='WS calcu'!G267 -> 1.4 | G37: ='WS calcu'!H267 -> 1.4 | H37: ='WS calcu'!I267 -> 1.4 | I37: ='WS calcu'!J267 -> 1.4 | J37: ='WS calcu'!K267 -> 1.4 | K37: ='WS calcu'!L267 -> 1.4 | L37: ='WS calcu'!M267 -> 1.4 | M37: ='WS calcu'!N267 -> 1.4 | N37: ='WS calcu'!O267 -> 1.4 | R37: 24 | T37: =IF($R$17="II. CUSTOMIZE BENCHMARKS",$S37,$R37)*$AA$21 -> 0 | U37: =IF($R$17="II. CUSTOMIZE BENCHMARKS",$S37,$R37)*$AA$22 -> 12 | V37: =IF($R$17="II. CUSTOMIZE BENCHMARKS",$S37,$R37)*$AA$23 -> 21.6
C38: Average number of hours of water supplied per day (number of hours in a week divided by days of supply in a week).
C39: Quality of water supplied | D39: ='WS calcu'!E268 -> 1 | E39: ='WS calcu'!F268 -> 1 | F39: ='WS calcu'!G268 -> 1 | G39: ='WS calcu'!H268 -> 1 | H39: ='WS calcu'!I268 -> 1 | I39: ='WS calcu'!J268 -> 1 | J39: ='WS calcu'!K268 -> 1 | K39: ='WS calcu'!L268 -> 1 | L39: ='WS calcu'!M268 -> 1 | M39: ='WS calcu'!N268 -> 1 | N39: ='WS calcu'!O268 -> 1 | R39: 1 | T39: =IF($R$17="II. CUSTOMIZE BENCHMARKS",$S39,$R39)*$AA$21 -> 0 | U39: =IF($R$17="II. CUSTOMIZE BENCHMARKS",$S39,$R39)*$AA$22 -> 0.5 | V39: =IF($R$17="II. CUSTOMIZE BENCHMARKS",$S39,$R39)*$AA$23 -> 0.9
C40: Percentage of water samples meeting CPHEEO potable water standards and sampling regime at treatment plant outlet and consumer points.
C41: Adequacy of water treatment capacity | D41: ='WS calcu'!E803 -> 1 | E41: ='WS calcu'!F803 -> 1 | F41: ='WS calcu'!G803 -> 1 | G41: ='WS calcu'!H803 -> 1 | H41: ='WS calcu'!I803 -> 1 | I41: ='WS calcu'!J803 -> 1 | J41: ='WS calcu'!K803 -> 1 | K41: ='WS calcu'!L803 -> 1 | L41: ='WS calcu'!M803 -> 1 | M41: ='WS calcu'!N803 -> 1 | N41: ='WS calcu'!O803 -> 1
C42: Aggregate functional capacity of all water treatment plants in city as compared to total raw water augmented.
C43: Adequacy of water storage capacity | D43: ='WS calcu'!E805 -> 1.01405564 | E43: ='WS calcu'!F805 -> 1.01405564 | F43: ='WS calcu'!G805 -> 1.01405564 | G43: ='WS calcu'!H805 -> 1.01405564 | H43: ='WS calcu'!I805 -> 1.01405564 | I43: ='WS calcu'!J805 -> 1.01405564 | J43: ='WS calcu'!K805 -> 1.01405564 | K43: ='WS calcu'!L805 -> 1.01405564 | L43: ='WS calcu'!M805 -> 1.01405564 | M43: ='WS calcu'!N805 -> 1.01405564 | N43: ='WS calcu'!O805 -> 1.01405564
C44: Aggregate capacity of all water storage reservoirs in city as compared to total water to be distributed (storage capacity should be one third of total water to be distributed).
C45: Per capita water supplied | D45: ='WS calcu'!E260 -> 156.224106 | E45: ='WS calcu'!F260 -> 153.9638609 | F45: ='WS calcu'!G260 -> 151.7680854 | G45: ='WS calcu'!H260 -> 149.6157952 | H45: ='WS calcu'!I260 -> 147.541454 | I45: ='WS calcu'!J260 -> 145.5238455 | J45: ='WS calcu'!K260 -> 143.5606735 | K45: ='WS calcu'!L260 -> 141.6497644 | L45: ='WS calcu'!M260 -> 139.5022259 | M45: ='WS calcu'!N260 -> 137.4034277 | N45: ='WS calcu'!O260 -> 135.3817971
C46: Total water supplied at source expressed by population served per day.
C47: Days of water supply in a month | D47: ='WS calcu'!E266 -> 28 | E47: ='WS calcu'!F266 -> 28 | F47: ='WS calcu'!G266 -> 28 | G47: ='WS calcu'!H266 -> 28 | H47: ='WS calcu'!I266 -> 28 | I47: ='WS calcu'!J266 -> 28 | J47: ='WS calcu'!K266 -> 28 | K47: ='WS calcu'!L266 -> 28 | L47: ='WS calcu'!M266 -> 28 | M47: ='WS calcu'!N266 -> 28 | N47: ='WS calcu'!O266 -> 28
C48: Number of days in a month that receive municipal water supply.
C49: Efficiency in service operations | R49: SLB Benchmark | S49: Customise value | T49: Red | U49: Orange | V49: Green
C50: Extent of Non-Revenue Water | D50: ='WS calcu'!E32 -> 0.2169075344 | E50: ='WS calcu'!F32 -> 0.2168259322 | F50: ='WS calcu'!G32 -> 0.2167467156 | G50: ='WS calcu'!H32 -> 0.2166691235 | H50: ='WS calcu'!I32 -> 0.2165943931 | I50: ='WS calcu'!J32 -> 0.2165217553 | J50: ='WS calcu'!K32 -> 0.2164511235 | K50: ='WS calcu'!L32 -> 0.2163824157 | L50: ='WS calcu'!M32 -> 0.216305251 | M50: ='WS calcu'!N32 -> 0.2162298903 | N50: ='WS calcu'!O32 -> 0.2161573492 | R50: 0.15 | T50: =IF($R$17="II. CUSTOMIZE BENCHMARKS",$S50,$R50)*$AA$23 -> 0.135 | U50: =IF($R$17="II. CUSTOMIZE BENCHMARKS",$S50,$R50)*$AA$22 -> 0.075 | V50: =IF($R$17="II. CUSTOMIZE BENCHMARKS",$S50,$R50)*$AA$21 -> 0
C51: Difference between total water produced and water sold (excludes physical losses, unauthorised and authorised unbilled consumption), as percentage of total water produced.
C52: Extent of functional metering of water supply connections | D52: ='WS calcu'!E296 -> 0 | E52: ='WS calcu'!F296 -> 0 | F52: ='WS calcu'!G296 -> 0 | G52: ='WS calcu'!H296 -> 0 | H52: ='WS calcu'!I296 -> 0 | I52: ='WS calcu'!J296 -> 0 | J52: ='WS calcu'!K296 -> 0 | K52: ='WS calcu'!L296 -> 0 | L52: ='WS calcu'!M296 -> 0 | M52: ='WS calcu'!N296 -> 0 | N52: ='WS calcu'!O296 -> 0 | R52: 1 | T52: =IF($R$17="II. CUSTOMIZE BENCHMARKS",$S52,$R52)*$AA$21 -> 0 | U52: =IF($R$17="II. CUSTOMIZE BENCHMARKS",$S52,$R52)*$AA$22 -> 0.5 | V52: =IF($R$17="II. CUSTOMIZE BENCHMARKS",$S52,$R52)*$AA$23 -> 0.9
C53: Number of water supply connections with functional meters as percentage of total water supply connections.
C54: Efficiency in redressal of customer complaints | D54: ='WS calcu'!E264 -> 0.9523809524 | E54: ='WS calcu'!F264 -> 0.9523809524 | F54: ='WS calcu'!G264 -> 0.9523809524 | G54: ='WS calcu'!H264 -> 0.9523809524 | H54: ='WS calcu'!I264 -> 0.9523809524 | I54: ='WS calcu'!J264 -> 0.9523809524 | J54: ='WS calcu'!K264 -> 0.9523809524 | K54: ='WS calcu'!L264 -> 0.9523809524 | L54: ='WS calcu'!M264 -> 0.9523809524 | M54: ='WS calcu'!N264 -> 0.9523809524 | N54: ='WS calcu'!O264 -> 0.9523809524 | R54: 0.8 | T54: =IF($R$17="II. CUSTOMIZE BENCHMARKS",$S54,$R54)*$AA$21 -> 0 | U54: =IF($R$17="II. CUSTOMIZE BENCHMARKS",$S54,$R54)*$AA$22 -> 0.4 | V54: =IF($R$17="II. CUSTOMIZE BENCHMARKS",$S54,$R54)*$AA$23 -> 0.72
C55: Number of water supply related complaints redressed within time stipulated in service charter of ULB as percentage of total water supply complaints.
C56: Water losses between source and treatment plant | D56: ='WS calcu'!E9 -> 0.05 | E56: ='WS calcu'!F9 -> 0.05 | F56: ='WS calcu'!G9 -> 0.05 | G56: ='WS calcu'!H9 -> 0.05 | H56: ='WS calcu'!I9 -> 0.05 | I56: ='WS calcu'!J9 -> 0.05 | J56: ='WS calcu'!K9 -> 0.05 | K56: ='WS calcu'!L9 -> 0.05 | L56: ='WS calcu'!M9 -> 0.05 | M56: ='WS calcu'!N9 -> 0.05 | N56: ='WS calcu'!O9 -> 0.05
C57: Quantum of water lost in transition between source to treatment plant as percentage of total water supplied.
C58: Water losses between treatment plant and distribution stations | D58: ='WS calcu'!E23 -> 0.02 | E58: ='WS calcu'!F23 -> 0.02 | F58: ='WS calcu'!G23 -> 0.02 | G58: ='WS calcu'!H23 -> 0.02 | H58: ='WS calcu'!I23 -> 0.02 | I58: ='WS calcu'!J23 -> 0.02 | J58: ='WS calcu'!K23 -> 0.02 | K58: ='WS calcu'!L23 -> 0.02 | L58: ='WS calcu'!M23 -> 0.02 | M58: ='WS calcu'!N23 -> 0.02 | N58: ='WS calcu'!O23 -> 0.02
C59: Quantum of water lost in transition between treatment plant to water distribution stations as percentage of total treated water supplied.
C60: Water losses between distribution stations and consumer end | D60: ='WS calcu'!E25 -> 0.15 | E60: ='WS calcu'!F25 -> 0.15 | F60: ='WS calcu'!G25 -> 0.15 | G60: ='WS calcu'!H25 -> 0.15 | H60: ='WS calcu'!I25 -> 0.15 | I60: ='WS calcu'!J25 -> 0.15 | J60: ='WS calcu'!K25 -> 0.15 | K60: ='WS calcu'!L25 -> 0.15 | L60: ='WS calcu'!M25 -> 0.15 | M60: ='WS calcu'!N25 -> 0.15 | N60: ='WS calcu'!O25 -> 0.15
C61: Quantum of water lost in transition between water distribution station to final consumption point (includes service connection leaks and unauthorised consumption), as percentage of total water distributed.
C62: Water supply connections with meters | D62: ='WS calcu'!E297 -> 0 | E62: ='WS calcu'!F297 -> 0 | F62: ='WS calcu'!G297 -> 0 | G62: ='WS calcu'!H297 -> 0 | H62: ='WS calcu'!I297 -> 0 | I62: ='WS calcu'!J297 -> 0 | J62: ='WS calcu'!K297 -> 0 | K62: ='WS calcu'!L297 -> 0 | L62: ='WS calcu'!M297 -> 0 | M62: ='WS calcu'!N297 -> 0 | N62: ='WS calcu'!O297 -> 0
C63: Number of water supply connections with meters (functional and non-functional), as percentage of total water supply connections.
C64: Financial sustainability | R64: SLB Benchmark | S64: Customise value | T64: Red | U64: Orange | V64: Green
C65: Efficiency in collection of water supply charges and taxes | D65: ='WS calcu'!E650 -> 0.8413071337 | E65: ='WS calcu'!F650 -> 0.8413071337 | F65: ='WS calcu'!G650 -> 0.8413071337 | G65: ='WS calcu'!H650 -> 0.8413071337 | H65: ='WS calcu'!I650 -> 0.8413071337 | I65: ='WS calcu'!J650 -> 0.8413071337 | J65: ='WS calcu'!K650 -> 0.8413071337 | K65: ='WS calcu'!L650 -> 0.8413071337 | L65: ='WS calcu'!M650 -> 0.8413071337 | M65: ='WS calcu'!N650 -> 0.8413071337 | N65: ='WS calcu'!O650 -> 0.8413071337 | R65: 0.9 | T65: =IF($R$17="II. CUSTOMIZE BENCHMARKS",$S65,$R65)*$AA$21 -> 0 | U65: =IF($R$17="II. CUSTOMIZE BENCHMARKS",$S65,$R65)*$AA$22 -> 0.45 | V65: =IF($R$17="II. CUSTOMIZE BENCHMARKS",$S65,$R65)*$AA$23 -> 0.81
C66: Total water supply revenues collected from current year demand as percentage of total current billed demand from water supply related taxes and charges
C67: Cost recovery in water supply services | D67: ='WS calcu'!E671 -> 0.7507969801 | E67: ='WS calcu'!F671 -> 0.8392097853 | F67: ='WS calcu'!G671 -> 0.8256831538 | G67: ='WS calcu'!H671 -> 0.8049156951 | H67: ='WS calcu'!I671 -> 0.7912043724 | I67: ='WS calcu'!J671 -> 0.7776325295 | J67: ='WS calcu'!K671 -> 0.7640757005 | K67: ='WS calcu'!L671 -> 0.7505453895 | L67: ='WS calcu'!M671 -> 0.7406907249 | M67: ='WS calcu'!N671 -> 0.7288118723 | N67: ='WS calcu'!O671 -> 0.7165901034 | R67: 1 | T67: =IF($R$17="II. CUSTOMIZE BENCHMARKS",$S67,$R67)*$AA$21 -> 0 | U67: =IF($R$17="II. CUSTOMIZE BENCHMARKS",$S67,$R67)*$AA$22 -> 0.5 | V67: =IF($R$17="II. CUSTOMIZE BENCHMARKS",$S67,$R67)*$AA$23 -> 0.9
C68: Total annual operating revenues from water supply taxes and charges (current billed demand) as compared to total operating expenses of water supply services.
C69: Unit production cost of water supply (Rs/kl) | D69: ='WS calcu'!E672 -> 2139.29331 | E69: ='WS calcu'!F672 -> 1920.310771 | F69: ='WS calcu'!G672 -> 1980.340014 | G69: ='WS calcu'!H672 -> 2061.345569 | H69: ='WS calcu'!I672 -> 2126.527271 | I69: ='WS calcu'!J672 -> 2193.976471 | J69: ='WS calcu'!K672 -> 2263.777359 | K69: ='WS calcu'!L672 -> 2336.017374 | L69: ='WS calcu'!M672 -> 2410.787335 | M69: ='WS calcu'!N672 -> 2488.181576 | N69: ='WS calcu'!O672 -> 2568.298082
C70: Total water supply operating expenditure as compared to total water produced by ULB.
C71: Per capita revenue expenditure | D71: ='WS calcu'!E673 -> 330.1850528 | E71: ='WS calcu'!F673 -> 291.9577478 | F71: ='WS calcu'!G673 -> 296.6515656 | G71: ='WS calcu'!H673 -> 304.3058003 | H71: ='WS calcu'!I673 -> 309.4307889 | I71: ='WS calcu'!J673 -> 314.7440347 | J71: ='WS calcu'!K673 -> 320.2422111 | K71: ='WS calcu'!L673 -> 325.92991 | L71: ='WS calcu'!M673 -> 331.0928189 | M71: ='WS calcu'!N673 -> 336.459122 | N71: ='WS calcu'!O673 -> 342.0173557
C72: Total water supply operating expenditure as compared to total population in ULB
C73: Per capita revenue income | D73: ='WS calcu'!E674 -> 416.2232282 | E73: ='WS calcu'!F674 -> 248.0247098 | F73: ='WS calcu'!G674 -> 254.159483 | G73: ='WS calcu'!H674 -> 260.5028705 | H73: ='WS calcu'!I674 -> 267.054557 | I73: ='WS calcu'!J674 -> 273.8344121 | J73: ='WS calcu'!K674 -> 280.8427092 | K73: ='WS calcu'!L674 -> 288.0865829 | L73: ='WS calcu'!M674 -> 294.9330373 | M73: ='WS calcu'!N674 -> 302.023805 | N73: ='WS calcu'!O674 -> 309.3519915
C74: Total water supply revenue income as compared to total population in ULB.
C75: Billed arrears to total billed demand | D75: ='WS calcu'!E665 -> 0.2935903211 | E75: ='WS calcu'!F665 -> 0.1870429422 | F75: ='WS calcu'!G665 -> 0.1647151001 | G75: ='WS calcu'!H665 -> 0.1606353032 | H75: ='WS calcu'!I665 -> 0.1599523178 | I75: ='WS calcu'!J665 -> 0.1598583682 | J75: ='WS calcu'!K665 -> 0.1598683623 | K75: ='WS calcu'!L665 -> 0.1598960879 | L75: ='WS calcu'!M665 -> 0.1596423877 | M75: ='WS calcu'!N665 -> 0.1596145904 | N75: ='WS calcu'!O665 -> 0.1596570412
C76: Total water supply billed demand from arrears as percentage of total billed demand (arrear and current) from water supply related taxes and charges.
C77: Collection efficiency of arrear demand | D77: ='WS calcu'!E655 -> 0.819846113 | E77: ='WS calcu'!F655 -> 0.819846113 | F77: ='WS calcu'!G655 -> 0.819846113 | G77: ='WS calcu'!H655 -> 0.819846113 | H77: ='WS calcu'!I655 -> 0.819846113 | I77: ='WS calcu'!J655 -> 0.819846113 | J77: ='WS calcu'!K655 -> 0.819846113 | K77: ='WS calcu'!L655 -> 0.819846113 | L77: ='WS calcu'!M655 -> 0.819846113 | M77: ='WS calcu'!N655 -> 0.819846113 | N77: ='WS calcu'!O655 -> 0.819846113
C78: Total water supply revenues collected from arrear demand as percentage of total arrear demand of water supply related taxes and charges.
B81: B | C81: Performance of Wastewater services | R81: Ranges for Wastewater KPIs
C83: Performance levels | D83: =D$220 -> 2014 | E83: =E$220 -> 2015 | F83: 2016 | G83: 2017 | H83: 2018 | I83: 2019 | J83: 2020 | K83: 2021 | L83: 2022 | M83: 2023 | N83: 2024
C84: Access and coverage | R84: SLB Benchmark | S84: Customise value | T84: Red | U84: Orange | V84: Green
C85: Coverage of households with individual and group toilets in city | D85: ='WW calcu'!E218 -> 0.5845611384 | E85: ='WW calcu'!F218 -> 0.6662461991 | F85: ='WW calcu'!G218 -> 0.7455836691 | G85: ='WW calcu'!H218 -> 0.8224719701 | H85: ='WW calcu'!I218 -> 0.8973870964 | I85: ='WW calcu'!J218 -> 0.9699997218 | J85: ='WW calcu'!K218 -> 0.9646516267 | K85: ='WW calcu'!L218 -> 0.9594496378 | L85: ='WW calcu'!M218 -> 0.9535131795 | M85: ='WW calcu'!N218 -> 0.9477600868 | N85: ='WW calcu'!O218 -> 0.9422843597 | R85: 1 | T85: =IF($R$17="II. CUSTOMIZE BENCHMARKS",$S85,$R85)*$AA$21 -> 0 | U85: =IF($R$17="II. CUSTOMIZE BENCHMARKS",$S85,$R85)*$AA$22 -> 0.5 | V85: =IF($R$17="II. CUSTOMIZE BENCHMARKS",$S85,$R85)*$AA$23 -> 0.9
C86: Number of households with access to individual and group toilets as percentage of total households in city.
C87: Coverage of households with individual and group toilets in slums | D87: ='WW calcu'!E219 -> 0.5335195531 | E87: ='WW calcu'!F219 -> 0.6236263736 | F87: ='WW calcu'!G219 -> 0.7127371274 | G87: ='WW calcu'!H219 -> 0.7973333333 | H87: ='WW calcu'!I219 -> 0.8815789474 | I87: ='WW calcu'!J219 -> 0.9611398964 | J87: ='WW calcu'!K219 -> 0.9565217391 | K87: ='WW calcu'!L219 -> 0.952020202 | L87: ='WW calcu'!M219 -> 0.9429280397 | M87: ='WW calcu'!N219 -> 0.9364303178 | N87: ='WW calcu'!O219 -> 0.9301204819 | R87: 1 | T87: =IF($R$17="II. CUSTOMIZE BENCHMARKS",$S87,$R87)*$AA$21 -> 0 | U87: =IF($R$17="II. CUSTOMIZE BENCHMARKS",$S87,$R87)*$AA$22 -> 0.5 | V87: =IF($R$17="II. CUSTOMIZE BENCHMARKS",$S87,$R87)*$AA$23 -> 0.9
C88: Number of households in slum settlements with access to individual and group toilets as percentage of total slum households.
C89: Coverage of households with improved sanitation facility in city | D89: ='WW calcu'!E223 -> 0.846492885 | E89: ='WW calcu'!F223 -> 0.9478140483 | F89: ='WW calcu'!G223 -> 1 | G89: ='WW calcu'!H223 -> 1 | H89: ='WW calcu'!I223 -> 1 | I89: ='WW calcu'!J223 -> 1 | J89: ='WW calcu'!K223 -> 1 | K89: ='WW calcu'!L223 -> 1 | L89: ='WW calcu'!M223 -> 1 | M89: ='WW calcu'!N223 -> 1 | N89: ='WW calcu'!O223 -> 1
C90: Number of households with access to some kind of toilet facility (individual and community toilet), as percentage of total households in city (as defined by Joint Monitoring Program
C91: Households resorting to open defecation in city | D91: ='WW calcu'!E225 -> 0.153507115 | E91: ='WW calcu'!F225 -> 0.05218595171 | F91: ='WW calcu'!G225 -> 0 | G91: ='WW calcu'!H225 -> 0 | H91: ='WW calcu'!I225 -> 0 | I91: ='WW calcu'!J225 -> 0 | J91: ='WW calcu'!K225 -> 0 | K91: ='WW calcu'!L225 -> 0 | L91: ='WW calcu'!M225 -> 0 | M91: ='WW calcu'!N225 -> 0 | N91: ='WW calcu'!O225 -> 0
C92: Number of households in city without any safe sanitation facility and resort to open defecation, as percentage of total households in city.
C93: Households dependent on community toilet facilities | D93: ='WW calcu'!E223-'WW calcu'!E213 -> 0.2619317466 | E93: ='WW calcu'!F223-'WW calcu'!F213 -> 0.2815678492 | F93: ='WW calcu'!G223-'WW calcu'!G213 -> 0.2544163309 | G93: ='WW calcu'!H223-'WW calcu'!H213 -> 0.1775280299 | H93: ='WW calcu'!I223-'WW calcu'!I213 -> 0.1026129036 | I93: ='WW calcu'!J223-'WW calcu'!J213 -> 0.03000027822 | J93: ='WW calcu'!K223-'WW calcu'!K213 -> 0.03534837331 | K93: ='WW calcu'!L223-'WW calcu'!L213 -> 0.04055036222 | L93: ='WW calcu'!M223-'WW calcu'!M213 -> 0.04648682046 | M93: ='WW calcu'!N223-'WW calcu'!N213 -> 0.05223991319 | N93: ='WW calcu'!O223-'WW calcu'!O213 -> 0.05771564033
C94: Number of households dependent on functional community toilet facilities near their houses as percentage of total households in city.
C95: Non-functional community and public toilets | D95: ='WW calcu'!D980 -> 0.1698113208 | E95: ='WW calcu'!E980 -> 0.1132075472 | F95: ='WW calcu'!F980 -> 0.05660377358 | G95: ='WW calcu'!G980 -> 0 | H95: ='WW calcu'!H980 -> 0 | I95: ='WW calcu'!I980 -> 0 | J95: ='WW calcu'!J980 -> 0 | K95: ='WW calcu'!K980 -> 0 | L95: ='WW calcu'!L980 -> 0 | M95: ='WW calcu'!M980 -> 0 | N95: ='WW calcu'!N980 -> 0
C96: Number of non-functional community and public toilet seats as percentage of total community and public toilet seats.
C97: Service level and quality | R97: SLB Benchmark | S97: Customise value | T97: Red | U97: Orange | V97: Green
C98: Coverage of households with adequate sanitation system | D98: ='WW calcu'!E494 -> 0.05339377912 | E98: ='WW calcu'!F494 -> 0.2303742071 | F98: ='WW calcu'!G494 -> 0.4009246615 | G98: ='WW calcu'!H494 -> 0.5658486561 | H98: ='WW calcu'!I494 -> 0.5589492996 | I98: ='WW calcu'!J494 -> 0.8626855029 | J98: ='WW calcu'!K494 -> 1 | K98: ='WW calcu'!L494 -> 1 | L98: ='WW calcu'!M494 -> 1 | M98: ='WW calcu'!N494 -> 1 | N98: ='WW calcu'!O494 -> 1 | R98: 1 | T98: =IF($R$17="II. CUSTOMIZE BENCHMARKS",$S98,$R98)*$AA$21 -> 0 | U98: =IF($R$17="II. CUSTOMIZE BENCHMARKS",$S98,$R98)*$AA$22 -> 0.5 | V98: =IF($R$17="II. CUSTOMIZE BENCHMARKS",$S98,$R98)*$AA$23 -> 0.9
C99: Number of households with access to safe and adequate sanitation system for wastewater disposal (sewerage or on-site) as percentage of total households in city.
C100: Efficiency of wastewater and septage collection system | D100: ='WW calcu'!E609 -> 0.05339377912 | E100: ='WW calcu'!F609 -> 0.2303742071 | F100: ='WW calcu'!G609 -> 0.4009246615 | G100: ='WW calcu'!H609 -> 0.5658486561 | H100: ='WW calcu'!I609 -> 0.5589492996 | I100: ='WW calcu'!J609 -> 0.8626855029 | J100: ='WW calcu'!K609 -> 1 | K100: ='WW calcu'!L609 -> 1 | L100: ='WW calcu'!M609 -> 1 | M100: ='WW calcu'!N609 -> 1 | N100: ='WW calcu'!O609 -> 1 | R100: 1 | T100: =IF($R$17="II. CUSTOMIZE BENCHMARKS",$S100,$R100)*$AA$21 -> 0 | U100: =IF($R$17="II. CUSTOMIZE BENCHMARKS",$S100,$R100)*$AA$22 -> 0.5 | V100: =IF($R$17="II. CUSTOMIZE BENCHMARKS",$S100,$R100)*$AA$23 -> 0.9
C101: Aggregate quantum of wastewater collected (through sewerage and settled sewer network) at the intake of treatment plant and wastewater discharged through soak pits as percentage of normative wastewater generated in city. This indicator is calculated based on weighted average of households and wastewater collection systems.
C102: Adequacy of wastewater and septage treatment capacity | D102: ='WW calcu'!E769 -> 0 | E102: ='WW calcu'!F769 -> 0 | F102: ='WW calcu'!G769 -> 0.007280229718 | G102: ='WW calcu'!H769 -> 0.01001276293 | H102: ='WW calcu'!I769 -> 0.00985750697 | I102: ='WW calcu'!J769 -> 0.009626359499 | J102: ='WW calcu'!K769 -> 0.007356075362 | K102: ='WW calcu'!L769 -> 0.005062491887 | L102: ='WW calcu'!M769 -> 0.003895364755 | M102: ='WW calcu'!N769 -> 1.219116136 | N102: ='WW calcu'!O769 -> 1.228808035 | R102: 1 | T102: =IF($R$17="II. CUSTOMIZE BENCHMARKS",$S102,$R102)*$AA$21 -> 0 | U102: =IF($R$17="II. CUSTOMIZE BENCHMARKS",$S102,$R102)*$AA$22 -> 0.5 | V102: =IF($R$17="II. CUSTOMIZE BENCHMARKS",$S102,$R102)*$AA$23 -> 0.9
C103: Aggregate quantum of sewage, sludge and sullage to be treated with present treatment facilities as percentage of normative wastewater generated in city. This indicator is calculated based on weighted average of households and wastewater treatment facilities.
C104: Households with full on-site sanitation system | D104: ='WW calcu'!E325 -> 0.05339377912 | E104: ='WW calcu'!F325 -> 0.2303742071 | F104: ='WW calcu'!G325 -> 0.4009246615 | G104: ='WW calcu'!H325 -> 0.5658486561 | H104: ='WW calcu'!I325 -> 0.5589492996 | I104: ='WW calcu'!J325 -> 0.5519774866 | J104: ='WW calcu'!K325 -> 0.5452632828 | K104: ='WW calcu'!L325 -> 0.5387325063 | L104: ='WW calcu'!M325 -> 0.5313283056 | M104: ='WW calcu'!N325 -> 0.5241528061 | N104: ='WW calcu'!O325 -> 0.5172517652
C105: Number of households with full on-site sanitation disposal system as septic tanks connected to soak pits for grey water disposal, as percentage of total households in city.
C106: Households with on-site sanitation and settled sewer | D106: ='WW calcu'!E378 -> 0 | E106: ='WW calcu'!F378 -> 0 | F106: ='WW calcu'!G378 -> 0 | G106: ='WW calcu'!H378 -> 0 | H106: ='WW calcu'!I378 -> 0 | I106: ='WW calcu'!J378 -> 0.3107080164 | J106: ='WW calcu'!K378 -> 0.5879976919 | K106: ='WW calcu'!L378 -> 0.8577120091 | L106: ='WW calcu'!M378 -> 1 | M106: ='WW calcu'!N378 -> 1 | N106: ='WW calcu'!O378 -> 1
C107: Number of households with on-site black water disposal system as septic tanks connected to settled sewer/ small bore sewers for grey water disposal, as percentage of total households in city.
C108: Households with sewerage network services | D108: ='WW calcu'!E493 -> 0 | E108: ='WW calcu'!F493 -> 0 | F108: ='WW calcu'!G493 -> 0 | G108: ='WW calcu'!H493 -> 0 | H108: ='WW calcu'!I493 -> 0 | I108: ='WW calcu'!J493 -> 0 | J108: ='WW calcu'!K493 -> 0 | K108: ='WW calcu'!L493 -> 0 | L108: ='WW calcu'!M493 -> 0 | M108: ='WW calcu'!N493 -> 0 | N108: ='WW calcu'!O493 -> 0
C109: Number of households with individual connections to sewerage network, as percentage of total households in city.
C110: Spatial coverage of closed surface drains | D110: ='WW calcu'!E575 -> 0.2833333333 | E110: ='WW calcu'!F575 -> 0.3759259259 | F110: ='WW calcu'!G575 -> 0.4685185185 | G110: ='WW calcu'!H575 -> 0.5611111111 | H110: ='WW calcu'!I575 -> 0.5611111111 | I110: ='WW calcu'!J575 -> 0.5611111111 | J110: ='WW calcu'!K575 -> 0.5611111111 | K110: ='WW calcu'!L575 -> 0.5611111111 | L110: ='WW calcu'!M575 -> 0.5611111111 | M110: ='WW calcu'!N575 -> 0.5611111111 | N110: ='WW calcu'!O575 -> 0.5611111111
C111: Municipal area covered by closed surface drains for storm water drainage as percentage of total jurisdictional area of city.
C112: Septic tanks cleaned annually in city | D112: ='WW calcu'!E676 -> 0 | E112: ='WW calcu'!F676 -> 0 | F112: ='WW calcu'!G676 -> 0 | G112: ='WW calcu'!H676 -> 0 | H112: ='WW calcu'!I676 -> 0 | I112: ='WW calcu'!J676 -> 0 | J112: ='WW calcu'!K676 -> 0 | K112: ='WW calcu'!L676 -> 0 | L112: ='WW calcu'!M676 -> 0 | M112: ='WW calcu'!N676 -> 0 | N112: ='WW calcu'!O676 -> 0
C113: Number of septic tanks (includes septic tanks of individual toilets, community and public toilets) cleaned annually as percentage of total septic tanks in city.
C114: Adequacy of sewage treatment capacity | D114: ='WW calcu'!E710 -> 0 | E114: ='WW calcu'!F710 -> 0 | F114: ='WW calcu'!G710 -> 0 | G114: ='WW calcu'!H710 -> 0 | H114: ='WW calcu'!I710 -> 0 | I114: ='WW calcu'!J710 -> 0 | J114: ='WW calcu'!K710 -> 0 | K114: ='WW calcu'!L710 -> 0 | L114: ='WW calcu'!M710 -> 0 | M114: ='WW calcu'!N710 -> 0 | N114: ='WW calcu'!O710 -> 0
C115: Quantum of sewage that can be treated at secondary treatment plants as percentage of normative sewage collected by sewerage network.
C116: Adequacy of treatment plant capacity for effluent and sullage | D116: ='WW calcu'!E741 -> 0 | E116: ='WW calcu'!F741 -> 0 | F116: ='WW calcu'!G741 -> 0 | G116: ='WW calcu'!H741 -> 0 | H116: ='WW calcu'!I741 -> 0 | I116: ='WW calcu'!J741 -> 0 | J116: ='WW calcu'!K741 -> 0 | K116: ='WW calcu'!L741 -> 0 | L116: ='WW calcu'!M741 -> 0 | M116: ='WW calcu'!N741 -> 0 | N116: ='WW calcu'!O741 -> 0
C117: Quantum of sullage and effluent that can be treated at primary treatment plants as percentage of normative sullage and effluent collected by settled sewer or drains (unsafe way).
C118: Adequacy of septage treatment capacity | D118: ='WW calcu'!E768 -> 0 | E118: ='WW calcu'!F768 -> 0 | F118: ='WW calcu'!G768 -> 0.9907490716 | G118: ='WW calcu'!H768 -> 0.9432994034 | H118: ='WW calcu'!I768 -> 0.9408960928 | I118: ='WW calcu'!J768 -> 0.5230285138 | J118: ='WW calcu'!K768 -> 0.4729584415 | K118: ='WW calcu'!L768 -> 0.4316373427 | L118: ='WW calcu'!M768 -> 0.3970630407 | M118: ='WW calcu'!N768 -> 0.3942021524 | N118: ='WW calcu'!O768 -> 0.3913821953
C119: Quantum of septage that can be treated at faecal sludge treatment plant as percentage of normative septage generated in city.
C120: Efficiency in service operation | R120: SLB Benchmark | S120: Customise value | T120: Red | U120: Orange | V120: Green
C121: Extent of reuse/recycling of treated wastewater and septage | D121: ='WW calcu'!E790 -> 0 | E121: ='WW calcu'!F790 -> 0 | F121: ='WW calcu'!G790 -> 0 | G121: ='WW calcu'!H790 -> 0 | H121: ='WW calcu'!I790 -> 0 | I121: ='WW calcu'!J790 -> 0 | J121: ='WW calcu'!K790 -> 0 | K121: ='WW calcu'!L790 -> 0 | L121: ='WW calcu'!M790 -> 0 | M121: ='WW calcu'!N790 -> 0 | N121: ='WW calcu'!O790 -> 0 | R121: 0.2 | T121: =IF($R$17="II. CUSTOMIZE BENCHMARKS",$S121,$R121)*$AA$21 -> 0 | U121: =IF($R$17="II. CUSTOMIZE BENCHMARKS",$S121,$R121)*$AA$22 -> 0.1 | V121: =IF($R$17="II. CUSTOMIZE BENCHMARKS",$S121,$R121)*$AA$23 -> 0.18
C122: Quantum of wastewater and septage that is recycled or reused after treatment as percentage of normative wastewater and septage generated in city. This indicator is calculated based on weighted average of households and treated wastewater and septage.
C123: Quality of wastewater and septage treatment | D123: ='WW calcu'!E805 -> 0 | E123: ='WW calcu'!F805 -> 0 | F123: ='WW calcu'!G805 -> 0 | G123: ='WW calcu'!H805 -> 0 | H123: ='WW calcu'!I805 -> 0 | I123: ='WW calcu'!J805 -> 0 | J123: ='WW calcu'!K805 -> 0 | K123: ='WW calcu'!L805 -> 0 | L123: ='WW calcu'!M805 -> 0 | M123: ='WW calcu'!N805 -> 0 | N123: ='WW calcu'!O805 -> 0 | R123: 1 | T123: =IF($R$17="II. CUSTOMIZE BENCHMARKS",$S123,$R123)*$AA$21 -> 0 | U123: =IF($R$17="II. CUSTOMIZE BENCHMARKS",$S123,$R123)*$AA$22 -> 0.5 | V123: =IF($R$17="II. CUSTOMIZE BENCHMARKS",$S123,$R123)*$AA$23 -> 0.9
C124: Percentage of wastewater and septage samples meeting Pollution Control Board standards at treatment plant outlets. This indicator is calculated based on weighted average of households and wastewater and septage samples.
C125: Efficiency in redressal of customer complaints | D125: ='WW calcu'!E807 -> 1 | E125: ='WW calcu'!F807 -> 1 | F125: ='WW calcu'!G807 -> 1 | G125: ='WW calcu'!H807 -> 1 | H125: ='WW calcu'!I807 -> 1 | I125: ='WW calcu'!J807 -> 1 | J125: ='WW calcu'!K807 -> 1 | K125: ='WW calcu'!L807 -> 1 | L125: ='WW calcu'!M807 -> 1 | M125: ='WW calcu'!N807 -> 1 | N125: ='WW calcu'!O807 -> 1 | R125: 0.8 | T125: =IF($R$17="II. CUSTOMIZE BENCHMARKS",$S125,$R125)*$AA$21 -> 0 | U125: =IF($R$17="II. CUSTOMIZE BENCHMARKS",$S125,$R125)*$AA$22 -> 0.4 | V125: =IF($R$17="II. CUSTOMIZE BENCHMARKS",$S125,$R125)*$AA$23 -> 0.72
C126: Number of wastewater related complaints redressed within time stipulated in service charter of ULB as percentage of total wastewater complaints.
C127: Extent of sewage reuse/recycle | D127: ='WW calcu'!E787 -> 0 | E127: ='WW calcu'!F787 -> 0 | F127: ='WW calcu'!G787 -> 0 | G127: ='WW calcu'!H787 -> 0 | H127: ='WW calcu'!I787 -> 0 | I127: ='WW calcu'!J787 -> 0 | J127: ='WW calcu'!K787 -> 0 | K127: ='WW calcu'!L787 -> 0 | L127: ='WW calcu'!M787 -> 0 | M127: ='WW calcu'!N787 -> 0 | N127: ='WW calcu'!O787 -> 0
C128: Quantum of sewage that is reused after treatment as percentage of normative sewage generated in city.
C129: Extent of wastewater or sullage reuse/recycle | D129: ='WW calcu'!E788 -> 0 | E129: ='WW calcu'!F788 -> 0 | F129: ='WW calcu'!G788 -> 0 | G129: ='WW calcu'!H788 -> 0 | H129: ='WW calcu'!I788 -> 0 | I129: ='WW calcu'!J788 -> 0 | J129: ='WW calcu'!K788 -> 0 | K129: ='WW calcu'!L788 -> 0 | L129: ='WW calcu'!M788 -> 0 | M129: ='WW calcu'!N788 -> 0 | N129: ='WW calcu'!O788 -> 0
C130: Quantum of wastewater and sullage that is reused after treatment as percentage of normative wastewater and sullage generated in city.
C131: Extent of septage reuse/recycle | D131: ='WW calcu'!E789 -> 0 | E131: ='WW calcu'!F789 -> 0 | F131: ='WW calcu'!G789 -> 0 | G131: ='WW calcu'!H789 -> 0 | H131: ='WW calcu'!I789 -> 0 | I131: ='WW calcu'!J789 -> 0 | J131: ='WW calcu'!K789 -> 0 | K131: ='WW calcu'!L789 -> 0 | L131: ='WW calcu'!M789 -> 0 | M131: ='WW calcu'!N789 -> 0 | N131: ='WW calcu'!O789 -> 0
C132: Quantum of septage that is reused after treatment as percentage of normative septage generated in city.
C133: Financial sustainability | R133: SLB Benchmark | S133: Customise value | T133: Red | U133: Orange | V133: Green
C134: Efficiency in collection of wastewater charges and taxes | D134: =D237 -> 0 | E134: =E237 -> 0.8222507394 | F134: 0.8222507394 | G134: 0.8222507394 | H134: 0.8222507394 | I134: 0.8222507394 | J134: 0.8222507394 | K134: 0.8222507394 | L134: 0.8222507394 | M134: 0.8222507394 | N134: 0.8222507394 | R134: 0.9 | T134: =IF($R$17="II. CUSTOMIZE BENCHMARKS",$S134,$R134)*$AA$21 -> 0 | U134: =IF($R$17="II. CUSTOMIZE BENCHMARKS",$S134,$R134)*$AA$22 -> 0.45 | V134: =IF($R$17="II. CUSTOMIZE BENCHMARKS",$S134,$R134)*$AA$23 -> 0.81
C135: Total wastewater revenues collected from current year demand as percentage of total current billed demand from wastewater related taxes and charges.
C136: Extent of cost recovery in wastewater services | D136: ='WW calcu'!E879 -> 0 | E136: ='WW calcu'!F879 -> 0.2265957017 | F136: ='WW calcu'!G879 -> 0.1981855468 | G136: ='WW calcu'!H879 -> 0.2296405987 | H136: ='WW calcu'!I879 -> 0.2793535947 | I136: ='WW calcu'!J879 -> 0.3533916185 | J136: ='WW calcu'!K879 -> 0.4613133985 | K136: ='WW calcu'!L879 -> 0.52063904 | L136: ='WW calcu'!M879 -> 0.5728625522 | M136: ='WW calcu'!N879 -> 0.6630061004 | N136: ='WW calcu'!O879 -> 0.6774819692 | R136: 1 | T136: =IF($R$17="II. CUSTOMIZE BENCHMARKS",$S136,$R136)*$AA$21 -> 0 | U136: =IF($R$17="II. CUSTOMIZE BENCHMARKS",$S136,$R136)*$AA$22 -> 0.5 | V136: =IF($R$17="II. CUSTOMIZE BENCHMARKS",$S136,$R136)*$AA$23 -> 0.9
C137: Total annual operating revenues from wastewater taxes and charges (current billed demand) as compared to total operating expenses of wastewater services.
C138: Unit cost of collection/disposal of wastewater | D138: ='WW calcu'!E880 -> 2936.378211 | E138: ='WW calcu'!F880 -> 3551.754609 | F138: ='WW calcu'!G880 -> 4148.977958 | G138: ='WW calcu'!H880 -> 4390.149324 | H138: ='WW calcu'!I880 -> 4609.656791 | I138: ='WW calcu'!J880 -> 4840.13963 | J138: ='WW calcu'!K880 -> 5266.486903 | K138: ='WW calcu'!L880 -> 5626.5899 | L138: ='WW calcu'!M880 -> 6009.536981 | M138: ='WW calcu'!N880 -> 6685.049438 | N138: ='WW calcu'!O880 -> 7019.30191
C139: Total wastewater operating expenditure as compared to total wastewater generated in ULB.
C140: Per capita revenue expenditure | D140: ='WW calcu'!E881 -> 285.9185132 | E140: ='WW calcu'!F881 -> 340.6705938 | F140: ='WW calcu'!G881 -> 392.0949217 | G140: ='WW calcu'!H881 -> 408.8668748 | H140: ='WW calcu'!I881 -> 423.1597652 | I140: ='WW calcu'!J881 -> 438.0529813 | J140: ='WW calcu'!K881 -> 470.0121448 | K140: ='WW calcu'!L881 -> 495.2638376 | L140: ='WW calcu'!M881 -> 520.6850162 | M140: ='WW calcu'!N881 -> 570.2930364 | N140: ='WW calcu'!O881 -> 589.7118407
C141: Total wastewater operating expenditure as compared to total population in ULB.
C142: Per capita revenue income | D142: ='WW calcu'!E882 -> 0 | E142: ='WW calcu'!F882 -> 63.47322833 | F142: ='WW calcu'!G882 -> 63.89508752 | G142: ='WW calcu'!H882 -> 77.20312321 | H142: ='WW calcu'!I882 -> 97.19924785 | I142: ='WW calcu'!J882 -> 127.2879107 | J142: ='WW calcu'!K882 -> 178.2827898 | K142: ='WW calcu'!L882 -> 212.0203864 | L142: ='WW calcu'!M882 -> 245.2617294 | M142: ='WW calcu'!N882 -> 310.899387 | N142: ='WW calcu'!O882 -> 328.5049075
C143: Total wastewater revenue income as compared to total population in ULB.
C144: Billed arrears to total billed demand | D144: ='WW calcu'!E874 -> 0 | E144: ='WW calcu'!F874 -> 0 | F144: ='WW calcu'!G874 -> 0.1481938229 | G144: ='WW calcu'!H874 -> 0.2229221494 | H144: ='WW calcu'!I874 -> 0.2667284534 | I144: ='WW calcu'!J874 -> 0.2896056839 | J144: ='WW calcu'!K874 -> 0.2918637182 | K144: ='WW calcu'!L874 -> 0.3285148015 | L144: ='WW calcu'!M874 -> 0.3620632643 | M144: ='WW calcu'!N874 -> 0.3666468704 | N144: ='WW calcu'!O874 -> 0.413565035
C145: Total wastewater billed demand from arrears as percentage of total billed demand (arrear and current) from wastewater related taxes and charges.
C146: Collection efficiency of arrear demand | D146: ='WW calcu'!E864 -> 0 | E146: ='WW calcu'!F864 -> 0 | F146: ='WW calcu'!G864 -> 0 | G146: ='WW calcu'!H864 -> 0 | H146: ='WW calcu'!I864 -> 0 | I146: ='WW calcu'!J864 -> 0 | J146: ='WW calcu'!K864 -> 0 | K146: ='WW calcu'!L864 -> 0 | L146: ='WW calcu'!M864 -> 0 | M146: ='WW calcu'!N864 -> 0 | N146: ='WW calcu'!O864 -> 0
C147: Total wastewater revenues collected from arrear demand as percentage of total arrear demand of wastewater related taxes and charges.
B150: C | C150: Performance of Solid waste management | R150: Ranges for Solid Waste KPIs
C152: Performance levels | D152: =D$220 -> 2014 | E152: =E$220 -> 2015 | F152: 2016 | G152: 2017 | H152: 2018 | I152: 2019 | J152: 2020 | K152: 2021 | L152: 2022 | M152: 2023 | N152: 2024
C153: Access and coverage | R153: SLB Benchmark | S153: Customise value | T153: Red | U153: Orange | V153: Green
C154: Coverage of household level solid waste services in city | D154: ='MSW calcu'!F65 -> 1 | E154: ='MSW calcu'!G65 -> 1 | F154: ='MSW calcu'!H65 -> 1 | G154: ='MSW calcu'!I65 -> 1 | H154: ='MSW calcu'!J65 -> 1 | I154: ='MSW calcu'!K65 -> 1 | J154: ='MSW calcu'!L65 -> 1 | K154: ='MSW calcu'!M65 -> 1 | L154: ='MSW calcu'!N65 -> 1 | M154: ='MSW calcu'!O65 -> 1 | N154: ='MSW calcu'!P65 -> 1 | R154: 1 | T154: =IF($R$17="II. CUSTOMIZE BENCHMARKS",$S154,$R154)*$AA$21 -> 0 | U154: =IF($R$17="II. CUSTOMIZE BENCHMARKS",$S154,$R154)*$AA$22 -> 0.5 | V154: =IF($R$17="II. CUSTOMIZE BENCHMARKS",$S154,$R154)*$AA$23 -> 0.9
C155: Number of households served by door to door collection of solid waste as percentage of total households in city.
C156: Coverage of household level solid waste services in slums | D156: ='MSW calcu'!F66 -> 1 | E156: ='MSW calcu'!G66 -> 1 | F156: ='MSW calcu'!H66 -> 1 | G156: ='MSW calcu'!I66 -> 1 | H156: ='MSW calcu'!J66 -> 1 | I156: ='MSW calcu'!K66 -> 1 | J156: ='MSW calcu'!L66 -> 1 | K156: ='MSW calcu'!M66 -> 1 | L156: ='MSW calcu'!N66 -> 1 | M156: ='MSW calcu'!O66 -> 1 | N156: ='MSW calcu'!P66 -> 1 | R156: 1 | T156: =IF($R$17="II. CUSTOMIZE BENCHMARKS",$S156,$R156)*$AA$21 -> 0 | U156: =IF($R$17="II. CUSTOMIZE BENCHMARKS",$S156,$R156)*$AA$22 -> 0.5 | V156: =IF($R$17="II. CUSTOMIZE BENCHMARKS",$S156,$R156)*$AA$23 -> 0.9
C157: Number of households in slum settlements served by door to door collection of solid waste as percentage of total slum households in city.
C158: Households served by secondary bin collection system in city | D158: ='MSW calcu'!F67 -> 0 | E158: ='MSW calcu'!G67 -> 0 | F158: ='MSW calcu'!H67 -> 0 | G158: ='MSW calcu'!I67 -> 0 | H158: ='MSW calcu'!J67 -> 0 | I158: ='MSW calcu'!K67 -> 0 | J158: ='MSW calcu'!L67 -> 0 | K158: ='MSW calcu'!M67 -> 0 | L158: ='MSW calcu'!N67 -> 0 | M158: ='MSW calcu'!O67 -> 0 | N158: ='MSW calcu'!P67 -> 0
C159: Number of households served by secondary storage bin collection system (at gate, road or bin level collection) of solid waste as percentage of total households in city.
C160: Service level and quality | R160: SLB Benchmark | S160: Customise value | T160: Red | U160: Orange | V160: Green
C161: Efficiency of solid waste collection | D161: ='MSW calcu'!F148 -> 0.9999215317 | E161: ='MSW calcu'!G148 -> 0.9999883232 | F161: ='MSW calcu'!H148 -> 0.999930937 | G161: ='MSW calcu'!I148 -> 1 | H161: ='MSW calcu'!J148 -> 1 | I161: ='MSW calcu'!K148 -> 1 | J161: ='MSW calcu'!L148 -> 1 | K161: ='MSW calcu'!M148 -> 0.9999851767 | L161: ='MSW calcu'!N148 -> 1 | M161: ='MSW calcu'!O148 -> 1 | N161: ='MSW calcu'!P148 -> 0.999960801 | R161: 1 | T161: =IF($R$17="II. CUSTOMIZE BENCHMARKS",$S161,$R161)*$AA$21 -> 0 | U161: =IF($R$17="II. CUSTOMIZE BENCHMARKS",$S161,$R161)*$AA$22 -> 0.5 | V161: =IF($R$17="II. CUSTOMIZE BENCHMARKS",$S161,$R161)*$AA$23 -> 0.9
C162: Quantum of solid waste collected from households, establishments and common collection points as percentage of total solid waste generated in city.
C163: Extent of segregation of solid waste | D163: ='MSW calcu'!F149 -> 0.3333594915 | E163: ='MSW calcu'!G149 -> 0.4939327423 | F163: ='MSW calcu'!H149 -> 0.4818698579 | G163: ='MSW calcu'!I149 -> 0.4701440421 | H163: ='MSW calcu'!J149 -> 0.4588203848 | I163: ='MSW calcu'!K149 -> 0.4478724051 | J163: ='MSW calcu'!L149 -> 0.4372725879 | K163: ='MSW calcu'!M149 -> 0.4270125128 | L163: ='MSW calcu'!N149 -> 0.4161553688 | M163: ='MSW calcu'!O149 -> 0.405689255 | N163: ='MSW calcu'!P149 -> 0.3955866582 | R163: 1 | T163: =IF($R$17="II. CUSTOMIZE BENCHMARKS",$S163,$R163)*$AA$21 -> 0 | U163: =IF($R$17="II. CUSTOMIZE BENCHMARKS",$S163,$R163)*$AA$22 -> 0.5 | V163: =IF($R$17="II. CUSTOMIZE BENCHMARKS",$S163,$R163)*$AA$23 -> 0.9
C164: Quantum of solid waste received in segregated manner at processing or disposal facility as percentage of total waste collected.
C165: Extent of solid waste recovered | D165: ='MSW calcu'!F170 -> 0 | E165: ='MSW calcu'!G170 -> 0 | F165: ='MSW calcu'!H170 -> 0 | G165: ='MSW calcu'!I170 -> 0 | H165: ='MSW calcu'!J170 -> 0 | I165: ='MSW calcu'!K170 -> 0 | J165: ='MSW calcu'!L170 -> 0 | K165: ='MSW calcu'!M170 -> 0 | L165: ='MSW calcu'!N170 -> 0 | M165: ='MSW calcu'!O170 -> 0 | N165: ='MSW calcu'!P170 -> 0 | R165: 0.8 | T165: =IF($R$17="II. CUSTOMIZE BENCHMARKS",$S165,$R165)*$AA$21 -> 0 | U165: =IF($R$17="II. CUSTOMIZE BENCHMARKS",$S165,$R165)*$AA$22 -> 0.4 | V165: =IF($R$17="II. CUSTOMIZE BENCHMARKS",$S165,$R165)*$AA$23 -> 0.72
C166: Quantum of collected solid waste either recycled or processed as percentage of total solid waste collected.
C167: Adequacy of solid waste storage capacity | D167: ='MSW calcu'!F94 -> 3.125245233 | E167: ='MSW calcu'!G94 -> 3.047860811 | F167: ='MSW calcu'!H94 -> 2.973425589 | G167: ='MSW calcu'!I94 -> 2.901070285 | H167: ='MSW calcu'!J94 -> 2.831196538 | I167: ='MSW calcu'!K94 -> 2.763640947 | J167: ='MSW calcu'!L94 -> 2.698233727 | K167: ='MSW calcu'!M94 -> 2.634922919 | L167: ='MSW calcu'!N94 -> 2.567927839 | M167: ='MSW calcu'!O94 -> 2.503345649 | N167: ='MSW calcu'!P94 -> 2.441006577
C168: Aggregate capacity of solid waste storage bins and containers as percentage of total solid waste collected.
C169: Adequacy of solid waste transportation capacity | D169: ='MSW calcu'!F114 -> 1.000078474 | E169: ='MSW calcu'!G114 -> 1.097229892 | F169: ='MSW calcu'!H114 -> 1.070433212 | G169: ='MSW calcu'!I114 -> 1.044385302 | H169: ='MSW calcu'!J114 -> 1.019230754 | I169: ='MSW calcu'!K114 -> 0.9949107408 | J169: ='MSW calcu'!L114 -> 0.9713641416 | K169: ='MSW calcu'!M114 -> 0.9485722509 | L169: ='MSW calcu'!N114 -> 0.924454022 | M169: ='MSW calcu'!O114 -> 0.9012044337 | N169: ='MSW calcu'!P114 -> 0.8787623677
C170: Aggregate capacity of solid waste transportation vehicles as percentage of total solid waste collected.
C171: Adequacy of solid waste processing facilities | D171: ='MSW calcu'!F122 -> 0 | E171: ='MSW calcu'!G122 -> 0 | F171: ='MSW calcu'!H122 -> 0 | G171: ='MSW calcu'!I122 -> 0 | H171: ='MSW calcu'!J122 -> 0 | I171: ='MSW calcu'!K122 -> 0 | J171: ='MSW calcu'!L122 -> 0 | K171: ='MSW calcu'!M122 -> 0 | L171: ='MSW calcu'!N122 -> 0 | M171: ='MSW calcu'!O122 -> 0 | N171: ='MSW calcu'!P122 -> 0
C172: Aggregate capacity of solid waste processing and recycling facility as percentage of total solid waste transported to processing facility.
C173: Efficiency in service operation | R173: SLB Benchmark | S173: Customise value | T173: Red | U173: Orange | V173: Green
C174: Extent of scientific disposal of solid waste | D174: ='MSW calcu'!F150 -> 0 | E174: ='MSW calcu'!G150 -> 0 | F174: ='MSW calcu'!H150 -> 0 | G174: ='MSW calcu'!I150 -> 0 | H174: ='MSW calcu'!J150 -> 0 | I174: ='MSW calcu'!K150 -> 0 | J174: ='MSW calcu'!L150 -> 0 | K174: ='MSW calcu'!M150 -> 0 | L174: ='MSW calcu'!N150 -> 0 | M174: ='MSW calcu'!O150 -> 0 | N174: ='MSW calcu'!P150 -> 1 | R174: 1 | T174: =IF($R$17="II. CUSTOMIZE BENCHMARKS",$S174,$R174)*$AA$21 -> 0 | U174: =IF($R$17="II. CUSTOMIZE BENCHMARKS",$S174,$R174)*$AA$22 -> 0.5 | V174: =IF($R$17="II. CUSTOMIZE BENCHMARKS",$S174,$R174)*$AA$23 -> 0.9
C175: Quantum of solid waste disposed at scientific/complaint landfill site as percentage of total solid waste disposed in complaint and open disposal sites.
C176: Efficiency in redressal of customer complaints | D176: ='MSW calcu'!F70 -> 0.9736842105 | E176: ='MSW calcu'!G70 -> 0.9736842105 | F176: ='MSW calcu'!H70 -> 0.9736842105 | G176: ='MSW calcu'!I70 -> 0.9736842105 | H176: ='MSW calcu'!J70 -> 0.9736842105 | I176: ='MSW calcu'!K70 -> 0.9736842105 | J176: ='MSW calcu'!L70 -> 0.9736842105 | K176: ='MSW calcu'!M70 -> 0.9736842105 | L176: ='MSW calcu'!N70 -> 0.9736842105 | M176: ='MSW calcu'!O70 -> 0.9736842105 | N176: ='MSW calcu'!P70 -> 0.9736842105 | R176: 0.8 | T176: =IF($R$17="II. CUSTOMIZE BENCHMARKS",$S176,$R176)*$AA$21 -> 0 | U176: =IF($R$17="II. CUSTOMIZE BENCHMARKS",$S176,$R176)*$AA$22 -> 0.4 | V176: =IF($R$17="II. CUSTOMIZE BENCHMARKS",$S176,$R176)*$AA$23 -> 0.72
C177: Number of solid waste related complaints redressed within time stipulated in service charter of ULB as percentage of total solid waste complaints.
C178: Extent of solid waste disposal in open dump sites | D178: ='MSW calcu'!F142 -> 1 | E178: ='MSW calcu'!G142 -> 1 | F178: ='MSW calcu'!H142 -> 1 | G178: ='MSW calcu'!I142 -> 1 | H178: ='MSW calcu'!J142 -> 1 | I178: ='MSW calcu'!K142 -> 1 | J178: ='MSW calcu'!L142 -> 1 | K178: ='MSW calcu'!M142 -> 1 | L178: ='MSW calcu'!N142 -> 1 | M178: ='MSW calcu'!O142 -> 1 | N178: ='MSW calcu'!P142 -> 0
C179: Quantum of solid waste not recycled or disposed at scientific landfill site and dumped at open sites in unsafe manner as percentage of total solid waste transported to processing/ disposal site.
C180: Financial sustainability | R180: SLB Benchmark | S180: Customise value | T180: Red | U180: Orange | V180: Green
C181: Efficiency in collection of solid waste charges and taxes | D181: =D261 -> 0 | E181: =E261 -> 0.8222507394 | F181: =F261 -> 0.8222507394 | G181: 0.8222507394 | H181: 0.8222507394 | I181: 0.8222507394 | J181: 0.8222507394 | K181: 0.8222507394 | L181: 0.8222507394 | M181: 0.8222507394 | N181: 0.8222507394 | R181: 0.9 | T181: =IF($R$17="II. CUSTOMIZE BENCHMARKS",$S181,$R181)*$AA$21 -> 0 | U181: =IF($R$17="II. CUSTOMIZE BENCHMARKS",$S181,$R181)*$AA$22 -> 0.45 | V181: =IF($R$17="II. CUSTOMIZE BENCHMARKS",$S181,$R181)*$AA$23 -> 0.81
C182: Total solid waste revenues collected from current year demand as percentage of total current billed demand from solid waste related taxes and charges.
C183: Extent of cost recovery in solid waste services | D183: ='MSW calcu'!F228 -> 0 | E183: ='MSW calcu'!G228 -> 0.106151993 | F183: ='MSW calcu'!H228 -> 0.1140568269 | G183: ='MSW calcu'!I228 -> 0.1228129065 | H183: ='MSW calcu'!J228 -> 0.1322504417 | I183: ='MSW calcu'!K228 -> 0.1423941681 | J183: ='MSW calcu'!L228 -> 0.1533225961 | K183: ='MSW calcu'!M228 -> 0.1650795753 | L183: ='MSW calcu'!N228 -> 0.17774093 | M183: ='MSW calcu'!O228 -> 0.1913410238 | N183: ='MSW calcu'!P228 -> 0.2059807169 | R183: 1 | T183: =IF($R$17="II. CUSTOMIZE BENCHMARKS",$S183,$R183)*$AA$21 -> 0 | U183: =IF($R$17="II. CUSTOMIZE BENCHMARKS",$S183,$R183)*$AA$22 -> 0.5 | V183: =IF($R$17="II. CUSTOMIZE BENCHMARKS",$S183,$R183)*$AA$23 -> 0.9
C184: Total annual operating revenues from solid waste taxes and charges (current billed demand) as compared to total operating expenses of solid waste services.
C185: Unit cost of solid waste services (Rs./kg) | D185: ='MSW calcu'!F229 -> 1772.879115 | E185: ='MSW calcu'!G229 -> 1510.952576 | F185: ='MSW calcu'!H229 -> 1541.809854 | G185: ='MSW calcu'!I229 -> 1570.129828 | H185: ='MSW calcu'!J229 -> 1599.454077 | I185: ='MSW calcu'!K229 -> 1629.779747 | J185: ='MSW calcu'!L229 -> 1661.092163 | K185: ='MSW calcu'!M229 -> 1693.442648 | L185: ='MSW calcu'!N229 -> 1723.040897 | M185: ='MSW calcu'!O229 -> 1753.742336 | N185: ='MSW calcu'!P229 -> 1785.534914
C186: Total solid waste operating expenditure as compared to total solid waste generated in ULB
C187: Per capita revenue expenditure | D187: ='MSW calcu'!F230 -> 563.1768724 | E187: ='MSW calcu'!G230 -> 484.8047915 | F187: ='MSW calcu'!H230 -> 499.6240522 | G187: ='MSW calcu'!I230 -> 513.9246548 | H187: ='MSW calcu'!J230 -> 528.7581055 | I187: ='MSW calcu'!K230 -> 544.1711996 | J187: ='MSW calcu'!L230 -> 560.1724416 | K187: ='MSW calcu'!M230 -> 576.7843114 | L187: ='MSW calcu'!N230 -> 592.7428764 | M187: ='MSW calcu'!O230 -> 609.3375157 | N187: ='MSW calcu'!P230 -> 626.563119
C188: Total solid waste operating expenditure as compared to total population in ULB.
C189: Per capita revenue income | D189: ='MSW calcu'!F231 -> 0.7147962831 | E189: ='MSW calcu'!G231 -> 42.31548556 | F189: ='MSW calcu'!H231 -> 46.85639751 | G189: ='MSW calcu'!I231 -> 51.89765505 | H189: ='MSW calcu'!J231 -> 57.49875506 | I189: ='MSW calcu'!K231 -> 63.71358294 | J189: ='MSW calcu'!L231 -> 70.62072575 | K189: ='MSW calcu'!M231 -> 78.29085837 | L189: ='MSW calcu'!N231 -> 86.62795537 | M189: ='MSW calcu'!O231 -> 95.8672531 | N189: ='MSW calcu'!P231 -> 106.119615
C190: Total solid waste revenue income as compared to total population in ULB.
C191: Billed arrears to total billed demand | D191: ='MSW calcu'!F223 -> 0 | E191: ='MSW calcu'!G223 -> 0 | F191: ='MSW calcu'!H223 -> 0.1365614354 | G191: ='MSW calcu'!I223 -> 0.2301054542 | H191: ='MSW calcu'!J223 -> 0.2977704 | I191: ='MSW calcu'!K223 -> 0.348715598 | J191: ='MSW calcu'!L223 -> 0.3881837668 | K191: ='MSW calcu'!M223 -> 0.4194843421 | L191: ='MSW calcu'!N223 -> 0.4447400052 | M191: ='MSW calcu'!O223 -> 0.4654587787 | N191: ='MSW calcu'!P223 -> 0.4826228631
C192: Total solid waste billed demand from arrears as percentage of total billed demand (arrear and current) from solid waste related taxes and charges.
C193: Collection efficiency of arrear demand | D193: ='MSW calcu'!F213 -> 0 | E193: ='MSW calcu'!G213 -> 0 | F193: ='MSW calcu'!H213 -> 0 | G193: ='MSW calcu'!I213 -> 0 | H193: ='MSW calcu'!J213 -> 0 | I193: ='MSW calcu'!K213 -> 0 | J193: ='MSW calcu'!L213 -> 0 | K193: ='MSW calcu'!M213 -> 0 | L193: ='MSW calcu'!N213 -> 0 | M193: ='MSW calcu'!O213 -> 0 | N193: ='MSW calcu'!P213 -> 0
C194: Total solid waste revenues collected from arrear demand as percentage of total arrear demand of solid waste related taxes and charges.
B198: II | C198: Standardised Service Level Benchmark (SLB) report | R198: Ranges for SLB KPIs
C200: Water supply services | D200: =IF('General info'!$E$20=0,"",'General info'!$E$20) -> 2014 | E200: =IFERROR(D200+1,"") -> 2015 | F200: =IFERROR(E200+1,"") -> 2016 | G200: =IFERROR(F200+1,"") -> 2017 | H200: =IFERROR(G200+1,"") -> 2018 | I200: 2019 | J200: 2020 | K200: 2021 | L200: 2022 | M200: 2023 | N200: 2024 | R200: SLB Benchmark | S200: Customise value | T200: Red | U200: Orange | V200: Green
C201: Coverage of water supply connections | D201: ='WS calcu'!E170 -> 0.9564286614 | E201: ='WS calcu'!F170 -> 0.9563609667 | F201: ='WS calcu'!G170 -> 0.9564121518 | G201: ='WS calcu'!H170 -> 0.9563519195 | H201: ='WS calcu'!I170 -> 0.9564017632 | I201: ='WS calcu'!J170 -> 0.9563382757 | J201: ='WS calcu'!K170 -> 0.956386922 | K201: ='WS calcu'!L170 -> 0.9564342393 | L201: ='WS calcu'!M170 -> 0.9563569593 | M201: ='WS calcu'!N170 -> 0.9563923807 | N201: ='WS calcu'!O170 -> 0.9564219904 | R201: 1 | T201: =IF($R$17="II. CUSTOMIZE BENCHMARKS",$S201,$R201)*$AA$21 -> 0 | U201: =IF($R$17="II. CUSTOMIZE BENCHMARKS",$S201,$R201)*$AA$22 -> 0.5 | V201: =IF($R$17="II. CUSTOMIZE BENCHMARKS",$S201,$R201)*$AA$23 -> 0.9
C202: Total households with direct water supply network connection as percentage of total households in city.
C203: Per capita available of water at consumer end (lpcd) | D203: ='WS calcu'!E254 -> 119.2191991 | E203: ='WS calcu'!F254 -> 117.4374638 | F203: ='WS calcu'!G254 -> 115.7082005 | G203: ='WS calcu'!H254 -> 114.0291228 | H203: ='WS calcu'!I254 -> 112.3952759 | I203: ='WS calcu'!J254 -> 110.8103148 | J203: ='WS calcu'!K254 -> 109.2694333 | K203: ='WS calcu'!L254 -> 107.7708177 | L203: ='WS calcu'!M254 -> 106.0823164 | M203: ='WS calcu'!N254 -> 104.4483292 | N203: ='WS calcu'!O254 -> 102.8615668 | R203: =Population!M158 -> 0 | T203: =IF($R$17="II. CUSTOMIZE BENCHMARKS",$S203,$R203)*$AA$21 -> 0 | U203: =IF($R$17="II. CUSTOMIZE BENCHMARKS",$S203,$R203)*$AA$22 -> 0 | V203: =IF($R$17="II. CUSTOMIZE BENCHMARKS",$S203,$R203)*$AA$23 -> 0
C204: Total water supplied to consumers expressed by population served per day.
C205: Extent of metering of water connections | D205: ='WS calcu'!E296 -> 0 | E205: ='WS calcu'!F296 -> 0 | F205: ='WS calcu'!G296 -> 0 | G205: ='WS calcu'!H296 -> 0 | H205: ='WS calcu'!I296 -> 0 | I205: ='WS calcu'!J296 -> 0 | J205: ='WS calcu'!K296 -> 0 | K205: ='WS calcu'!L296 -> 0 | L205: ='WS calcu'!M296 -> 0 | M205: ='WS calcu'!N296 -> 0 | N205: ='WS calcu'!O296 -> 0 | R205: 1 | T205: =IF($R$17="II. CUSTOMIZE BENCHMARKS",$S205,$R205)*$AA$21 -> 0 | U205: =IF($R$17="II. CUSTOMIZE BENCHMARKS",$S205,$R205)*$AA$22 -> 0.5 | V205: =IF($R$17="II. CUSTOMIZE BENCHMARKS",$S205,$R205)*$AA$23 -> 0.9
C206: Number of functional metered water connections as percentage of total water supply connections.
C207: Extent of Non-Revenue Water | D207: ='WS calcu'!E31 -> 0.169740839 | E207: ='WS calcu'!F31 -> 0.1696543218 | F207: ='WS calcu'!G31 -> 0.1695703339 | G207: ='WS calcu'!H31 -> 0.1694880683 | H207: ='WS calcu'!I31 -> 0.1694088368 | I207: ='WS calcu'!J31 -> 0.1693318239 | J207: ='WS calcu'!K31 -> 0.1692569379 | K207: ='WS calcu'!L31 -> 0.1691840917 | L207: ='WS calcu'!M31 -> 0.1691022793 | M207: ='WS calcu'!N31 -> 0.1690223795 | N207: ='WS calcu'!O31 -> 0.1689454692 | R207: 0.15 | T207: =IF($R$17="II. CUSTOMIZE BENCHMARKS",$S207,$R207)*$AA$23 -> 0.135 | U207: =IF($R$17="II. CUSTOMIZE BENCHMARKS",$S207,$R207)*$AA$22 -> 0.075 | V207: =IF($R$17="II. CUSTOMIZE BENCHMARKS",$S207,$R207)*$AA$21 -> 0
C208: Difference between total water produced (ex-treatment plant) and total water sold expressed as percentage of total water produced.
C209: Continuity of water supply (hours/day) | D209: ='WS calcu'!E267 -> 1.4 | E209: ='WS calcu'!F267 -> 1.4 | F209: ='WS calcu'!G267 -> 1.4 | G209: ='WS calcu'!H267 -> 1.4 | H209: ='WS calcu'!I267 -> 1.4 | I209: ='WS calcu'!J267 -> 1.4 | J209: ='WS calcu'!K267 -> 1.4 | K209: ='WS calcu'!L267 -> 1.4 | L209: ='WS calcu'!M267 -> 1.4 | M209: ='WS calcu'!N267 -> 1.4 | N209: ='WS calcu'!O267 -> 1.4 | R209: 24 | T209: =IF($R$17="II. CUSTOMIZE BENCHMARKS",$S209,$R209)*$AA$21 -> 0 | U209: =IF($R$17="II. CUSTOMIZE BENCHMARKS",$S209,$R209)*$AA$22 -> 12 | V209: =IF($R$17="II. CUSTOMIZE BENCHMARKS",$S209,$R209)*$AA$23 -> 21.6
C210: Average number of hours of pressurised water supply per day.
C211: Quality of water supplied | D211: ='WS calcu'!E268 -> 1 | E211: ='WS calcu'!F268 -> 1 | F211: ='WS calcu'!G268 -> 1 | G211: ='WS calcu'!H268 -> 1 | H211: ='WS calcu'!I268 -> 1 | I211: ='WS calcu'!J268 -> 1 | J211: ='WS calcu'!K268 -> 1 | K211: ='WS calcu'!L268 -> 1 | L211: ='WS calcu'!M268 -> 1 | M211: ='WS calcu'!N268 -> 1 | N211: ='WS calcu'!O268 -> 1 | R211: 1 | T211: =IF($R$17="II. CUSTOMIZE BENCHMARKS",$S211,$R211)*$AA$21 -> 0 | U211: =IF($R$17="II. CUSTOMIZE BENCHMARKS",$S211,$R211)*$AA$22 -> 0.5 | V211: =IF($R$17="II. CUSTOMIZE BENCHMARKS",$S211,$R211)*$AA$23 -> 0.9
C212: Percentage of water samples that meet or exceed specified potable water standards as defined by CPHEEO.
C213: Efficiency in redressal of customer complaints | D213: ='WS calcu'!E264 -> 0.9523809524 | E213: ='WS calcu'!F264 -> 0.9523809524 | F213: ='WS calcu'!G264 -> 0.9523809524 | G213: ='WS calcu'!H264 -> 0.9523809524 | H213: ='WS calcu'!I264 -> 0.9523809524 | I213: ='WS calcu'!J264 -> 0.9523809524 | J213: ='WS calcu'!K264 -> 0.9523809524 | K213: ='WS calcu'!L264 -> 0.9523809524 | L213: ='WS calcu'!M264 -> 0.9523809524 | M213: ='WS calcu'!N264 -> 0.9523809524 | N213: ='WS calcu'!O264 -> 0.9523809524 | R213: 0.8 | T213: =IF($R$17="II. CUSTOMIZE BENCHMARKS",$S213,$R213)*$AA$21 -> 0 | U213: =IF($R$17="II. CUSTOMIZE BENCHMARKS",$S213,$R213)*$AA$22 -> 0.4 | V213: =IF($R$17="II. CUSTOMIZE BENCHMARKS",$S213,$R213)*$AA$23 -> 0.72
C214: Number of water supply related complaints redressed within 24 hours as percentage of total number of water supply related complaints received.
C215: Cost recovery in water supply services | D215: ='WS calcu'!E671 -> 0.7507969801 | E215: ='WS calcu'!F671 -> 0.8392097853 | F215: ='WS calcu'!G671 -> 0.8256831538 | G215: ='WS calcu'!H671 -> 0.8049156951 | H215: ='WS calcu'!I671 -> 0.7912043724 | I215: ='WS calcu'!J671 -> 0.7776325295 | J215: ='WS calcu'!K671 -> 0.7640757005 | K215: ='WS calcu'!L671 -> 0.7505453895 | L215: ='WS calcu'!M671 -> 0.7406907249 | M215: ='WS calcu'!N671 -> 0.7288118723 | N215: ='WS calcu'!O671 -> 0.7165901034 | R215: 1 | T215: =IF($R$17="II. CUSTOMIZE BENCHMARKS",$S215,$R215)*$AA$21 -> 0 | U215: =IF($R$17="II. CUSTOMIZE BENCHMARKS",$S215,$R215)*$AA$22 -> 0.5 | V215: =IF($R$17="II. CUSTOMIZE BENCHMARKS",$S215,$R215)*$AA$23 -> 0.9
C216: Total operating revenues expressed as percentage of total operating expenses incurred in the corresponding time period.
... 43 more rows

Sheet Action Plan finance
C2: PERFORMANCE ASSESSMENT SYSTEM PROJECT
C4: =IFERROR(CONCATENATE("SANITATION IMPROVEMENT PLAN FOR ", UPPER('General info'!E30), " CITY, ", 'General info'!E21, - 'General info'!E22),"PERFORMANCE IMPROVEMENT PLAN") -> SANITATION IMPROVEMENT PLAN FOR WAI CITY, 2015-2024
C6: MODULE III: FINANCIAL PLANNING
C8: CSP ACTION PLAN FINANCES
A9: Click | D9: Financial Summary | P9: Action Plan Summary | Z9: All figures are in Rs. Lakhs
C10: Instructions for using this sheet: | D10: The financial implications of Inter-sectoral Action Plan are reported in this sheet. All the actions activated for each of the three sectors are complied here. The financial implication of each action is reported in terms of capital expenditure required to implement the action, its operational and maintenance expenses and additional revenue that shall be generated. This is reported year-wise for all the actions separately (Section II) as well as aggregated in Financial Summary (Section I). Generally, municipal projects with higher investment requirement are funded through external funding sources. These sources could include government grants and borrowings. Also, innovative approach could be explored in terms of private contributions either through PPP mode or beneficiary contributions. Decisions regarding such funding pattern can be made here. Provision is made to formulate a funding pattern for each improvement action. Under 'Sources of Funds', user has to mention percentage share of funding possible from either of the sources (for beneficiary contribution, share of funding is simulated from relevant actions linked from WS Plan, WS Plan, SWPlan sheets). The implication of these funding decisions shall be reflected in preparing overall feasible Financing Plan.
B12: I | C12: Financial summary
C14: Select SECTOR | D14: Total WSS
C16: Financial Summary | D16: ='Municipal Finance'!K16 -> 2015 | E16: ='Municipal Finance'!L16 -> 2016 | F16: ='Municipal Finance'!M16 -> 2017 | G16: ='Municipal Finance'!N16 -> 2018 | H16: ='Municipal Finance'!O16 -> 2019 | I16: ='Municipal Finance'!P16 -> 2020 | J16: ='Municipal Finance'!Q16 -> 2021 | K16: ='Municipal Finance'!R16 -> 2022 | L16: ='Municipal Finance'!S16 -> 2023 | M16: ='Municipal Finance'!T16 -> 2024 | N16: Total | P16: Sources of funds | R16: =D16 -> 2015 | S16: 2016 | T16: 2017 | U16: 2018 | V16: 2019 | W16: 2020 | X16: 2021 | Y16: 2022 | Z16: 2023 | AA16: 2024 | AB16: Total
C17: Capital expenditure | D17: ='CSP finance'!Q593 -> 338.3294507 | E17: ='CSP finance'!R593 -> 356.3107838 | F17: ='CSP finance'!S593 -> 345.8610464 | G17: ='CSP finance'!T593 -> 258.3579014 | H17: ='CSP finance'!U593 -> 381.3590133 | I17: ='CSP finance'!V593 -> 186.2706513 | J17: ='CSP finance'!W593 -> 289.5143713 | K17: ='CSP finance'!X593 -> 426.2161274 | L17: ='CSP finance'!Y593 -> 124.5862526 | M17: ='CSP finance'!Z593 -> 133.3072903 | N17: =SUM(D17:M17) -> 2840.112889 | P17: Central Grants | R17: ='CSP finance'!Q617 -> 31.86638333 | S17: ='CSP finance'!R617 -> 62.3281461 | T17: ='CSP finance'!S617 -> 66.69111633 | U17: ='CSP finance'!T617 -> 32.32180463 | V17: ='CSP finance'!U617 -> 87.04236041 | W17: ='CSP finance'!V617 -> 93.13532564 | X17: ='CSP finance'!W617 -> 144.7571857 | Y17: ='CSP finance'!X617 -> 213.1080637 | Z17: ='CSP finance'!Y617 -> 62.29312631 | AA17: ='CSP finance'!Z617 -> 66.65364516 | AB17: =SUM(R17:AA17) -> 860.1971573
P18: State Grants | R18: ='CSP finance'!Q618 -> 66.21415647 | S18: ='CSP finance'!R618 -> 93.43404017 | T18: ='CSP finance'!S618 -> 79.32938583 | U18: ='CSP finance'!T618 -> 53.65229096 | V18: ='CSP finance'!U618 -> 99.37437489 | W18: ='CSP finance'!V618 -> 74.50826051 | X18: ='CSP finance'!W618 -> 115.8057485 | Y18: ='CSP finance'!X618 -> 170.486451 | Z18: ='CSP finance'!Y618 -> 49.83450105 | AA18: ='CSP finance'!Z618 -> 53.32291612 | AB18: 855.9621255
C19: Additional O&M expense | D19: ='CSP finance'!Q594 -> 17.301 | E19: ='CSP finance'!R594 -> 34.02100013 | F19: ='CSP finance'!S594 -> 38.06486263 | G19: ='CSP finance'!T594 -> 39.96810576 | H19: ='CSP finance'!U594 -> 41.96651105 | I19: ='CSP finance'!V594 -> 50.84487309 | J19: ='CSP finance'!W594 -> 56.94663591 | K19: ='CSP finance'!X594 -> 63.53146282 | L19: ='CSP finance'!Y594 -> 80.50184684 | M19: ='CSP finance'!Z594 -> 84.52693918 | N19: =SUM(D19:M19) -> 507.6732374 | P19: External Debts | R19: ='CSP finance'!Q619 -> 0 | S19: ='CSP finance'!R619 -> 0 | T19: ='CSP finance'!S619 -> 0 | U19: ='CSP finance'!T619 -> 0 | V19: ='CSP finance'!U619 -> 0 | W19: ='CSP finance'!V619 -> 0 | X19: ='CSP finance'!W619 -> 0 | Y19: ='CSP finance'!X619 -> 0 | Z19: ='CSP finance'!Y619 -> 0 | AA19: ='CSP finance'!Z619 -> 0 | AB19: 0
P20: Private/ PPP | R20: ='CSP finance'!Q620 -> 22.87655 | S20: ='CSP finance'!R620 -> 11.6379085 | T20: ='CSP finance'!S620 -> 0 | U20: ='CSP finance'!T620 -> 0 | V20: ='CSP finance'!U620 -> 0 | W20: ='CSP finance'!V620 -> 0 | X20: ='CSP finance'!W620 -> 0 | Y20: ='CSP finance'!X620 -> 0 | Z20: ='CSP finance'!Y620 -> 0 | AA20: ='CSP finance'!Z620 -> 0 | AB20: 34.5144585
C21: Additional revenue | D21: ='CSP finance'!Q595 -> 0.0004797179913 | E21: ='CSP finance'!R595 -> 0.000687621789 | F21: ='CSP finance'!S595 -> 0.0009007187214 | G21: ='CSP finance'!T595 -> 0.001114487967 | H21: ='CSP finance'!U595 -> 0.00132848624 | I21: ='CSP finance'!V595 -> 0.001542507981 | J21: ='CSP finance'!W595 -> 0.001756530108 | K21: ='CSP finance'!X595 -> 0.002046688478 | L21: ='CSP finance'!Y595 -> 0.002294182143 | M21: ='CSP finance'!Z595 -> 0.002541701991 | N21: =SUM(D21:M21) -> 0.01469264341 | P21: Beneficiary share | R21: ='CSP finance'!Q621 -> 140.936035 | S21: ='CSP finance'!R621 -> 140.4829662 | T21: ='CSP finance'!S621 -> 150.3167739 | U21: ='CSP finance'!T621 -> 148.2391854 | V21: ='CSP finance'!U621 -> 158.6159283 | W21: ='CSP finance'!V621 -> 0 | X21: ='CSP finance'!W621 -> 0 | Y21: ='CSP finance'!X621 -> 0 | Z21: ='CSP finance'!Y621 -> 0 | AA21: ='CSP finance'!Z621 -> 0 | AB21: 738.5908888
P22: ULB share | R22: ='CSP finance'!Q616 -> 76.43632593 | S22: ='CSP finance'!R616 -> 48.42772282 | T22: ='CSP finance'!S616 -> 49.5237704 | U22: ='CSP finance'!T616 -> 24.1446204 | V22: ='CSP finance'!U616 -> 36.32634971 | W22: ='CSP finance'!V616 -> 18.62706513 | X22: ='CSP finance'!W616 -> 28.95143713 | Y22: ='CSP finance'!X616 -> 42.62161274 | Z22: ='CSP finance'!Y616 -> 12.45862526 | AA22: ='CSP finance'!Z616 -> 13.33072903 | AB22: 350.8482586
B49: II | C49: Action Plan summary
C51: IMPROVEMENT ACTIONS | K51: =IF($AH$52=1,"SUMMARY OF CAPITAL EXPENDITURE",IF($AH$52=2,"SUMMARY OF O&M EXPENDITURE","PHASING OF PIP ACTIONS")) -> SUMMARY OF CAPITAL EXPENDITURE | U51: SOURCES OF FUNDS FOR CAPITAL EXPENDITURE
U52: Against each action, mention percentage share of funding possible through either of these funding sources (%) | AH52: 1
C53: Sector colour code | D53: Water supply | F53: Wastewater | H53: Solid waste | K53: Click here to view | M53: Summary of | AH53: =IF($AH$52=1,"CAPEX",IF($AH$52=2,"O&M","PHASING")) -> CAPEX
U54: NOTE: RE-ENTER INPUTS IN THIS TABLE EACH TIME ACTIONS ARE ACTIVATED OR DEACTIVATED
C55: Actions | I55: Type | K55: =D16 -> 2015 | L55: 2016 | M55: 2017 | N55: 2018 | O55: 2019 | P55: 2020 | Q55: 2021 | R55: 2022 | S55: 2023 | T55: 2024 | U55: Total CapEx | V55: Central Grants | W55: State Grants | X55: Debt | Y55: Private/ PPP | Z55: Beneficiary | AA55: ULB share (% and Rs. lakhs) | AH55: Sector
C56: =IFERROR('Activation list'!U3,"") -> Computerise water supply records | I56: =IFERROR(VLOOKUP($C56,'CSP finance'!$C$448:$N$582,2,FALSE),"") -> Data system | K56: =IFERROR(VLOOKUP($C56,'CSP finance'!$C$448:$N$582,3,FALSE),"") -> 20.03575 | L56: =IFERROR(VLOOKUP($C56,'CSP finance'!$C$448:$N$582,4,FALSE),"") -> 21.4382525 | M56: =IFERROR(VLOOKUP($C56,'CSP finance'!$C$448:$N$582,5,FALSE),"") -> 0 | N56: =IFERROR(VLOOKUP($C56,'CSP finance'!$C$448:$N$582,6,FALSE),"") -> 0 | O56: =IFERROR(VLOOKUP($C56,'CSP finance'!$C$448:$N$582,7,FALSE),"") -> 0 | P56: =IFERROR(VLOOKUP($C56,'CSP finance'!$C$448:$N$582,8,FALSE),"") -> 0 | Q56: =IFERROR(VLOOKUP($C56,'CSP finance'!$C$448:$N$582,9,FALSE),"") -> 0 | R56: =IFERROR(VLOOKUP($C56,'CSP finance'!$C$448:$N$582,10,FALSE),"") -> 0 | S56: =IFERROR(VLOOKUP($C56,'CSP finance'!$C$448:$N$582,11,FALSE),"") -> 0 | T56: =IFERROR(VLOOKUP($C56,'CSP finance'!$C$448:$N$582,12,FALSE),"") -> 0 | U56: =IFERROR(VLOOKUP($C56,'CSP finance'!$C$448:$S$582,17,FALSE),"") -> 41.4740025 | W56: 0.9 | Z56: =IFERROR(VLOOKUP($C56,'CSP finance'!$C$448:$T$582,18,FALSE),"") -> 0 | AA56: =IF(C56<>"",1-SUM(V56:Z56),"") -> 0.1 | AB56: =IFERROR(AA56*U56,0) -> 4.14740025 | AH56: =IFERROR('Activation list'!V3,"") -> WS | AI56: =IFERROR(VLOOKUP($C56,'CSP finance'!$C$448:$R$582,14,FALSE),"") -> 2015 | AJ56: =IFERROR(VLOOKUP($C56,'CSP finance'!$C$448:$R$582,15,FALSE),"") -> 2016
C57: =IFERROR('Activation list'!U4,"") -> Improve condition of existing individual toilets by providing safe sanitation disposal system | I57: =IFERROR(VLOOKUP($C57,'CSP finance'!$C$448:$N$582,2,FALSE),"") -> Exisiting system | K57: =IFERROR(VLOOKUP($C57,'CSP finance'!$C$448:$N$582,3,FALSE),"") -> 19.92870272 | L57: =IFERROR(VLOOKUP($C57,'CSP finance'!$C$448:$N$582,4,FALSE),"") -> 11.00512071 | M57: =IFERROR(VLOOKUP($C57,'CSP finance'!$C$448:$N$582,5,FALSE),"") -> 11.77547916 | N57: =IFERROR(VLOOKUP($C57,'CSP finance'!$C$448:$N$582,6,FALSE),"") -> 0 | O57: =IFERROR(VLOOKUP($C57,'CSP finance'!$C$448:$N$582,7,FALSE),"") -> 0 | P57: =IFERROR(VLOOKUP($C57,'CSP finance'!$C$448:$N$582,8,FALSE),"") -> 0 | Q57: =IFERROR(VLOOKUP($C57,'CSP finance'!$C$448:$N$582,9,FALSE),"") -> 0 | R57: =IFERROR(VLOOKUP($C57,'CSP finance'!$C$448:$N$582,10,FALSE),"") -> 0 | S57: =IFERROR(VLOOKUP($C57,'CSP finance'!$C$448:$N$582,11,FALSE),"") -> 0 | T57: =IFERROR(VLOOKUP($C57,'CSP finance'!$C$448:$N$582,11,FALSE),"") -> 0 | U57: =IFERROR(VLOOKUP($C57,'CSP finance'!$C$448:$S$582,17,FALSE),"") -> 42.70930259 | Z57: =IFERROR(VLOOKUP($C57,'CSP finance'!$C$448:$T$582,18,FALSE),"") -> 1 | AA57: 0 | AB57: =IFERROR(AA57*U57,0) -> 0 | AH57: =IFERROR('Activation list'!V4,"") -> WW | AI57: =IFERROR(VLOOKUP($C57,'CSP finance'!$C$448:$R$582,14,FALSE),"") -> 2015 | AJ57: =IFERROR(VLOOKUP($C57,'CSP finance'!$C$448:$R$582,15,FALSE),"") -> 2017
C58: =IFERROR('Activation list'!U5,"") -> Improve condition of existing Community toilets | I58: =IFERROR(VLOOKUP($C58,'CSP finance'!$C$448:$N$582,2,FALSE),"") -> Exisiting system | K58: =IFERROR(VLOOKUP($C58,'CSP finance'!$C$448:$N$582,3,FALSE),"") -> 17.1735 | L58: =IFERROR(VLOOKUP($C58,'CSP finance'!$C$448:$N$582,4,FALSE),"") -> 18.375645 | M58: =IFERROR(VLOOKUP($C58,'CSP finance'!$C$448:$N$582,5,FALSE),"") -> 19.66194015 | N58: =IFERROR(VLOOKUP($C58,'CSP finance'!$C$448:$N$582,6,FALSE),"") -> 0 | O58: =IFERROR(VLOOKUP($C58,'CSP finance'!$C$448:$N$582,7,FALSE),"") -> 0 | P58: =IFERROR(VLOOKUP($C58,'CSP finance'!$C$448:$N$582,8,FALSE),"") -> 0 | Q58: =IFERROR(VLOOKUP($C58,'CSP finance'!$C$448:$N$582,9,FALSE),"") -> 0 | R58: =IFERROR(VLOOKUP($C58,'CSP finance'!$C$448:$N$582,10,FALSE),"") -> 0 | S58: =IFERROR(VLOOKUP($C58,'CSP finance'!$C$448:$N$582,11,FALSE),"") -> 0 | T58: =IFERROR(VLOOKUP($C58,'CSP finance'!$C$448:$N$582,11,FALSE),"") -> 0 | U58: =IFERROR(VLOOKUP($C58,'CSP finance'!$C$448:$S$582,17,FALSE),"") -> 55.21108515 | Z58: =IFERROR(VLOOKUP($C58,'CSP finance'!$C$448:$T$582,18,FALSE),"") -> 0 | AA58: 1 | AB58: 55.21108515 | AH58: =IFERROR('Activation list'!V5,"") -> WW | AI58: =IFERROR(VLOOKUP($C58,'CSP finance'!$C$448:$R$582,14,FALSE),"") -> 2015 | AJ58: =IFERROR(VLOOKUP($C58,'CSP finance'!$C$448:$R$582,15,FALSE),"") -> 2017
C59: =IFERROR('Activation list'!U6,"") -> Construct new individual toilets | I59: =IFERROR(VLOOKUP($C59,'CSP finance'!$C$448:$N$582,2,FALSE),"") -> New infrastructure | K59: =IFERROR(VLOOKUP($C59,'CSP finance'!$C$448:$N$582,3,FALSE),"") -> 151.2591654 | L59: =IFERROR(VLOOKUP($C59,'CSP finance'!$C$448:$N$582,4,FALSE),"") -> 161.8473069 | M59: =IFERROR(VLOOKUP($C59,'CSP finance'!$C$448:$N$582,5,FALSE),"") -> 173.1766184 | N59: =IFERROR(VLOOKUP($C59,'CSP finance'!$C$448:$N$582,6,FALSE),"") -> 185.2989817 | O59: =IFERROR(VLOOKUP($C59,'CSP finance'!$C$448:$N$582,7,FALSE),"") -> 198.2699104 | P59: =IFERROR(VLOOKUP($C59,'CSP finance'!$C$448:$N$582,8,FALSE),"") -> 0 | Q59: =IFERROR(VLOOKUP($C59,'CSP finance'!$C$448:$N$582,9,FALSE),"") -> 0 | R59: =IFERROR(VLOOKUP($C59,'CSP finance'!$C$448:$N$582,10,FALSE),"") -> 0 | S59: =IFERROR(VLOOKUP($C59,'CSP finance'!$C$448:$N$582,11,FALSE),"") -> 0 | T59: =IFERROR(VLOOKUP($C59,'CSP finance'!$C$448:$N$582,11,FALSE),"") -> 0 | U59: =IFERROR(VLOOKUP($C59,'CSP finance'!$C$448:$S$582,17,FALSE),"") -> 869.8519828 | W59: 0.15 | Z59: =IFERROR(VLOOKUP($C59,'CSP finance'!$C$448:$T$582,18,FALSE),"") -> 0.8 | AA59: 0.05 | AB59: 43.49259914 | AH59: =IFERROR('Activation list'!V6,"") -> WW | AI59: =IFERROR(VLOOKUP($C59,'CSP finance'!$C$448:$R$582,14,FALSE),"") -> 2015 | AJ59: =IFERROR(VLOOKUP($C59,'CSP finance'!$C$448:$R$582,15,FALSE),"") -> 2019
C60: =IFERROR('Activation list'!U7,"") -> Construct new public toilet blocks | I60: =IFERROR(VLOOKUP($C60,'CSP finance'!$C$448:$N$582,2,FALSE),"") -> New infrastructure | K60: =IFERROR(VLOOKUP($C60,'CSP finance'!$C$448:$N$582,3,FALSE),"") -> 10.87655 | L60: =IFERROR(VLOOKUP($C60,'CSP finance'!$C$448:$N$582,4,FALSE),"") -> 11.6379085 | M60: =IFERROR(VLOOKUP($C60,'CSP finance'!$C$448:$N$582,5,FALSE),"") -> 0 | N60: =IFERROR(VLOOKUP($C60,'CSP finance'!$C$448:$N$582,6,FALSE),"") -> 0 | O60: =IFERROR(VLOOKUP($C60,'CSP finance'!$C$448:$N$582,7,FALSE),"") -> 0 | P60: =IFERROR(VLOOKUP($C60,'CSP finance'!$C$448:$N$582,8,FALSE),"") -> 0 | Q60: =IFERROR(VLOOKUP($C60,'CSP finance'!$C$448:$N$582,9,FALSE),"") -> 0 | R60: =IFERROR(VLOOKUP($C60,'CSP finance'!$C$448:$N$582,10,FALSE),"") -> 0 | S60: =IFERROR(VLOOKUP($C60,'CSP finance'!$C$448:$N$582,11,FALSE),"") -> 0 | T60: =IFERROR(VLOOKUP($C60,'CSP finance'!$C$448:$N$582,12,FALSE),"") -> 0 | U60: =IFERROR(VLOOKUP($C60,'CSP finance'!$C$448:$S$582,17,FALSE),"") -> 22.5144585 | Y60: 1 | Z60: =IFERROR(VLOOKUP($C60,'CSP finance'!$C$448:$T$582,18,FALSE),"") -> 0 | AA60: 0 | AB60: 0 | AH60: =IFERROR('Activation list'!V7,"") -> WW | AI60: =IFERROR(VLOOKUP($C60,'CSP finance'!$C$448:$R$582,14,FALSE),"") -> 2015 | AJ60: =IFERROR(VLOOKUP($C60,'CSP finance'!$C$448:$R$582,15,FALSE),"") -> 2016
C61: =IFERROR('Activation list'!U8,"") -> Increase septage collection with existing suction emptier trucks | I61: =IFERROR(VLOOKUP($C61,'CSP finance'!$C$448:$N$582,2,FALSE),"") -> Exisiting system | K61: =IFERROR(VLOOKUP($C61,'CSP finance'!$C$448:$N$582,3,FALSE),"") -> 0 | L61: =IFERROR(VLOOKUP($C61,'CSP finance'!$C$448:$N$582,4,FALSE),"") -> 0 | M61: =IFERROR(VLOOKUP($C61,'CSP finance'!$C$448:$N$582,5,FALSE),"") -> 0 | N61: =IFERROR(VLOOKUP($C61,'CSP finance'!$C$448:$N$582,6,FALSE),"") -> 0 | O61: =IFERROR(VLOOKUP($C61,'CSP finance'!$C$448:$N$582,7,FALSE),"") -> 0 | P61: =IFERROR(VLOOKUP($C61,'CSP finance'!$C$448:$N$582,8,FALSE),"") -> 0 | Q61: =IFERROR(VLOOKUP($C61,'CSP finance'!$C$448:$N$582,9,FALSE),"") -> 0 | R61: =IFERROR(VLOOKUP($C61,'CSP finance'!$C$448:$N$582,10,FALSE),"") -> 0 | S61: =IFERROR(VLOOKUP($C61,'CSP finance'!$C$448:$N$582,11,FALSE),"") -> 0 | T61: =IFERROR(VLOOKUP($C61,'CSP finance'!$C$448:$N$582,12,FALSE),"") -> 0 | U61: =IFERROR(VLOOKUP($C61,'CSP finance'!$C$448:$S$582,17,FALSE),"") -> 0 | Z61: =IFERROR(VLOOKUP($C61,'CSP finance'!$C$448:$T$582,18,FALSE),"") -> 0 | AA61: 1 | AB61: 0 | AH61: =IFERROR('Activation list'!V8,"") -> WW | AI61: =IFERROR(VLOOKUP($C61,'CSP finance'!$C$448:$R$582,14,FALSE),"") -> 2015 | AJ61: =IFERROR(VLOOKUP($C61,'CSP finance'!$C$448:$R$582,15,FALSE),"") -> 2015
C62: =IFERROR('Activation list'!U9,"") -> Upgrade open surface drains to closed drains for storm water drainage | I62: =IFERROR(VLOOKUP($C62,'CSP finance'!$C$448:$N$582,2,FALSE),"") -> Exisiting system | K62: =IFERROR(VLOOKUP($C62,'CSP finance'!$C$448:$N$582,3,FALSE),"") -> 63.73276667 | L62: =IFERROR(VLOOKUP($C62,'CSP finance'!$C$448:$N$582,4,FALSE),"") -> 68.19406033 | M62: =IFERROR(VLOOKUP($C62,'CSP finance'!$C$448:$N$582,5,FALSE),"") -> 72.96764456 | N62: =IFERROR(VLOOKUP($C62,'CSP finance'!$C$448:$N$582,6,FALSE),"") -> 0 | O62: =IFERROR(VLOOKUP($C62,'CSP finance'!$C$448:$N$582,7,FALSE),"") -> 0 | P62: =IFERROR(VLOOKUP($C62,'CSP finance'!$C$448:$N$582,8,FALSE),"") -> 0 | Q62: =IFERROR(VLOOKUP($C62,'CSP finance'!$C$448:$N$582,9,FALSE),"") -> 0 | R62: =IFERROR(VLOOKUP($C62,'CSP finance'!$C$448:$N$582,10,FALSE),"") -> 0 | S62: =IFERROR(VLOOKUP($C62,'CSP finance'!$C$448:$N$582,11,FALSE),"") -> 0 | T62: =IFERROR(VLOOKUP($C62,'CSP finance'!$C$448:$N$582,12,FALSE),"") -> 0 | U62: =IFERROR(VLOOKUP($C62,'CSP finance'!$C$448:$S$582,17,FALSE),"") -> 204.8944716 | V62: 0.5 | W62: 0.4 | Z62: =IFERROR(VLOOKUP($C62,'CSP finance'!$C$448:$T$582,18,FALSE),"") -> 0 | AA62: 0.1 | AB62: 20.48944716 | AH62: =IFERROR('Activation list'!V9,"") -> WW | AI62: =IFERROR(VLOOKUP($C62,'CSP finance'!$C$448:$R$582,14,FALSE),"") -> 2015 | AJ62: =IFERROR(VLOOKUP($C62,'CSP finance'!$C$448:$R$582,15,FALSE),"") -> 2017
C63: =IFERROR('Activation list'!U10,"") -> Lay new settled sewer for wastewater conveyance | I63: =IFERROR(VLOOKUP($C63,'CSP finance'!$C$448:$N$582,2,FALSE),"") -> New infrastructure | K63: =IFERROR(VLOOKUP($C63,'CSP finance'!$C$448:$N$582,3,FALSE),"") -> 0 | L63: =IFERROR(VLOOKUP($C63,'CSP finance'!$C$448:$N$582,4,FALSE),"") -> 0 | M63: =IFERROR(VLOOKUP($C63,'CSP finance'!$C$448:$N$582,5,FALSE),"") -> 0 | N63: =IFERROR(VLOOKUP($C63,'CSP finance'!$C$448:$N$582,6,FALSE),"") -> 0 | O63: =IFERROR(VLOOKUP($C63,'CSP finance'!$C$448:$N$582,7,FALSE),"") -> 174.0847208 | P63: =IFERROR(VLOOKUP($C63,'CSP finance'!$C$448:$N$582,8,FALSE),"") -> 186.2706513 | Q63: =IFERROR(VLOOKUP($C63,'CSP finance'!$C$448:$N$582,9,FALSE),"") -> 199.3095969 | R63: =IFERROR(VLOOKUP($C63,'CSP finance'!$C$448:$N$582,10,FALSE),"") -> 213.2612686 | S63: =IFERROR(VLOOKUP($C63,'CSP finance'!$C$448:$N$582,11,FALSE),"") -> 0 | T63: =IFERROR(VLOOKUP($C63,'CSP finance'!$C$448:$N$582,12,FALSE),"") -> 0 | U63: =IFERROR(VLOOKUP($C63,'CSP finance'!$C$448:$S$582,17,FALSE),"") -> 772.9262376 | V63: 0.5 | W63: 0.4 | Z63: =IFERROR(VLOOKUP($C63,'CSP finance'!$C$448:$T$582,18,FALSE),"") -> 0 | AA63: 0.1 | AB63: 77.29262376 | AH63: =IFERROR('Activation list'!V10,"") -> WW | AI63: =IFERROR(VLOOKUP($C63,'CSP finance'!$C$448:$R$582,14,FALSE),"") -> 2019 | AJ63: =IFERROR(VLOOKUP($C63,'CSP finance'!$C$448:$R$582,15,FALSE),"") -> 2022
C64: =IFERROR('Activation list'!U11,"") -> Procure new suction emptier trucks | I64: =IFERROR(VLOOKUP($C64,'CSP finance'!$C$448:$N$582,2,FALSE),"") -> New infrastructure | K64: =IFERROR(VLOOKUP($C64,'CSP finance'!$C$448:$N$582,3,FALSE),"") -> 12 | L64: =IFERROR(VLOOKUP($C64,'CSP finance'!$C$448:$N$582,4,FALSE),"") -> 0 | M64: =IFERROR(VLOOKUP($C64,'CSP finance'!$C$448:$N$582,5,FALSE),"") -> 0 | N64: =IFERROR(VLOOKUP($C64,'CSP finance'!$C$448:$N$582,6,FALSE),"") -> 0 | O64: =IFERROR(VLOOKUP($C64,'CSP finance'!$C$448:$N$582,7,FALSE),"") -> 0 | P64: =IFERROR(VLOOKUP($C64,'CSP finance'!$C$448:$N$582,8,FALSE),"") -> 0 | Q64: =IFERROR(VLOOKUP($C64,'CSP finance'!$C$448:$N$582,9,FALSE),"") -> 0 | R64: =IFERROR(VLOOKUP($C64,'CSP finance'!$C$448:$N$582,10,FALSE),"") -> 0 | S64: =IFERROR(VLOOKUP($C64,'CSP finance'!$C$448:$N$582,11,FALSE),"") -> 0 | T64: =IFERROR(VLOOKUP($C64,'CSP finance'!$C$448:$N$582,12,FALSE),"") -> 0 | U64: =IFERROR(VLOOKUP($C64,'CSP finance'!$C$448:$S$582,17,FALSE),"") -> 12 | Y64: 1 | Z64: =IFERROR(VLOOKUP($C64,'CSP finance'!$C$448:$T$582,18,FALSE),"") -> 0 | AA64: 0 | AB64: 0 | AH64: =IFERROR('Activation list'!V11,"") -> WW | AI64: =IFERROR(VLOOKUP($C64,'CSP finance'!$C$448:$R$582,14,FALSE),"") -> 2015 | AJ64: =IFERROR(VLOOKUP($C64,'CSP finance'!$C$448:$R$582,15,FALSE),"") -> 2015
C65: =IFERROR('Activation list'!U12,"") -> Construct/augment fecal sludge treatment plant | I65: =IFERROR(VLOOKUP($C65,'CSP finance'!$C$448:$N$582,2,FALSE),"") -> New infrastructure | K65: =IFERROR(VLOOKUP($C65,'CSP finance'!$C$448:$N$582,3,FALSE),"") -> 31.48475 | L65: =IFERROR(VLOOKUP($C65,'CSP finance'!$C$448:$N$582,4,FALSE),"") -> 0 | M65: =IFERROR(VLOOKUP($C65,'CSP finance'!$C$448:$N$582,5,FALSE),"") -> 0 | N65: =IFERROR(VLOOKUP($C65,'CSP finance'!$C$448:$N$582,6,FALSE),"") -> 0 | O65: =IFERROR(VLOOKUP($C65,'CSP finance'!$C$448:$N$582,7,FALSE),"") -> 0 | P65: =IFERROR(VLOOKUP($C65,'CSP finance'!$C$448:$N$582,8,FALSE),"") -> 0 | Q65: =IFERROR(VLOOKUP($C65,'CSP finance'!$C$448:$N$582,9,FALSE),"") -> 0 | R65: =IFERROR(VLOOKUP($C65,'CSP finance'!$C$448:$N$582,10,FALSE),"") -> 0 | S65: =IFERROR(VLOOKUP($C65,'CSP finance'!$C$448:$N$582,11,FALSE),"") -> 0 | T65: =IFERROR(VLOOKUP($C65,'CSP finance'!$C$448:$N$582,12,FALSE),"") -> 0 | U65: =IFERROR(VLOOKUP($C65,'CSP finance'!$C$448:$S$582,17,FALSE),"") -> 31.48475 | Z65: =IFERROR(VLOOKUP($C65,'CSP finance'!$C$448:$T$582,18,FALSE),"") -> 0 | AA65: 1 | AB65: 31.48475 | AH65: =IFERROR('Activation list'!V12,"") -> WW | AI65: =IFERROR(VLOOKUP($C65,'CSP finance'!$C$448:$R$582,14,FALSE),"") -> 2015 | AJ65: =IFERROR(VLOOKUP($C65,'CSP finance'!$C$448:$R$582,15,FALSE),"") -> 2015
C66: =IFERROR('Activation list'!U13,"") -> Construct/augment treatment plant for effluent and sullage | I66: =IFERROR(VLOOKUP($C66,'CSP finance'!$C$448:$N$582,2,FALSE),"") -> New infrastructure | K66: =IFERROR(VLOOKUP($C66,'CSP finance'!$C$448:$N$582,3,FALSE),"") -> 0 | L66: =IFERROR(VLOOKUP($C66,'CSP finance'!$C$448:$N$582,4,FALSE),"") -> 0 | M66: =IFERROR(VLOOKUP($C66,'CSP finance'!$C$448:$N$582,5,FALSE),"") -> 0 | N66: =IFERROR(VLOOKUP($C66,'CSP finance'!$C$448:$N$582,6,FALSE),"") -> 0 | O66: =IFERROR(VLOOKUP($C66,'CSP finance'!$C$448:$N$582,7,FALSE),"") -> 0 | P66: =IFERROR(VLOOKUP($C66,'CSP finance'!$C$448:$N$582,8,FALSE),"") -> 0 | Q66: =IFERROR(VLOOKUP($C66,'CSP finance'!$C$448:$N$582,9,FALSE),"") -> 90.20477444 | R66: =IFERROR(VLOOKUP($C66,'CSP finance'!$C$448:$N$582,10,FALSE),"") -> 96.51910865 | S66: =IFERROR(VLOOKUP($C66,'CSP finance'!$C$448:$N$582,11,FALSE),"") -> 0 | T66: =IFERROR(VLOOKUP($C66,'CSP finance'!$C$448:$N$582,12,FALSE),"") -> 0 | U66: =IFERROR(VLOOKUP($C66,'CSP finance'!$C$448:$S$582,17,FALSE),"") -> 186.7238831 | V66: 0.5 | W66: 0.4 | Z66: =IFERROR(VLOOKUP($C66,'CSP finance'!$C$448:$T$582,18,FALSE),"") -> 0 | AA66: 0.1 | AB66: 18.67238831 | AH66: =IFERROR('Activation list'!V13,"") -> WW | AI66: =IFERROR(VLOOKUP($C66,'CSP finance'!$C$448:$R$582,14,FALSE),"") -> 2021 | AJ66: =IFERROR(VLOOKUP($C66,'CSP finance'!$C$448:$R$582,15,FALSE),"") -> 2022
C67: =IFERROR('Activation list'!U14,"") -> Desilting and rehabilitation of drains | I67: =IFERROR(VLOOKUP($C67,'CSP finance'!$C$448:$N$582,2,FALSE),"") -> Customise action | K67: =IFERROR(VLOOKUP($C67,'CSP finance'!$C$448:$N$582,3,FALSE),"") -> 0 | L67: =IFERROR(VLOOKUP($C67,'CSP finance'!$C$448:$N$582,4,FALSE),"") -> 56.46223187 | M67: =IFERROR(VLOOKUP($C67,'CSP finance'!$C$448:$N$582,5,FALSE),"") -> 60.4145881 | N67: =IFERROR(VLOOKUP($C67,'CSP finance'!$C$448:$N$582,6,FALSE),"") -> 64.64360927 | O67: =IFERROR(VLOOKUP($C67,'CSP finance'!$C$448:$N$582,7,FALSE),"") -> 0 | P67: =IFERROR(VLOOKUP($C67,'CSP finance'!$C$448:$N$582,8,FALSE),"") -> 0 | Q67: =IFERROR(VLOOKUP($C67,'CSP finance'!$C$448:$N$582,9,FALSE),"") -> 0 | R67: =IFERROR(VLOOKUP($C67,'CSP finance'!$C$448:$N$582,10,FALSE),"") -> 0 | S67: =IFERROR(VLOOKUP($C67,'CSP finance'!$C$448:$N$582,11,FALSE),"") -> 0 | T67: =IFERROR(VLOOKUP($C67,'CSP finance'!$C$448:$N$582,12,FALSE),"") -> 0 | U67: =IFERROR(VLOOKUP($C67,'CSP finance'!$C$448:$S$582,17,FALSE),"") -> 181.5204292 | V67: 0.5 | W67: 0.4 | Z67: =IFERROR(VLOOKUP($C67,'CSP finance'!$C$448:$T$582,18,FALSE),"") -> 0 | AA67: 0.1 | AB67: 18.15204292 | AH67: =IFERROR('Activation list'!V14,"") -> WW | AI67: =IFERROR(VLOOKUP($C67,'CSP finance'!$C$448:$R$582,14,FALSE),"") -> 2016 | AJ67: =IFERROR(VLOOKUP($C67,'CSP finance'!$C$448:$R$582,15,FALSE),"") -> 2018
C68: =IFERROR('Activation list'!U15,"") -> Prepare management plan to efficiently deploy manpower and resources | I68: =IFERROR(VLOOKUP($C68,'CSP finance'!$C$448:$N$582,2,FALSE),"") -> Process/ Policy | K68: =IFERROR(VLOOKUP($C68,'CSP finance'!$C$448:$N$582,3,FALSE),"") -> 0 | L68: =IFERROR(VLOOKUP($C68,'CSP finance'!$C$448:$N$582,4,FALSE),"") -> 0 | M68: =IFERROR(VLOOKUP($C68,'CSP finance'!$C$448:$N$582,5,FALSE),"") -> 0 | N68: =IFERROR(VLOOKUP($C68,'CSP finance'!$C$448:$N$582,6,FALSE),"") -> 0 | O68: =IFERROR(VLOOKUP($C68,'CSP finance'!$C$448:$N$582,7,FALSE),"") -> 0 | P68: =IFERROR(VLOOKUP($C68,'CSP finance'!$C$448:$N$582,8,FALSE),"") -> 0 | Q68: =IFERROR(VLOOKUP($C68,'CSP finance'!$C$448:$N$582,9,FALSE),"") -> 0 | R68: =IFERROR(VLOOKUP($C68,'CSP finance'!$C$448:$N$582,10,FALSE),"") -> 0 | S68: =IFERROR(VLOOKUP($C68,'CSP finance'!$C$448:$N$582,11,FALSE),"") -> 0 | T68: =IFERROR(VLOOKUP($C68,'CSP finance'!$C$448:$N$582,12,FALSE),"") -> 0 | U68: =IFERROR(VLOOKUP($C68,'CSP finance'!$C$448:$S$582,17,FALSE),"") -> 0 | Z68: =IFERROR(VLOOKUP($C68,'CSP finance'!$C$448:$T$582,18,FALSE),"") -> 0 | AA68: 1 | AB68: 0 | AH68: =IFERROR('Activation list'!V15,"") -> SW | AI68: =IFERROR(VLOOKUP($C68,'CSP finance'!$C$448:$R$582,14,FALSE),"") -> 2015 | AJ68: =IFERROR(VLOOKUP($C68,'CSP finance'!$C$448:$R$582,15,FALSE),"") -> 2015
C69: =IFERROR('Activation list'!U16,"") -> Information, education and communication (IEC) campaign for awareness of solid waste management | I69: =IFERROR(VLOOKUP($C69,'CSP finance'!$C$448:$N$582,2,FALSE),"") -> Exisiting system | K69: =IFERROR(VLOOKUP($C69,'CSP finance'!$C$448:$N$582,3,FALSE),"") -> 6.8694 | L69: =IFERROR(VLOOKUP($C69,'CSP finance'!$C$448:$N$582,4,FALSE),"") -> 7.350258 | M69: =IFERROR(VLOOKUP($C69,'CSP finance'!$C$448:$N$582,5,FALSE),"") -> 7.86477606 | N69: =IFERROR(VLOOKUP($C69,'CSP finance'!$C$448:$N$582,6,FALSE),"") -> 8.415310384 | O69: =IFERROR(VLOOKUP($C69,'CSP finance'!$C$448:$N$582,7,FALSE),"") -> 9.004382111 | P69: =IFERROR(VLOOKUP($C69,'CSP finance'!$C$448:$N$582,8,FALSE),"") -> 0 | Q69: =IFERROR(VLOOKUP($C69,'CSP finance'!$C$448:$N$582,9,FALSE),"") -> 0 | R69: =IFERROR(VLOOKUP($C69,'CSP finance'!$C$448:$N$582,10,FALSE),"") -> 0 | S69: =IFERROR(VLOOKUP($C69,'CSP finance'!$C$448:$N$582,11,FALSE),"") -> 0 | T69: =IFERROR(VLOOKUP($C69,'CSP finance'!$C$448:$N$582,12,FALSE),"") -> 0 | U69: =IFERROR(VLOOKUP($C69,'CSP finance'!$C$448:$S$582,17,FALSE),"") -> 39.50412656 | Z69: =IFERROR(VLOOKUP($C69,'CSP finance'!$C$448:$T$582,18,FALSE),"") -> 0 | AA69: 1 | AB69: 39.50412656 | AH69: =IFERROR('Activation list'!V16,"") -> SW | AI69: =IFERROR(VLOOKUP($C69,'CSP finance'!$C$448:$R$582,14,FALSE),"") -> 2015 | AJ69: =IFERROR(VLOOKUP($C69,'CSP finance'!$C$448:$R$582,15,FALSE),"") -> 2019
C70: =IFERROR('Activation list'!U17,"") -> Engage with private service providers to provide solid waste services | I70: =IFERROR(VLOOKUP($C70,'CSP finance'!$C$448:$N$582,2,FALSE),"") -> New infrastructure | K70: =IFERROR(VLOOKUP($C70,'CSP finance'!$C$448:$N$582,3,FALSE),"") -> 0 | L70: =IFERROR(VLOOKUP($C70,'CSP finance'!$C$448:$N$582,4,FALSE),"") -> 0 | M70: =IFERROR(VLOOKUP($C70,'CSP finance'!$C$448:$N$582,5,FALSE),"") -> 0 | N70: =IFERROR(VLOOKUP($C70,'CSP finance'!$C$448:$N$582,6,FALSE),"") -> 0 | O70: =IFERROR(VLOOKUP($C70,'CSP finance'!$C$448:$N$582,7,FALSE),"") -> 0 | P70: =IFERROR(VLOOKUP($C70,'CSP finance'!$C$448:$N$582,8,FALSE),"") -> 0 | Q70: =IFERROR(VLOOKUP($C70,'CSP finance'!$C$448:$N$582,9,FALSE),"") -> 0 | R70: =IFERROR(VLOOKUP($C70,'CSP finance'!$C$448:$N$582,10,FALSE),"") -> 0 | S70: =IFERROR(VLOOKUP($C70,'CSP finance'!$C$448:$N$582,11,FALSE),"") -> 0 | T70: =IFERROR(VLOOKUP($C70,'CSP finance'!$C$448:$N$582,12,FALSE),"") -> 0 | U70: =IFERROR(VLOOKUP($C70,'CSP finance'!$C$448:$S$582,17,FALSE),"") -> 0 | Z70: =IFERROR(VLOOKUP($C70,'CSP finance'!$C$448:$T$582,18,FALSE),"") -> 0 | AA70: 1 | AB70: 0 | AH70: =IFERROR('Activation list'!V17,"") -> SW | AI70: =IFERROR(VLOOKUP($C70,'CSP finance'!$C$448:$R$582,14,FALSE),"") -> 2015 | AJ70: =IFERROR(VLOOKUP($C70,'CSP finance'!$C$448:$R$582,15,FALSE),"") -> 2024
C71: =IFERROR('Activation list'!U18,"") -> Process for periodic estimation of recyclable material collected by recyclers | I71: =IFERROR(VLOOKUP($C71,'CSP finance'!$C$448:$N$582,2,FALSE),"") -> Process/ Policy | K71: =IFERROR(VLOOKUP($C71,'CSP finance'!$C$448:$N$582,3,FALSE),"") -> 0 | L71: =IFERROR(VLOOKUP($C71,'CSP finance'!$C$448:$N$582,4,FALSE),"") -> 0 | M71: =IFERROR(VLOOKUP($C71,'CSP finance'!$C$448:$N$582,5,FALSE),"") -> 0 | N71: =IFERROR(VLOOKUP($C71,'CSP finance'!$C$448:$N$582,6,FALSE),"") -> 0 | O71: =IFERROR(VLOOKUP($C71,'CSP finance'!$C$448:$N$582,7,FALSE),"") -> 0 | P71: =IFERROR(VLOOKUP($C71,'CSP finance'!$C$448:$N$582,8,FALSE),"") -> 0 | Q71: =IFERROR(VLOOKUP($C71,'CSP finance'!$C$448:$N$582,9,FALSE),"") -> 0 | R71: =IFERROR(VLOOKUP($C71,'CSP finance'!$C$448:$N$582,10,FALSE),"") -> 0 | S71: =IFERROR(VLOOKUP($C71,'CSP finance'!$C$448:$N$582,11,FALSE),"") -> 0 | T71: =IFERROR(VLOOKUP($C71,'CSP finance'!$C$448:$N$582,12,FALSE),"") -> 0 | U71: =IFERROR(VLOOKUP($C71,'CSP finance'!$C$448:$S$582,17,FALSE),"") -> 0 | Z71: =IFERROR(VLOOKUP($C71,'CSP finance'!$C$448:$T$582,18,FALSE),"") -> 0 | AA71: 1 | AB71: 0 | AH71: =IFERROR('Activation list'!V18,"") -> SW | AI71: =IFERROR(VLOOKUP($C71,'CSP finance'!$C$448:$R$582,14,FALSE),"") -> 2015 | AJ71: =IFERROR(VLOOKUP($C71,'CSP finance'!$C$448:$R$582,15,FALSE),"") -> 2015
C72: =IFERROR('Activation list'!U19,"") -> Segregation of collection and transportation of solid waste | I72: =IFERROR(VLOOKUP($C72,'CSP finance'!$C$448:$N$582,2,FALSE),"") -> Exisiting system | K72: =IFERROR(VLOOKUP($C72,'CSP finance'!$C$448:$N$582,3,FALSE),"") -> 0.961716 | L72: =IFERROR(VLOOKUP($C72,'CSP finance'!$C$448:$N$582,4,FALSE),"") -> 0 | M72: =IFERROR(VLOOKUP($C72,'CSP finance'!$C$448:$N$582,5,FALSE),"") -> 0 | N72: =IFERROR(VLOOKUP($C72,'CSP finance'!$C$448:$N$582,6,FALSE),"") -> 0 | O72: =IFERROR(VLOOKUP($C72,'CSP finance'!$C$448:$N$582,7,FALSE),"") -> 0 | P72: =IFERROR(VLOOKUP($C72,'CSP finance'!$C$448:$N$582,8,FALSE),"") -> 0 | Q72: =IFERROR(VLOOKUP($C72,'CSP finance'!$C$448:$N$582,9,FALSE),"") -> 0 | R72: =IFERROR(VLOOKUP($C72,'CSP finance'!$C$448:$N$582,10,FALSE),"") -> 0 | S72: =IFERROR(VLOOKUP($C72,'CSP finance'!$C$448:$N$582,11,FALSE),"") -> 0 | T72: =IFERROR(VLOOKUP($C72,'CSP finance'!$C$448:$N$582,12,FALSE),"") -> 0 | U72: =IFERROR(VLOOKUP($C72,'CSP finance'!$C$448:$S$582,17,FALSE),"") -> 0.961716 | Z72: =IFERROR(VLOOKUP($C72,'CSP finance'!$C$448:$T$582,18,FALSE),"") -> 0 | AA72: 1 | AB72: 0.961716 | AH72: =IFERROR('Activation list'!V19,"") -> SW | AI72: =IFERROR(VLOOKUP($C72,'CSP finance'!$C$448:$R$582,14,FALSE),"") -> 2015 | AJ72: =IFERROR(VLOOKUP($C72,'CSP finance'!$C$448:$R$582,15,FALSE),"") -> 2015
C73: =IFERROR('Activation list'!U20,"") -> Procure new vehicles for solid waste collection and transportation | I73: =IFERROR(VLOOKUP($C73,'CSP finance'!$C$448:$N$582,2,FALSE),"") -> New infrastructure | K73: =IFERROR(VLOOKUP($C73,'CSP finance'!$C$448:$N$582,3,FALSE),"") -> 4.00715 | L73: =IFERROR(VLOOKUP($C73,'CSP finance'!$C$448:$N$582,4,FALSE),"") -> 0 | M73: =IFERROR(VLOOKUP($C73,'CSP finance'!$C$448:$N$582,5,FALSE),"") -> 0 | N73: =IFERROR(VLOOKUP($C73,'CSP finance'!$C$448:$N$582,6,FALSE),"") -> 0 | O73: =IFERROR(VLOOKUP($C73,'CSP finance'!$C$448:$N$582,7,FALSE),"") -> 0 | P73: =IFERROR(VLOOKUP($C73,'CSP finance'!$C$448:$N$582,8,FALSE),"") -> 0 | Q73: =IFERROR(VLOOKUP($C73,'CSP finance'!$C$448:$N$582,9,FALSE),"") -> 0 | R73: =IFERROR(VLOOKUP($C73,'CSP finance'!$C$448:$N$582,10,FALSE),"") -> 0 | S73: =IFERROR(VLOOKUP($C73,'CSP finance'!$C$448:$N$582,11,FALSE),"") -> 0 | T73: =IFERROR(VLOOKUP($C73,'CSP finance'!$C$448:$N$582,12,FALSE),"") -> 0 | U73: =IFERROR(VLOOKUP($C73,'CSP finance'!$C$448:$S$582,17,FALSE),"") -> 4.00715 | Z73: =IFERROR(VLOOKUP($C73,'CSP finance'!$C$448:$T$582,18,FALSE),"") -> 0 | AA73: 1 | AB73: 4.00715 | AH73: =IFERROR('Activation list'!V20,"") -> SW | AI73: =IFERROR(VLOOKUP($C73,'CSP finance'!$C$448:$R$582,14,FALSE),"") -> 2015 | AJ73: =IFERROR(VLOOKUP($C73,'CSP finance'!$C$448:$R$582,15,FALSE),"") -> 2015
C74: =IFERROR('Activation list'!U21,"") -> Process to obtain authorisation from concerned authorities and furnish annual report of compliance | I74: =IFERROR(VLOOKUP($C74,'CSP finance'!$C$448:$N$582,2,FALSE),"") -> Process/ Policy | K74: =IFERROR(VLOOKUP($C74,'CSP finance'!$C$448:$N$582,3,FALSE),"") -> 0 | L74: =IFERROR(VLOOKUP($C74,'CSP finance'!$C$448:$N$582,4,FALSE),"") -> 0 | M74: =IFERROR(VLOOKUP($C74,'CSP finance'!$C$448:$N$582,5,FALSE),"") -> 0 | N74: =IFERROR(VLOOKUP($C74,'CSP finance'!$C$448:$N$582,6,FALSE),"") -> 0 | O74: =IFERROR(VLOOKUP($C74,'CSP finance'!$C$448:$N$582,7,FALSE),"") -> 0 | P74: =IFERROR(VLOOKUP($C74,'CSP finance'!$C$448:$N$582,8,FALSE),"") -> 0 | Q74: =IFERROR(VLOOKUP($C74,'CSP finance'!$C$448:$N$582,9,FALSE),"") -> 0 | R74: =IFERROR(VLOOKUP($C74,'CSP finance'!$C$448:$N$582,10,FALSE),"") -> 0 | S74: =IFERROR(VLOOKUP($C74,'CSP finance'!$C$448:$N$582,11,FALSE),"") -> 0 | T74: =IFERROR(VLOOKUP($C74,'CSP finance'!$C$448:$N$582,12,FALSE),"") -> 0 | U74: =IFERROR(VLOOKUP($C74,'CSP finance'!$C$448:$S$582,17,FALSE),"") -> 0 | Z74: =IFERROR(VLOOKUP($C74,'CSP finance'!$C$448:$T$582,18,FALSE),"") -> 0 | AA74: 1 | AB74: 0 | AH74: =IFERROR('Activation list'!V21,"") -> SW | AI74: =IFERROR(VLOOKUP($C74,'CSP finance'!$C$448:$R$582,14,FALSE),"") -> 2015 | AJ74: =IFERROR(VLOOKUP($C74,'CSP finance'!$C$448:$R$582,15,FALSE),"") -> 2015
C75: =IFERROR('Activation list'!U22,"") -> Construct sanitary landfill facility for solid waste disposal | I75: =IFERROR(VLOOKUP($C75,'CSP finance'!$C$448:$N$582,2,FALSE),"") -> New infrastructure | K75: =IFERROR(VLOOKUP($C75,'CSP finance'!$C$448:$N$582,3,FALSE),"") -> 0 | L75: =IFERROR(VLOOKUP($C75,'CSP finance'!$C$448:$N$582,4,FALSE),"") -> 0 | M75: =IFERROR(VLOOKUP($C75,'CSP finance'!$C$448:$N$582,5,FALSE),"") -> 0 | N75: =IFERROR(VLOOKUP($C75,'CSP finance'!$C$448:$N$582,6,FALSE),"") -> 0 | O75: =IFERROR(VLOOKUP($C75,'CSP finance'!$C$448:$N$582,7,FALSE),"") -> 0 | P75: =IFERROR(VLOOKUP($C75,'CSP finance'!$C$448:$N$582,8,FALSE),"") -> 0 | Q75: =IFERROR(VLOOKUP($C75,'CSP finance'!$C$448:$N$582,9,FALSE),"") -> 0 | R75: =IFERROR(VLOOKUP($C75,'CSP finance'!$C$448:$N$582,10,FALSE),"") -> 116.4357501 | S75: =IFERROR(VLOOKUP($C75,'CSP finance'!$C$448:$N$582,11,FALSE),"") -> 124.5862526 | T75: =IFERROR(VLOOKUP($C75,'CSP finance'!$C$448:$N$582,12,FALSE),"") -> 133.3072903 | U75: =IFERROR(VLOOKUP($C75,'CSP finance'!$C$448:$S$582,17,FALSE),"") -> 374.3292931 | V75: 0.5 | W75: 0.4 | Z75: =IFERROR(VLOOKUP($C75,'CSP finance'!$C$448:$T$582,18,FALSE),"") -> 0 | AA75: 0.1 | AB75: 37.43292931 | AH75: =IFERROR('Activation list'!V22,"") -> SW | AI75: =IFERROR(VLOOKUP($C75,'CSP finance'!$C$448:$R$582,14,FALSE),"") -> 2022 | AJ75: =IFERROR(VLOOKUP($C75,'CSP finance'!$C$448:$R$582,15,FALSE),"") -> 2024
C76: =IFERROR('Activation list'!U23,"") ->  | I76: =IFERROR(VLOOKUP($C76,'CSP finance'!$C$448:$N$582,2,FALSE),"") ->  | K76: =IFERROR(VLOOKUP($C76,'CSP finance'!$C$448:$N$582,3,FALSE),"") ->  | L76: =IFERROR(VLOOKUP($C76,'CSP finance'!$C$448:$N$582,4,FALSE),"") ->  | M76: =IFERROR(VLOOKUP($C76,'CSP finance'!$C$448:$N$582,5,FALSE),"") ->  | N76: =IFERROR(VLOOKUP($C76,'CSP finance'!$C$448:$N$582,6,FALSE),"") ->  | O76: =IFERROR(VLOOKUP($C76,'CSP finance'!$C$448:$N$582,7,FALSE),"") ->  | P76: =IFERROR(VLOOKUP($C76,'CSP finance'!$C$448:$N$582,8,FALSE),"") ->  | Q76: =IFERROR(VLOOKUP($C76,'CSP finance'!$C$448:$N$582,9,FALSE),"") ->  | R76: =IFERROR(VLOOKUP($C76,'CSP finance'!$C$448:$N$582,10,FALSE),"") ->  | S76: =IFERROR(VLOOKUP($C76,'CSP finance'!$C$448:$N$582,11,FALSE),"") ->  | T76: =IFERROR(VLOOKUP($C76,'CSP finance'!$C$448:$N$582,12,FALSE),"") ->  | U76: =IFERROR(VLOOKUP($C76,'CSP finance'!$C$448:$S$582,17,FALSE),"") ->  | Z76: =IFERROR(VLOOKUP($C76,'CSP finance'!$C$448:$T$582,18,FALSE),"") ->  | AB76: 0 | AH76: =IFERROR('Activation list'!V23,"") ->  | AI76: =IFERROR(VLOOKUP($C76,'CSP finance'!$C$448:$R$582,14,FALSE),"") ->  | AJ76: =IFERROR(VLOOKUP($C76,'CSP finance'!$C$448:$R$582,15,FALSE),"") -> 
C77: =IFERROR('Activation list'!U24,"") ->  | I77: =IFERROR(VLOOKUP($C77,'CSP finance'!$C$448:$N$582,2,FALSE),"") ->  | K77: =IFERROR(VLOOKUP($C77,'CSP finance'!$C$448:$N$582,3,FALSE),"") ->  | L77: =IFERROR(VLOOKUP($C77,'CSP finance'!$C$448:$N$582,4,FALSE),"") ->  | M77: =IFERROR(VLOOKUP($C77,'CSP finance'!$C$448:$N$582,5,FALSE),"") ->  | N77: =IFERROR(VLOOKUP($C77,'CSP finance'!$C$448:$N$582,6,FALSE),"") ->  | O77: =IFERROR(VLOOKUP($C77,'CSP finance'!$C$448:$N$582,7,FALSE),"") ->  | P77: =IFERROR(VLOOKUP($C77,'CSP finance'!$C$448:$N$582,8,FALSE),"") ->  | Q77: =IFERROR(VLOOKUP($C77,'CSP finance'!$C$448:$N$582,9,FALSE),"") ->  | R77: =IFERROR(VLOOKUP($C77,'CSP finance'!$C$448:$N$582,10,FALSE),"") ->  | S77: =IFERROR(VLOOKUP($C77,'CSP finance'!$C$448:$N$582,11,FALSE),"") ->  | T77: =IFERROR(VLOOKUP($C77,'CSP finance'!$C$448:$N$582,12,FALSE),"") ->  | U77: =IFERROR(VLOOKUP($C77,'CSP finance'!$C$448:$S$582,17,FALSE),"") ->  | Z77: =IFERROR(VLOOKUP($C77,'CSP finance'!$C$448:$T$582,18,FALSE),"") ->  | AB77: 0 | AH77: =IFERROR('Activation list'!V24,"") ->  | AI77: =IFERROR(VLOOKUP($C77,'CSP finance'!$C$448:$R$582,14,FALSE),"") ->  | AJ77: =IFERROR(VLOOKUP($C77,'CSP finance'!$C$448:$R$582,15,FALSE),"") -> 
C78: =IFERROR('Activation list'!U25,"") ->  | I78: =IFERROR(VLOOKUP($C78,'CSP finance'!$C$448:$N$582,2,FALSE),"") ->  | K78: =IFERROR(VLOOKUP($C78,'CSP finance'!$C$448:$N$582,3,FALSE),"") ->  | L78: =IFERROR(VLOOKUP($C78,'CSP finance'!$C$448:$N$582,4,FALSE),"") ->  | M78: =IFERROR(VLOOKUP($C78,'CSP finance'!$C$448:$N$582,5,FALSE),"") ->  | N78: =IFERROR(VLOOKUP($C78,'CSP finance'!$C$448:$N$582,6,FALSE),"") ->  | O78: =IFERROR(VLOOKUP($C78,'CSP finance'!$C$448:$N$582,7,FALSE),"") ->  | P78: =IFERROR(VLOOKUP($C78,'CSP finance'!$C$448:$N$582,8,FALSE),"") ->  | Q78: =IFERROR(VLOOKUP($C78,'CSP finance'!$C$448:$N$582,9,FALSE),"") ->  | R78: =IFERROR(VLOOKUP($C78,'CSP finance'!$C$448:$N$582,10,FALSE),"") ->  | S78: =IFERROR(VLOOKUP($C78,'CSP finance'!$C$448:$N$582,11,FALSE),"") ->  | T78: =IFERROR(VLOOKUP($C78,'CSP finance'!$C$448:$N$582,12,FALSE),"") ->  | U78: =IFERROR(VLOOKUP($C78,'CSP finance'!$C$448:$S$582,17,FALSE),"") ->  | Z78: =IFERROR(VLOOKUP($C78,'CSP finance'!$C$448:$T$582,18,FALSE),"") ->  | AB78: 0 | AH78: =IFERROR('Activation list'!V25,"") ->  | AI78: =IFERROR(VLOOKUP($C78,'CSP finance'!$C$448:$R$582,14,FALSE),"") ->  | AJ78: =IFERROR(VLOOKUP($C78,'CSP finance'!$C$448:$R$582,15,FALSE),"") -> 
C79: =IFERROR('Activation list'!U26,"") ->  | I79: =IFERROR(VLOOKUP($C79,'CSP finance'!$C$448:$N$582,2,FALSE),"") ->  | K79: =IFERROR(VLOOKUP($C79,'CSP finance'!$C$448:$N$582,3,FALSE),"") ->  | L79: =IFERROR(VLOOKUP($C79,'CSP finance'!$C$448:$N$582,4,FALSE),"") ->  | M79: =IFERROR(VLOOKUP($C79,'CSP finance'!$C$448:$N$582,5,FALSE),"") ->  | N79: =IFERROR(VLOOKUP($C79,'CSP finance'!$C$448:$N$582,6,FALSE),"") ->  | O79: =IFERROR(VLOOKUP($C79,'CSP finance'!$C$448:$N$582,7,FALSE),"") ->  | P79: =IFERROR(VLOOKUP($C79,'CSP finance'!$C$448:$N$582,8,FALSE),"") ->  | Q79: =IFERROR(VLOOKUP($C79,'CSP finance'!$C$448:$N$582,9,FALSE),"") ->  | R79: =IFERROR(VLOOKUP($C79,'CSP finance'!$C$448:$N$582,10,FALSE),"") ->  | S79: =IFERROR(VLOOKUP($C79,'CSP finance'!$C$448:$N$582,11,FALSE),"") ->  | T79: =IFERROR(VLOOKUP($C79,'CSP finance'!$C$448:$N$582,12,FALSE),"") ->  | U79: =IFERROR(VLOOKUP($C79,'CSP finance'!$C$448:$S$582,17,FALSE),"") ->  | Z79: =IFERROR(VLOOKUP($C79,'CSP finance'!$C$448:$T$582,18,FALSE),"") ->  | AB79: 0 | AH79: =IFERROR('Activation list'!V26,"") ->  | AI79: =IFERROR(VLOOKUP($C79,'CSP finance'!$C$448:$R$582,14,FALSE),"") ->  | AJ79: =IFERROR(VLOOKUP($C79,'CSP finance'!$C$448:$R$582,15,FALSE),"") -> 
C80: =IFERROR('Activation list'!U27,"") ->  | I80: =IFERROR(VLOOKUP($C80,'CSP finance'!$C$448:$N$582,2,FALSE),"") ->  | K80: =IFERROR(VLOOKUP($C80,'CSP finance'!$C$448:$N$582,3,FALSE),"") ->  | L80: =IFERROR(VLOOKUP($C80,'CSP finance'!$C$448:$N$582,4,FALSE),"") ->  | M80: =IFERROR(VLOOKUP($C80,'CSP finance'!$C$448:$N$582,5,FALSE),"") ->  | N80: =IFERROR(VLOOKUP($C80,'CSP finance'!$C$448:$N$582,6,FALSE),"") ->  | O80: =IFERROR(VLOOKUP($C80,'CSP finance'!$C$448:$N$582,7,FALSE),"") ->  | P80: =IFERROR(VLOOKUP($C80,'CSP finance'!$C$448:$N$582,8,FALSE),"") ->  | Q80: =IFERROR(VLOOKUP($C80,'CSP finance'!$C$448:$N$582,9,FALSE),"") ->  | R80: =IFERROR(VLOOKUP($C80,'CSP finance'!$C$448:$N$582,10,FALSE),"") ->  | S80: =IFERROR(VLOOKUP($C80,'CSP finance'!$C$448:$N$582,11,FALSE),"") ->  | T80: =IFERROR(VLOOKUP($C80,'CSP finance'!$C$448:$N$582,12,FALSE),"") ->  | U80: =IFERROR(VLOOKUP($C80,'CSP finance'!$C$448:$S$582,17,FALSE),"") ->  | Z80: =IFERROR(VLOOKUP($C80,'CSP finance'!$C$448:$T$582,18,FALSE),"") ->  | AB80: 0 | AH80: =IFERROR('Activation list'!V27,"") ->  | AI80: =IFERROR(VLOOKUP($C80,'CSP finance'!$C$448:$R$582,14,FALSE),"") ->  | AJ80: =IFERROR(VLOOKUP($C80,'CSP finance'!$C$448:$R$582,15,FALSE),"") -> 
C81: =IFERROR('Activation list'!U28,"") ->  | I81: =IFERROR(VLOOKUP($C81,'CSP finance'!$C$448:$N$582,2,FALSE),"") ->  | K81: =IFERROR(VLOOKUP($C81,'CSP finance'!$C$448:$N$582,3,FALSE),"") ->  | L81: =IFERROR(VLOOKUP($C81,'CSP finance'!$C$448:$N$582,4,FALSE),"") ->  | M81: =IFERROR(VLOOKUP($C81,'CSP finance'!$C$448:$N$582,5,FALSE),"") ->  | N81: =IFERROR(VLOOKUP($C81,'CSP finance'!$C$448:$N$582,6,FALSE),"") ->  | O81: =IFERROR(VLOOKUP($C81,'CSP finance'!$C$448:$N$582,7,FALSE),"") ->  | P81: =IFERROR(VLOOKUP($C81,'CSP finance'!$C$448:$N$582,8,FALSE),"") ->  | Q81: =IFERROR(VLOOKUP($C81,'CSP finance'!$C$448:$N$582,9,FALSE),"") ->  | R81: =IFERROR(VLOOKUP($C81,'CSP finance'!$C$448:$N$582,10,FALSE),"") ->  | S81: =IFERROR(VLOOKUP($C81,'CSP finance'!$C$448:$N$582,11,FALSE),"") ->  | T81: =IFERROR(VLOOKUP($C81,'CSP finance'!$C$448:$N$582,12,FALSE),"") ->  | U81: =IFERROR(VLOOKUP($C81,'CSP finance'!$C$448:$S$582,17,FALSE),"") ->  | Z81: =IFERROR(VLOOKUP($C81,'CSP finance'!$C$448:$T$582,18,FALSE),"") ->  | AB81: 0 | AH81: =IFERROR('Activation list'!V28,"") ->  | AI81: =IFERROR(VLOOKUP($C81,'CSP finance'!$C$448:$R$582,14,FALSE),"") ->  | AJ81: =IFERROR(VLOOKUP($C81,'CSP finance'!$C$448:$R$582,15,FALSE),"") -> 
C82: =IFERROR('Activation list'!U29,"") ->  | I82: =IFERROR(VLOOKUP($C82,'CSP finance'!$C$448:$N$582,2,FALSE),"") ->  | K82: =IFERROR(VLOOKUP($C82,'CSP finance'!$C$448:$N$582,3,FALSE),"") ->  | L82: =IFERROR(VLOOKUP($C82,'CSP finance'!$C$448:$N$582,4,FALSE),"") ->  | M82: =IFERROR(VLOOKUP($C82,'CSP finance'!$C$448:$N$582,5,FALSE),"") ->  | N82: =IFERROR(VLOOKUP($C82,'CSP finance'!$C$448:$N$582,6,FALSE),"") ->  | O82: =IFERROR(VLOOKUP($C82,'CSP finance'!$C$448:$N$582,7,FALSE),"") ->  | P82: =IFERROR(VLOOKUP($C82,'CSP finance'!$C$448:$N$582,8,FALSE),"") ->  | Q82: =IFERROR(VLOOKUP($C82,'CSP finance'!$C$448:$N$582,9,FALSE),"") ->  | R82: =IFERROR(VLOOKUP($C82,'CSP finance'!$C$448:$N$582,10,FALSE),"") ->  | S82: =IFERROR(VLOOKUP($C82,'CSP finance'!$C$448:$N$582,11,FALSE),"") ->  | T82: =IFERROR(VLOOKUP($C82,'CSP finance'!$C$448:$N$582,12,FALSE),"") ->  | U82: =IFERROR(VLOOKUP($C82,'CSP finance'!$C$448:$S$582,17,FALSE),"") ->  | Z82: =IFERROR(VLOOKUP($C82,'CSP finance'!$C$448:$T$582,18,FALSE),"") ->  | AB82: 0 | AH82: =IFERROR('Activation list'!V29,"") ->  | AI82: =IFERROR(VLOOKUP($C82,'CSP finance'!$C$448:$R$582,14,FALSE),"") ->  | AJ82: =IFERROR(VLOOKUP($C82,'CSP finance'!$C$448:$R$582,15,FALSE),"") -> 
C83: =IFERROR('Activation list'!U30,"") ->  | I83: =IFERROR(VLOOKUP($C83,'CSP finance'!$C$448:$N$582,2,FALSE),"") ->  | K83: =IFERROR(VLOOKUP($C83,'CSP finance'!$C$448:$N$582,3,FALSE),"") ->  | L83: =IFERROR(VLOOKUP($C83,'CSP finance'!$C$448:$N$582,4,FALSE),"") ->  | M83: =IFERROR(VLOOKUP($C83,'CSP finance'!$C$448:$N$582,5,FALSE),"") ->  | N83: =IFERROR(VLOOKUP($C83,'CSP finance'!$C$448:$N$582,6,FALSE),"") ->  | O83: =IFERROR(VLOOKUP($C83,'CSP finance'!$C$448:$N$582,7,FALSE),"") ->  | P83: =IFERROR(VLOOKUP($C83,'CSP finance'!$C$448:$N$582,8,FALSE),"") ->  | Q83: =IFERROR(VLOOKUP($C83,'CSP finance'!$C$448:$N$582,9,FALSE),"") ->  | R83: =IFERROR(VLOOKUP($C83,'CSP finance'!$C$448:$N$582,10,FALSE),"") ->  | S83: =IFERROR(VLOOKUP($C83,'CSP finance'!$C$448:$N$582,11,FALSE),"") ->  | T83: =IFERROR(VLOOKUP($C83,'CSP finance'!$C$448:$N$582,12,FALSE),"") ->  | U83: =IFERROR(VLOOKUP($C83,'CSP finance'!$C$448:$S$582,17,FALSE),"") ->  | Z83: =IFERROR(VLOOKUP($C83,'CSP finance'!$C$448:$T$582,18,FALSE),"") ->  | AB83: 0 | AH83: =IFERROR('Activation list'!V30,"") ->  | AI83: =IFERROR(VLOOKUP($C83,'CSP finance'!$C$448:$R$582,14,FALSE),"") ->  | AJ83: =IFERROR(VLOOKUP($C83,'CSP finance'!$C$448:$R$582,15,FALSE),"") -> 
C84: =IFERROR('Activation list'!U31,"") ->  | I84: =IFERROR(VLOOKUP($C84,'CSP finance'!$C$448:$N$582,2,FALSE),"") ->  | K84: =IFERROR(VLOOKUP($C84,'CSP finance'!$C$448:$N$582,3,FALSE),"") ->  | L84: =IFERROR(VLOOKUP($C84,'CSP finance'!$C$448:$N$582,4,FALSE),"") ->  | M84: =IFERROR(VLOOKUP($C84,'CSP finance'!$C$448:$N$582,5,FALSE),"") ->  | N84: =IFERROR(VLOOKUP($C84,'CSP finance'!$C$448:$N$582,6,FALSE),"") ->  | O84: =IFERROR(VLOOKUP($C84,'CSP finance'!$C$448:$N$582,7,FALSE),"") ->  | P84: =IFERROR(VLOOKUP($C84,'CSP finance'!$C$448:$N$582,8,FALSE),"") ->  | Q84: =IFERROR(VLOOKUP($C84,'CSP finance'!$C$448:$N$582,9,FALSE),"") ->  | R84: =IFERROR(VLOOKUP($C84,'CSP finance'!$C$448:$N$582,10,FALSE),"") ->  | S84: =IFERROR(VLOOKUP($C84,'CSP finance'!$C$448:$N$582,11,FALSE),"") ->  | T84: =IFERROR(VLOOKUP($C84,'CSP finance'!$C$448:$N$582,12,FALSE),"") ->  | U84: =IFERROR(VLOOKUP($C84,'CSP finance'!$C$448:$S$582,17,FALSE),"") ->  | Z84: =IFERROR(VLOOKUP($C84,'CSP finance'!$C$448:$T$582,18,FALSE),"") ->  | AB84: 0 | AH84: =IFERROR('Activation list'!V31,"") ->  | AI84: =IFERROR(VLOOKUP($C84,'CSP finance'!$C$448:$R$582,14,FALSE),"") ->  | AJ84: =IFERROR(VLOOKUP($C84,'CSP finance'!$C$448:$R$582,15,FALSE),"") -> 
C85: =IFERROR('Activation list'!U32,"") ->  | I85: =IFERROR(VLOOKUP($C85,'CSP finance'!$C$448:$N$582,2,FALSE),"") ->  | K85: =IFERROR(VLOOKUP($C85,'CSP finance'!$C$448:$N$582,3,FALSE),"") ->  | L85: =IFERROR(VLOOKUP($C85,'CSP finance'!$C$448:$N$582,4,FALSE),"") ->  | M85: =IFERROR(VLOOKUP($C85,'CSP finance'!$C$448:$N$582,5,FALSE),"") ->  | N85: =IFERROR(VLOOKUP($C85,'CSP finance'!$C$448:$N$582,6,FALSE),"") ->  | O85: =IFERROR(VLOOKUP($C85,'CSP finance'!$C$448:$N$582,7,FALSE),"") ->  | P85: =IFERROR(VLOOKUP($C85,'CSP finance'!$C$448:$N$582,8,FALSE),"") ->  | Q85: =IFERROR(VLOOKUP($C85,'CSP finance'!$C$448:$N$582,9,FALSE),"") ->  | R85: =IFERROR(VLOOKUP($C85,'CSP finance'!$C$448:$N$582,10,FALSE),"") ->  | S85: =IFERROR(VLOOKUP($C85,'CSP finance'!$C$448:$N$582,11,FALSE),"") ->  | T85: =IFERROR(VLOOKUP($C85,'CSP finance'!$C$448:$N$582,12,FALSE),"") ->  | U85: =IFERROR(VLOOKUP($C85,'CSP finance'!$C$448:$S$582,17,FALSE),"") ->  | Z85: =IFERROR(VLOOKUP($C85,'CSP finance'!$C$448:$T$582,18,FALSE),"") ->  | AB85: 0 | AH85: =IFERROR('Activation list'!V32,"") ->  | AI85: =IFERROR(VLOOKUP($C85,'CSP finance'!$C$448:$R$582,14,FALSE),"") ->  | AJ85: =IFERROR(VLOOKUP($C85,'CSP finance'!$C$448:$R$582,15,FALSE),"") -> 
C86: =IFERROR('Activation list'!U33,"") ->  | I86: =IFERROR(VLOOKUP($C86,'CSP finance'!$C$448:$N$582,2,FALSE),"") ->  | K86: =IFERROR(VLOOKUP($C86,'CSP finance'!$C$448:$N$582,3,FALSE),"") ->  | L86: =IFERROR(VLOOKUP($C86,'CSP finance'!$C$448:$N$582,4,FALSE),"") ->  | M86: =IFERROR(VLOOKUP($C86,'CSP finance'!$C$448:$N$582,5,FALSE),"") ->  | N86: =IFERROR(VLOOKUP($C86,'CSP finance'!$C$448:$N$582,6,FALSE),"") ->  | O86: =IFERROR(VLOOKUP($C86,'CSP finance'!$C$448:$N$582,7,FALSE),"") ->  | P86: =IFERROR(VLOOKUP($C86,'CSP finance'!$C$448:$N$582,8,FALSE),"") ->  | Q86: =IFERROR(VLOOKUP($C86,'CSP finance'!$C$448:$N$582,9,FALSE),"") ->  | R86: =IFERROR(VLOOKUP($C86,'CSP finance'!$C$448:$N$582,10,FALSE),"") ->  | S86: =IFERROR(VLOOKUP($C86,'CSP finance'!$C$448:$N$582,11,FALSE),"") ->  | T86: =IFERROR(VLOOKUP($C86,'CSP finance'!$C$448:$N$582,12,FALSE),"") ->  | U86: =IFERROR(VLOOKUP($C86,'CSP finance'!$C$448:$S$582,17,FALSE),"") ->  | Z86: =IFERROR(VLOOKUP($C86,'CSP finance'!$C$448:$T$582,18,FALSE),"") ->  | AB86: 0 | AH86: =IFERROR('Activation list'!V33,"") ->  | AI86: =IFERROR(VLOOKUP($C86,'CSP finance'!$C$448:$R$582,14,FALSE),"") ->  | AJ86: =IFERROR(VLOOKUP($C86,'CSP finance'!$C$448:$R$582,15,FALSE),"") -> 
C87: =IFERROR('Activation list'!U34,"") ->  | I87: =IFERROR(VLOOKUP($C87,'CSP finance'!$C$448:$N$582,2,FALSE),"") ->  | K87: =IFERROR(VLOOKUP($C87,'CSP finance'!$C$448:$N$582,3,FALSE),"") ->  | L87: =IFERROR(VLOOKUP($C87,'CSP finance'!$C$448:$N$582,4,FALSE),"") ->  | M87: =IFERROR(VLOOKUP($C87,'CSP finance'!$C$448:$N$582,5,FALSE),"") ->  | N87: =IFERROR(VLOOKUP($C87,'CSP finance'!$C$448:$N$582,6,FALSE),"") ->  | O87: =IFERROR(VLOOKUP($C87,'CSP finance'!$C$448:$N$582,7,FALSE),"") ->  | P87: =IFERROR(VLOOKUP($C87,'CSP finance'!$C$448:$N$582,8,FALSE),"") ->  | Q87: =IFERROR(VLOOKUP($C87,'CSP finance'!$C$448:$N$582,9,FALSE),"") ->  | R87: =IFERROR(VLOOKUP($C87,'CSP finance'!$C$448:$N$582,10,FALSE),"") ->  | S87: =IFERROR(VLOOKUP($C87,'CSP finance'!$C$448:$N$582,11,FALSE),"") ->  | T87: =IFERROR(VLOOKUP($C87,'CSP finance'!$C$448:$N$582,12,FALSE),"") ->  | U87: =IFERROR(VLOOKUP($C87,'CSP finance'!$C$448:$S$582,17,FALSE),"") ->  | Z87: =IFERROR(VLOOKUP($C87,'CSP finance'!$C$448:$T$582,18,FALSE),"") ->  | AB87: 0 | AH87: =IFERROR('Activation list'!V34,"") ->  | AI87: =IFERROR(VLOOKUP($C87,'CSP finance'!$C$448:$R$582,14,FALSE),"") ->  | AJ87: =IFERROR(VLOOKUP($C87,'CSP finance'!$C$448:$R$582,15,FALSE),"") -> 
C88: =IFERROR('Activation list'!U35,"") ->  | I88: =IFERROR(VLOOKUP($C88,'CSP finance'!$C$448:$N$582,2,FALSE),"") ->  | K88: =IFERROR(VLOOKUP($C88,'CSP finance'!$C$448:$N$582,3,FALSE),"") ->  | L88: =IFERROR(VLOOKUP($C88,'CSP finance'!$C$448:$N$582,4,FALSE),"") ->  | M88: =IFERROR(VLOOKUP($C88,'CSP finance'!$C$448:$N$582,5,FALSE),"") ->  | N88: =IFERROR(VLOOKUP($C88,'CSP finance'!$C$448:$N$582,6,FALSE),"") ->  | O88: =IFERROR(VLOOKUP($C88,'CSP finance'!$C$448:$N$582,7,FALSE),"") ->  | P88: =IFERROR(VLOOKUP($C88,'CSP finance'!$C$448:$N$582,8,FALSE),"") ->  | Q88: =IFERROR(VLOOKUP($C88,'CSP finance'!$C$448:$N$582,9,FALSE),"") ->  | R88: =IFERROR(VLOOKUP($C88,'CSP finance'!$C$448:$N$582,10,FALSE),"") ->  | S88: =IFERROR(VLOOKUP($C88,'CSP finance'!$C$448:$N$582,11,FALSE),"") ->  | T88: =IFERROR(VLOOKUP($C88,'CSP finance'!$C$448:$N$582,12,FALSE),"") ->  | U88: =IFERROR(VLOOKUP($C88,'CSP finance'!$C$448:$S$582,17,FALSE),"") ->  | Z88: =IFERROR(VLOOKUP($C88,'CSP finance'!$C$448:$T$582,18,FALSE),"") ->  | AA88: =IF(C88<>"",1-SUM(V88:Z88),"") ->  | AB88: 0 | AH88: =IFERROR('Activation list'!V35,"") ->  | AI88: =IFERROR(VLOOKUP($C88,'CSP finance'!$C$448:$R$582,14,FALSE),"") ->  | AJ88: =IFERROR(VLOOKUP($C88,'CSP finance'!$C$448:$R$582,15,FALSE),"") -> 
C89: =IFERROR('Activation list'!U36,"") ->  | I89: =IFERROR(VLOOKUP($C89,'CSP finance'!$C$448:$N$582,2,FALSE),"") ->  | K89: =IFERROR(VLOOKUP($C89,'CSP finance'!$C$448:$N$582,3,FALSE),"") ->  | L89: =IFERROR(VLOOKUP($C89,'CSP finance'!$C$448:$N$582,4,FALSE),"") ->  | M89: =IFERROR(VLOOKUP($C89,'CSP finance'!$C$448:$N$582,5,FALSE),"") ->  | N89: =IFERROR(VLOOKUP($C89,'CSP finance'!$C$448:$N$582,6,FALSE),"") ->  | O89: =IFERROR(VLOOKUP($C89,'CSP finance'!$C$448:$N$582,7,FALSE),"") ->  | P89: =IFERROR(VLOOKUP($C89,'CSP finance'!$C$448:$N$582,8,FALSE),"") ->  | Q89: =IFERROR(VLOOKUP($C89,'CSP finance'!$C$448:$N$582,9,FALSE),"") ->  | R89: =IFERROR(VLOOKUP($C89,'CSP finance'!$C$448:$N$582,10,FALSE),"") ->  | S89: =IFERROR(VLOOKUP($C89,'CSP finance'!$C$448:$N$582,11,FALSE),"") ->  | T89: =IFERROR(VLOOKUP($C89,'CSP finance'!$C$448:$N$582,12,FALSE),"") ->  | U89: =IFERROR(VLOOKUP($C89,'CSP finance'!$C$448:$S$582,17,FALSE),"") ->  | Z89: =IFERROR(VLOOKUP($C89,'CSP finance'!$C$448:$T$582,18,FALSE),"") ->  | AB89: 0 | AH89: =IFERROR('Activation list'!V36,"") ->  | AI89: =IFERROR(VLOOKUP($C89,'CSP finance'!$C$448:$R$582,14,FALSE),"") ->  | AJ89: =IFERROR(VLOOKUP($C89,'CSP finance'!$C$448:$R$582,15,FALSE),"") -> 
C90: =IFERROR('Activation list'!U37,"") ->  | I90: =IFERROR(VLOOKUP($C90,'CSP finance'!$C$448:$N$582,2,FALSE),"") ->  | K90: =IFERROR(VLOOKUP($C90,'CSP finance'!$C$448:$N$582,3,FALSE),"") ->  | L90: =IFERROR(VLOOKUP($C90,'CSP finance'!$C$448:$N$582,4,FALSE),"") ->  | M90: =IFERROR(VLOOKUP($C90,'CSP finance'!$C$448:$N$582,5,FALSE),"") ->  | N90: =IFERROR(VLOOKUP($C90,'CSP finance'!$C$448:$N$582,6,FALSE),"") ->  | O90: =IFERROR(VLOOKUP($C90,'CSP finance'!$C$448:$N$582,7,FALSE),"") ->  | P90: =IFERROR(VLOOKUP($C90,'CSP finance'!$C$448:$N$582,8,FALSE),"") ->  | Q90: =IFERROR(VLOOKUP($C90,'CSP finance'!$C$448:$N$582,9,FALSE),"") ->  | R90: =IFERROR(VLOOKUP($C90,'CSP finance'!$C$448:$N$582,10,FALSE),"") ->  | S90: =IFERROR(VLOOKUP($C90,'CSP finance'!$C$448:$N$582,11,FALSE),"") ->  | T90: =IFERROR(VLOOKUP($C90,'CSP finance'!$C$448:$N$582,12,FALSE),"") ->  | U90: =IFERROR(VLOOKUP($C90,'CSP finance'!$C$448:$S$582,17,FALSE),"") ->  | Z90: =IFERROR(VLOOKUP($C90,'CSP finance'!$C$448:$T$582,18,FALSE),"") ->  | AB90: 0 | AH90: =IFERROR('Activation list'!V37,"") ->  | AI90: =IFERROR(VLOOKUP($C90,'CSP finance'!$C$448:$R$582,14,FALSE),"") ->  | AJ90: =IFERROR(VLOOKUP($C90,'CSP finance'!$C$448:$R$582,15,FALSE),"") -> 
C91: =IFERROR('Activation list'!U38,"") ->  | I91: =IFERROR(VLOOKUP($C91,'CSP finance'!$C$448:$N$582,2,FALSE),"") ->  | K91: =IFERROR(VLOOKUP($C91,'CSP finance'!$C$448:$N$582,3,FALSE),"") ->  | L91: =IFERROR(VLOOKUP($C91,'CSP finance'!$C$448:$N$582,4,FALSE),"") ->  | M91: =IFERROR(VLOOKUP($C91,'CSP finance'!$C$448:$N$582,5,FALSE),"") ->  | N91: =IFERROR(VLOOKUP($C91,'CSP finance'!$C$448:$N$582,6,FALSE),"") ->  | O91: =IFERROR(VLOOKUP($C91,'CSP finance'!$C$448:$N$582,7,FALSE),"") ->  | P91: =IFERROR(VLOOKUP($C91,'CSP finance'!$C$448:$N$582,8,FALSE),"") ->  | Q91: =IFERROR(VLOOKUP($C91,'CSP finance'!$C$448:$N$582,9,FALSE),"") ->  | R91: =IFERROR(VLOOKUP($C91,'CSP finance'!$C$448:$N$582,10,FALSE),"") ->  | S91: =IFERROR(VLOOKUP($C91,'CSP finance'!$C$448:$N$582,11,FALSE),"") ->  | T91: =IFERROR(VLOOKUP($C91,'CSP finance'!$C$448:$N$582,12,FALSE),"") ->  | U91: =IFERROR(VLOOKUP($C91,'CSP finance'!$C$448:$S$582,17,FALSE),"") ->  | Z91: =IFERROR(VLOOKUP($C91,'CSP finance'!$C$448:$T$582,18,FALSE),"") ->  | AB91: 0 | AH91: =IFERROR('Activation list'!V38,"") ->  | AI91: =IFERROR(VLOOKUP($C91,'CSP finance'!$C$448:$R$582,14,FALSE),"") ->  | AJ91: =IFERROR(VLOOKUP($C91,'CSP finance'!$C$448:$R$582,15,FALSE),"") -> 
C92: =IFERROR('Activation list'!U39,"") ->  | I92: =IFERROR(VLOOKUP($C92,'CSP finance'!$C$448:$N$582,2,FALSE),"") ->  | K92: =IFERROR(VLOOKUP($C92,'CSP finance'!$C$448:$N$582,3,FALSE),"") ->  | L92: =IFERROR(VLOOKUP($C92,'CSP finance'!$C$448:$N$582,4,FALSE),"") ->  | M92: =IFERROR(VLOOKUP($C92,'CSP finance'!$C$448:$N$582,5,FALSE),"") ->  | N92: =IFERROR(VLOOKUP($C92,'CSP finance'!$C$448:$N$582,6,FALSE),"") ->  | O92: =IFERROR(VLOOKUP($C92,'CSP finance'!$C$448:$N$582,7,FALSE),"") ->  | P92: =IFERROR(VLOOKUP($C92,'CSP finance'!$C$448:$N$582,8,FALSE),"") ->  | Q92: =IFERROR(VLOOKUP($C92,'CSP finance'!$C$448:$N$582,9,FALSE),"") ->  | R92: =IFERROR(VLOOKUP($C92,'CSP finance'!$C$448:$N$582,10,FALSE),"") ->  | S92: =IFERROR(VLOOKUP($C92,'CSP finance'!$C$448:$N$582,11,FALSE),"") ->  | T92: =IFERROR(VLOOKUP($C92,'CSP finance'!$C$448:$N$582,12,FALSE),"") ->  | U92: =IFERROR(VLOOKUP($C92,'CSP finance'!$C$448:$S$582,17,FALSE),"") ->  | Z92: =IFERROR(VLOOKUP($C92,'CSP finance'!$C$448:$T$582,18,FALSE),"") ->  | AB92: 0 | AH92: =IFERROR('Activation list'!V39,"") ->  | AI92: =IFERROR(VLOOKUP($C92,'CSP finance'!$C$448:$R$582,14,FALSE),"") ->  | AJ92: =IFERROR(VLOOKUP($C92,'CSP finance'!$C$448:$R$582,15,FALSE),"") -> 
C93: =IFERROR('Activation list'!U40,"") ->  | I93: =IFERROR(VLOOKUP($C93,'CSP finance'!$C$448:$N$582,2,FALSE),"") ->  | K93: =IFERROR(VLOOKUP($C93,'CSP finance'!$C$448:$N$582,3,FALSE),"") ->  | L93: =IFERROR(VLOOKUP($C93,'CSP finance'!$C$448:$N$582,4,FALSE),"") ->  | M93: =IFERROR(VLOOKUP($C93,'CSP finance'!$C$448:$N$582,5,FALSE),"") ->  | N93: =IFERROR(VLOOKUP($C93,'CSP finance'!$C$448:$N$582,6,FALSE),"") ->  | O93: =IFERROR(VLOOKUP($C93,'CSP finance'!$C$448:$N$582,7,FALSE),"") ->  | P93: =IFERROR(VLOOKUP($C93,'CSP finance'!$C$448:$N$582,8,FALSE),"") ->  | Q93: =IFERROR(VLOOKUP($C93,'CSP finance'!$C$448:$N$582,9,FALSE),"") ->  | R93: =IFERROR(VLOOKUP($C93,'CSP finance'!$C$448:$N$582,10,FALSE),"") ->  | S93: =IFERROR(VLOOKUP($C93,'CSP finance'!$C$448:$N$582,11,FALSE),"") ->  | T93: =IFERROR(VLOOKUP($C93,'CSP finance'!$C$448:$N$582,12,FALSE),"") ->  | U93: =IFERROR(VLOOKUP($C93,'CSP finance'!$C$448:$S$582,17,FALSE),"") ->  | Z93: =IFERROR(VLOOKUP($C93,'CSP finance'!$C$448:$T$582,18,FALSE),"") ->  | AB93: 0 | AH93: =IFERROR('Activation list'!V40,"") ->  | AI93: =IFERROR(VLOOKUP($C93,'CSP finance'!$C$448:$R$582,14,FALSE),"") ->  | AJ93: =IFERROR(VLOOKUP($C93,'CSP finance'!$C$448:$R$582,15,FALSE),"") -> 
C94: =IFERROR('Activation list'!U41,"") ->  | I94: =IFERROR(VLOOKUP($C94,'CSP finance'!$C$448:$N$582,2,FALSE),"") ->  | K94: =IFERROR(VLOOKUP($C94,'CSP finance'!$C$448:$N$582,3,FALSE),"") ->  | L94: =IFERROR(VLOOKUP($C94,'CSP finance'!$C$448:$N$582,4,FALSE),"") ->  | M94: =IFERROR(VLOOKUP($C94,'CSP finance'!$C$448:$N$582,5,FALSE),"") ->  | N94: =IFERROR(VLOOKUP($C94,'CSP finance'!$C$448:$N$582,6,FALSE),"") ->  | O94: =IFERROR(VLOOKUP($C94,'CSP finance'!$C$448:$N$582,7,FALSE),"") ->  | P94: =IFERROR(VLOOKUP($C94,'CSP finance'!$C$448:$N$582,8,FALSE),"") ->  | Q94: =IFERROR(VLOOKUP($C94,'CSP finance'!$C$448:$N$582,9,FALSE),"") ->  | R94: =IFERROR(VLOOKUP($C94,'CSP finance'!$C$448:$N$582,10,FALSE),"") ->  | S94: =IFERROR(VLOOKUP($C94,'CSP finance'!$C$448:$N$582,11,FALSE),"") ->  | T94: =IFERROR(VLOOKUP($C94,'CSP finance'!$C$448:$N$582,12,FALSE),"") ->  | U94: =IFERROR(VLOOKUP($C94,'CSP finance'!$C$448:$S$582,17,FALSE),"") ->  | Z94: =IFERROR(VLOOKUP($C94,'CSP finance'!$C$448:$T$582,18,FALSE),"") ->  | AB94: 0 | AH94: =IFERROR('Activation list'!V41,"") ->  | AI94: =IFERROR(VLOOKUP($C94,'CSP finance'!$C$448:$R$582,14,FALSE),"") ->  | AJ94: =IFERROR(VLOOKUP($C94,'CSP finance'!$C$448:$R$582,15,FALSE),"") -> 
C95: =IFERROR('Activation list'!U42,"") ->  | I95: =IFERROR(VLOOKUP($C95,'CSP finance'!$C$448:$N$582,2,FALSE),"") ->  | K95: =IFERROR(VLOOKUP($C95,'CSP finance'!$C$448:$N$582,3,FALSE),"") ->  | L95: =IFERROR(VLOOKUP($C95,'CSP finance'!$C$448:$N$582,4,FALSE),"") ->  | M95: =IFERROR(VLOOKUP($C95,'CSP finance'!$C$448:$N$582,5,FALSE),"") ->  | N95: =IFERROR(VLOOKUP($C95,'CSP finance'!$C$448:$N$582,6,FALSE),"") ->  | O95: =IFERROR(VLOOKUP($C95,'CSP finance'!$C$448:$N$582,7,FALSE),"") ->  | P95: =IFERROR(VLOOKUP($C95,'CSP finance'!$C$448:$N$582,8,FALSE),"") ->  | Q95: =IFERROR(VLOOKUP($C95,'CSP finance'!$C$448:$N$582,9,FALSE),"") ->  | R95: =IFERROR(VLOOKUP($C95,'CSP finance'!$C$448:$N$582,10,FALSE),"") ->  | S95: =IFERROR(VLOOKUP($C95,'CSP finance'!$C$448:$N$582,11,FALSE),"") ->  | T95: =IFERROR(VLOOKUP($C95,'CSP finance'!$C$448:$N$582,12,FALSE),"") ->  | U95: =IFERROR(VLOOKUP($C95,'CSP finance'!$C$448:$S$582,17,FALSE),"") ->  | Z95: =IFERROR(VLOOKUP($C95,'CSP finance'!$C$448:$T$582,18,FALSE),"") ->  | AB95: 0 | AH95: =IFERROR('Activation list'!V42,"") ->  | AI95: =IFERROR(VLOOKUP($C95,'CSP finance'!$C$448:$R$582,14,FALSE),"") ->  | AJ95: =IFERROR(VLOOKUP($C95,'CSP finance'!$C$448:$R$582,15,FALSE),"") -> 
C96: =IFERROR('Activation list'!U43,"") ->  | I96: =IFERROR(VLOOKUP($C96,'CSP finance'!$C$448:$N$582,2,FALSE),"") ->  | K96: =IFERROR(VLOOKUP($C96,'CSP finance'!$C$448:$N$582,3,FALSE),"") ->  | L96: =IFERROR(VLOOKUP($C96,'CSP finance'!$C$448:$N$582,4,FALSE),"") ->  | M96: =IFERROR(VLOOKUP($C96,'CSP finance'!$C$448:$N$582,5,FALSE),"") ->  | N96: =IFERROR(VLOOKUP($C96,'CSP finance'!$C$448:$N$582,6,FALSE),"") ->  | O96: =IFERROR(VLOOKUP($C96,'CSP finance'!$C$448:$N$582,7,FALSE),"") ->  | P96: =IFERROR(VLOOKUP($C96,'CSP finance'!$C$448:$N$582,8,FALSE),"") ->  | Q96: =IFERROR(VLOOKUP($C96,'CSP finance'!$C$448:$N$582,9,FALSE),"") ->  | R96: =IFERROR(VLOOKUP($C96,'CSP finance'!$C$448:$N$582,10,FALSE),"") ->  | S96: =IFERROR(VLOOKUP($C96,'CSP finance'!$C$448:$N$582,11,FALSE),"") ->  | T96: =IFERROR(VLOOKUP($C96,'CSP finance'!$C$448:$N$582,12,FALSE),"") ->  | U96: =IFERROR(VLOOKUP($C96,'CSP finance'!$C$448:$S$582,17,FALSE),"") ->  | Z96: =IFERROR(VLOOKUP($C96,'CSP finance'!$C$448:$T$582,18,FALSE),"") ->  | AB96: 0 | AH96: =IFERROR('Activation list'!V43,"") ->  | AI96: =IFERROR(VLOOKUP($C96,'CSP finance'!$C$448:$R$582,14,FALSE),"") ->  | AJ96: =IFERROR(VLOOKUP($C96,'CSP finance'!$C$448:$R$582,15,FALSE),"") -> 
C97: =IFERROR('Activation list'!U44,"") ->  | I97: =IFERROR(VLOOKUP($C97,'CSP finance'!$C$448:$N$582,2,FALSE),"") ->  | K97: =IFERROR(VLOOKUP($C97,'CSP finance'!$C$448:$N$582,3,FALSE),"") ->  | L97: =IFERROR(VLOOKUP($C97,'CSP finance'!$C$448:$N$582,4,FALSE),"") ->  | M97: =IFERROR(VLOOKUP($C97,'CSP finance'!$C$448:$N$582,5,FALSE),"") ->  | N97: =IFERROR(VLOOKUP($C97,'CSP finance'!$C$448:$N$582,6,FALSE),"") ->  | O97: =IFERROR(VLOOKUP($C97,'CSP finance'!$C$448:$N$582,7,FALSE),"") ->  | P97: =IFERROR(VLOOKUP($C97,'CSP finance'!$C$448:$N$582,8,FALSE),"") ->  | Q97: =IFERROR(VLOOKUP($C97,'CSP finance'!$C$448:$N$582,9,FALSE),"") ->  | R97: =IFERROR(VLOOKUP($C97,'CSP finance'!$C$448:$N$582,10,FALSE),"") ->  | S97: =IFERROR(VLOOKUP($C97,'CSP finance'!$C$448:$N$582,11,FALSE),"") ->  | T97: =IFERROR(VLOOKUP($C97,'CSP finance'!$C$448:$N$582,12,FALSE),"") ->  | U97: =IFERROR(VLOOKUP($C97,'CSP finance'!$C$448:$S$582,17,FALSE),"") ->  | Z97: =IFERROR(VLOOKUP($C97,'CSP finance'!$C$448:$T$582,18,FALSE),"") ->  | AB97: 0 | AH97: =IFERROR('Activation list'!V44,"") ->  | AI97: =IFERROR(VLOOKUP($C97,'CSP finance'!$C$448:$R$582,14,FALSE),"") ->  | AJ97: =IFERROR(VLOOKUP($C97,'CSP finance'!$C$448:$R$582,15,FALSE),"") -> 
C98: =IFERROR('Activation list'!U45,"") ->  | I98: =IFERROR(VLOOKUP($C98,'CSP finance'!$C$448:$N$582,2,FALSE),"") ->  | K98: =IFERROR(VLOOKUP($C98,'CSP finance'!$C$448:$N$582,3,FALSE),"") ->  | L98: =IFERROR(VLOOKUP($C98,'CSP finance'!$C$448:$N$582,4,FALSE),"") ->  | M98: =IFERROR(VLOOKUP($C98,'CSP finance'!$C$448:$N$582,5,FALSE),"") ->  | N98: =IFERROR(VLOOKUP($C98,'CSP finance'!$C$448:$N$582,6,FALSE),"") ->  | O98: =IFERROR(VLOOKUP($C98,'CSP finance'!$C$448:$N$582,7,FALSE),"") ->  | P98: =IFERROR(VLOOKUP($C98,'CSP finance'!$C$448:$N$582,8,FALSE),"") ->  | Q98: =IFERROR(VLOOKUP($C98,'CSP finance'!$C$448:$N$582,9,FALSE),"") ->  | R98: =IFERROR(VLOOKUP($C98,'CSP finance'!$C$448:$N$582,10,FALSE),"") ->  | S98: =IFERROR(VLOOKUP($C98,'CSP finance'!$C$448:$N$582,11,FALSE),"") ->  | T98: =IFERROR(VLOOKUP($C98,'CSP finance'!$C$448:$N$582,12,FALSE),"") ->  | U98: =IFERROR(VLOOKUP($C98,'CSP finance'!$C$448:$S$582,17,FALSE),"") ->  | Z98: =IFERROR(VLOOKUP($C98,'CSP finance'!$C$448:$T$582,18,FALSE),"") ->  | AB98: 0 | AH98: =IFERROR('Activation list'!V45,"") ->  | AI98: =IFERROR(VLOOKUP($C98,'CSP finance'!$C$448:$R$582,14,FALSE),"") ->  | AJ98: =IFERROR(VLOOKUP($C98,'CSP finance'!$C$448:$R$582,15,FALSE),"") -> 
C99: =IFERROR('Activation list'!U46,"") ->  | I99: =IFERROR(VLOOKUP($C99,'CSP finance'!$C$448:$N$582,2,FALSE),"") ->  | K99: =IFERROR(VLOOKUP($C99,'CSP finance'!$C$448:$N$582,3,FALSE),"") ->  | L99: =IFERROR(VLOOKUP($C99,'CSP finance'!$C$448:$N$582,4,FALSE),"") ->  | M99: =IFERROR(VLOOKUP($C99,'CSP finance'!$C$448:$N$582,5,FALSE),"") ->  | N99: =IFERROR(VLOOKUP($C99,'CSP finance'!$C$448:$N$582,6,FALSE),"") ->  | O99: =IFERROR(VLOOKUP($C99,'CSP finance'!$C$448:$N$582,7,FALSE),"") ->  | P99: =IFERROR(VLOOKUP($C99,'CSP finance'!$C$448:$N$582,8,FALSE),"") ->  | Q99: =IFERROR(VLOOKUP($C99,'CSP finance'!$C$448:$N$582,9,FALSE),"") ->  | R99: =IFERROR(VLOOKUP($C99,'CSP finance'!$C$448:$N$582,10,FALSE),"") ->  | S99: =IFERROR(VLOOKUP($C99,'CSP finance'!$C$448:$N$582,11,FALSE),"") ->  | T99: =IFERROR(VLOOKUP($C99,'CSP finance'!$C$448:$N$582,12,FALSE),"") ->  | U99: =IFERROR(VLOOKUP($C99,'CSP finance'!$C$448:$S$582,17,FALSE),"") ->  | Z99: =IFERROR(VLOOKUP($C99,'CSP finance'!$C$448:$T$582,18,FALSE),"") ->  | AB99: 0 | AH99: =IFERROR('Activation list'!V46,"") ->  | AI99: =IFERROR(VLOOKUP($C99,'CSP finance'!$C$448:$R$582,14,FALSE),"") ->  | AJ99: =IFERROR(VLOOKUP($C99,'CSP finance'!$C$448:$R$582,15,FALSE),"") -> 
C100: =IFERROR('Activation list'!U47,"") ->  | I100: =IFERROR(VLOOKUP($C100,'CSP finance'!$C$448:$N$582,2,FALSE),"") ->  | K100: =IFERROR(VLOOKUP($C100,'CSP finance'!$C$448:$N$582,3,FALSE),"") ->  | L100: =IFERROR(VLOOKUP($C100,'CSP finance'!$C$448:$N$582,4,FALSE),"") ->  | M100: =IFERROR(VLOOKUP($C100,'CSP finance'!$C$448:$N$582,5,FALSE),"") ->  | N100: =IFERROR(VLOOKUP($C100,'CSP finance'!$C$448:$N$582,6,FALSE),"") ->  | O100: =IFERROR(VLOOKUP($C100,'CSP finance'!$C$448:$N$582,7,FALSE),"") ->  | P100: =IFERROR(VLOOKUP($C100,'CSP finance'!$C$448:$N$582,8,FALSE),"") ->  | Q100: =IFERROR(VLOOKUP($C100,'CSP finance'!$C$448:$N$582,9,FALSE),"") ->  | R100: =IFERROR(VLOOKUP($C100,'CSP finance'!$C$448:$N$582,10,FALSE),"") ->  | S100: =IFERROR(VLOOKUP($C100,'CSP finance'!$C$448:$N$582,11,FALSE),"") ->  | T100: =IFERROR(VLOOKUP($C100,'CSP finance'!$C$448:$N$582,12,FALSE),"") ->  | U100: =IFERROR(VLOOKUP($C100,'CSP finance'!$C$448:$S$582,17,FALSE),"") ->  | Z100: =IFERROR(VLOOKUP($C100,'CSP finance'!$C$448:$T$582,18,FALSE),"") ->  | AB100: 0 | AH100: =IFERROR('Activation list'!V47,"") ->  | AI100: =IFERROR(VLOOKUP($C100,'CSP finance'!$C$448:$R$582,14,FALSE),"") ->  | AJ100: =IFERROR(VLOOKUP($C100,'CSP finance'!$C$448:$R$582,15,FALSE),"") -> 
C101: =IFERROR('Activation list'!U48,"") ->  | I101: =IFERROR(VLOOKUP($C101,'CSP finance'!$C$448:$N$582,2,FALSE),"") ->  | K101: =IFERROR(VLOOKUP($C101,'CSP finance'!$C$448:$N$582,3,FALSE),"") ->  | L101: =IFERROR(VLOOKUP($C101,'CSP finance'!$C$448:$N$582,4,FALSE),"") ->  | M101: =IFERROR(VLOOKUP($C101,'CSP finance'!$C$448:$N$582,5,FALSE),"") ->  | N101: =IFERROR(VLOOKUP($C101,'CSP finance'!$C$448:$N$582,6,FALSE),"") ->  | O101: =IFERROR(VLOOKUP($C101,'CSP finance'!$C$448:$N$582,7,FALSE),"") ->  | P101: =IFERROR(VLOOKUP($C101,'CSP finance'!$C$448:$N$582,8,FALSE),"") ->  | Q101: =IFERROR(VLOOKUP($C101,'CSP finance'!$C$448:$N$582,9,FALSE),"") ->  | R101: =IFERROR(VLOOKUP($C101,'CSP finance'!$C$448:$N$582,10,FALSE),"") ->  | S101: =IFERROR(VLOOKUP($C101,'CSP finance'!$C$448:$N$582,11,FALSE),"") ->  | T101: =IFERROR(VLOOKUP($C101,'CSP finance'!$C$448:$N$582,12,FALSE),"") ->  | U101: =IFERROR(VLOOKUP($C101,'CSP finance'!$C$448:$S$582,17,FALSE),"") ->  | Z101: =IFERROR(VLOOKUP($C101,'CSP finance'!$C$448:$T$582,18,FALSE),"") ->  | AB101: 0 | AH101: =IFERROR('Activation list'!V48,"") ->  | AI101: =IFERROR(VLOOKUP($C101,'CSP finance'!$C$448:$R$582,14,FALSE),"") ->  | AJ101: =IFERROR(VLOOKUP($C101,'CSP finance'!$C$448:$R$582,15,FALSE),"") -> 
C102: =IFERROR('Activation list'!U49,"") ->  | I102: =IFERROR(VLOOKUP($C102,'CSP finance'!$C$448:$N$582,2,FALSE),"") ->  | K102: =IFERROR(VLOOKUP($C102,'CSP finance'!$C$448:$N$582,3,FALSE),"") ->  | L102: =IFERROR(VLOOKUP($C102,'CSP finance'!$C$448:$N$582,4,FALSE),"") ->  | M102: =IFERROR(VLOOKUP($C102,'CSP finance'!$C$448:$N$582,5,FALSE),"") ->  | N102: =IFERROR(VLOOKUP($C102,'CSP finance'!$C$448:$N$582,6,FALSE),"") ->  | O102: =IFERROR(VLOOKUP($C102,'CSP finance'!$C$448:$N$582,7,FALSE),"") ->  | P102: =IFERROR(VLOOKUP($C102,'CSP finance'!$C$448:$N$582,8,FALSE),"") ->  | Q102: =IFERROR(VLOOKUP($C102,'CSP finance'!$C$448:$N$582,9,FALSE),"") ->  | R102: =IFERROR(VLOOKUP($C102,'CSP finance'!$C$448:$N$582,10,FALSE),"") ->  | S102: =IFERROR(VLOOKUP($C102,'CSP finance'!$C$448:$N$582,11,FALSE),"") ->  | T102: =IFERROR(VLOOKUP($C102,'CSP finance'!$C$448:$N$582,12,FALSE),"") ->  | U102: =IFERROR(VLOOKUP($C102,'CSP finance'!$C$448:$S$582,17,FALSE),"") ->  | Z102: =IFERROR(VLOOKUP($C102,'CSP finance'!$C$448:$T$582,18,FALSE),"") ->  | AB102: 0 | AH102: =IFERROR('Activation list'!V49,"") ->  | AI102: =IFERROR(VLOOKUP($C102,'CSP finance'!$C$448:$R$582,14,FALSE),"") ->  | AJ102: =IFERROR(VLOOKUP($C102,'CSP finance'!$C$448:$R$582,15,FALSE),"") -> 
C103: =IFERROR('Activation list'!U50,"") ->  | I103: =IFERROR(VLOOKUP($C103,'CSP finance'!$C$448:$N$582,2,FALSE),"") ->  | K103: =IFERROR(VLOOKUP($C103,'CSP finance'!$C$448:$N$582,3,FALSE),"") ->  | L103: =IFERROR(VLOOKUP($C103,'CSP finance'!$C$448:$N$582,4,FALSE),"") ->  | M103: =IFERROR(VLOOKUP($C103,'CSP finance'!$C$448:$N$582,5,FALSE),"") ->  | N103: =IFERROR(VLOOKUP($C103,'CSP finance'!$C$448:$N$582,6,FALSE),"") ->  | O103: =IFERROR(VLOOKUP($C103,'CSP finance'!$C$448:$N$582,7,FALSE),"") ->  | P103: =IFERROR(VLOOKUP($C103,'CSP finance'!$C$448:$N$582,8,FALSE),"") ->  | Q103: =IFERROR(VLOOKUP($C103,'CSP finance'!$C$448:$N$582,9,FALSE),"") ->  | R103: =IFERROR(VLOOKUP($C103,'CSP finance'!$C$448:$N$582,10,FALSE),"") ->  | S103: =IFERROR(VLOOKUP($C103,'CSP finance'!$C$448:$N$582,11,FALSE),"") ->  | T103: =IFERROR(VLOOKUP($C103,'CSP finance'!$C$448:$N$582,12,FALSE),"") ->  | U103: =IFERROR(VLOOKUP($C103,'CSP finance'!$C$448:$S$582,17,FALSE),"") ->  | Z103: =IFERROR(VLOOKUP($C103,'CSP finance'!$C$448:$T$582,18,FALSE),"") ->  | AB103: 0 | AH103: =IFERROR('Activation list'!V50,"") ->  | AI103: =IFERROR(VLOOKUP($C103,'CSP finance'!$C$448:$R$582,14,FALSE),"") ->  | AJ103: =IFERROR(VLOOKUP($C103,'CSP finance'!$C$448:$R$582,15,FALSE),"") -> 
C104: =IFERROR('Activation list'!U51,"") ->  | I104: =IFERROR(VLOOKUP($C104,'CSP finance'!$C$448:$N$582,2,FALSE),"") ->  | K104: =IFERROR(VLOOKUP($C104,'CSP finance'!$C$448:$N$582,3,FALSE),"") ->  | L104: =IFERROR(VLOOKUP($C104,'CSP finance'!$C$448:$N$582,4,FALSE),"") ->  | M104: =IFERROR(VLOOKUP($C104,'CSP finance'!$C$448:$N$582,5,FALSE),"") ->  | N104: =IFERROR(VLOOKUP($C104,'CSP finance'!$C$448:$N$582,6,FALSE),"") ->  | O104: =IFERROR(VLOOKUP($C104,'CSP finance'!$C$448:$N$582,7,FALSE),"") ->  | P104: =IFERROR(VLOOKUP($C104,'CSP finance'!$C$448:$N$582,8,FALSE),"") ->  | Q104: =IFERROR(VLOOKUP($C104,'CSP finance'!$C$448:$N$582,9,FALSE),"") ->  | R104: =IFERROR(VLOOKUP($C104,'CSP finance'!$C$448:$N$582,10,FALSE),"") ->  | S104: =IFERROR(VLOOKUP($C104,'CSP finance'!$C$448:$N$582,11,FALSE),"") ->  | T104: =IFERROR(VLOOKUP($C104,'CSP finance'!$C$448:$N$582,12,FALSE),"") ->  | U104: =IFERROR(VLOOKUP($C104,'CSP finance'!$C$448:$S$582,17,FALSE),"") ->  | Z104: =IFERROR(VLOOKUP($C104,'CSP finance'!$C$448:$T$582,18,FALSE),"") ->  | AB104: 0 | AH104: =IFERROR('Activation list'!V51,"") ->  | AI104: =IFERROR(VLOOKUP($C104,'CSP finance'!$C$448:$R$582,14,FALSE),"") ->  | AJ104: =IFERROR(VLOOKUP($C104,'CSP finance'!$C$448:$R$582,15,FALSE),"") -> 
C105: =IFERROR('Activation list'!U52,"") ->  | I105: =IFERROR(VLOOKUP($C105,'CSP finance'!$C$448:$N$582,2,FALSE),"") ->  | K105: =IFERROR(VLOOKUP($C105,'CSP finance'!$C$448:$N$582,3,FALSE),"") ->  | L105: =IFERROR(VLOOKUP($C105,'CSP finance'!$C$448:$N$582,4,FALSE),"") ->  | M105: =IFERROR(VLOOKUP($C105,'CSP finance'!$C$448:$N$582,5,FALSE),"") ->  | N105: =IFERROR(VLOOKUP($C105,'CSP finance'!$C$448:$N$582,6,FALSE),"") ->  | O105: =IFERROR(VLOOKUP($C105,'CSP finance'!$C$448:$N$582,7,FALSE),"") ->  | P105: =IFERROR(VLOOKUP($C105,'CSP finance'!$C$448:$N$582,8,FALSE),"") ->  | Q105: =IFERROR(VLOOKUP($C105,'CSP finance'!$C$448:$N$582,9,FALSE),"") ->  | R105: =IFERROR(VLOOKUP($C105,'CSP finance'!$C$448:$N$582,10,FALSE),"") ->  | S105: =IFERROR(VLOOKUP($C105,'CSP finance'!$C$448:$N$582,11,FALSE),"") ->  | T105: =IFERROR(VLOOKUP($C105,'CSP finance'!$C$448:$N$582,12,FALSE),"") ->  | U105: =IFERROR(VLOOKUP($C105,'CSP finance'!$C$448:$S$582,17,FALSE),"") ->  | Z105: =IFERROR(VLOOKUP($C105,'CSP finance'!$C$448:$T$582,18,FALSE),"") ->  | AB105: 0 | AH105: =IFERROR('Activation list'!V52,"") ->  | AI105: =IFERROR(VLOOKUP($C105,'CSP finance'!$C$448:$R$582,14,FALSE),"") ->  | AJ105: =IFERROR(VLOOKUP($C105,'CSP finance'!$C$448:$R$582,15,FALSE),"") -> 
C106: =IFERROR('Activation list'!U53,"") ->  | I106: =IFERROR(VLOOKUP($C106,'CSP finance'!$C$448:$N$582,2,FALSE),"") ->  | K106: =IFERROR(VLOOKUP($C106,'CSP finance'!$C$448:$N$582,3,FALSE),"") ->  | L106: =IFERROR(VLOOKUP($C106,'CSP finance'!$C$448:$N$582,4,FALSE),"") ->  | M106: =IFERROR(VLOOKUP($C106,'CSP finance'!$C$448:$N$582,5,FALSE),"") ->  | N106: =IFERROR(VLOOKUP($C106,'CSP finance'!$C$448:$N$582,6,FALSE),"") ->  | O106: =IFERROR(VLOOKUP($C106,'CSP finance'!$C$448:$N$582,7,FALSE),"") ->  | P106: =IFERROR(VLOOKUP($C106,'CSP finance'!$C$448:$N$582,8,FALSE),"") ->  | Q106: =IFERROR(VLOOKUP($C106,'CSP finance'!$C$448:$N$582,9,FALSE),"") ->  | R106: =IFERROR(VLOOKUP($C106,'CSP finance'!$C$448:$N$582,10,FALSE),"") ->  | S106: =IFERROR(VLOOKUP($C106,'CSP finance'!$C$448:$N$582,11,FALSE),"") ->  | T106: =IFERROR(VLOOKUP($C106,'CSP finance'!$C$448:$N$582,12,FALSE),"") ->  | U106: =IFERROR(VLOOKUP($C106,'CSP finance'!$C$448:$S$582,17,FALSE),"") ->  | Z106: =IFERROR(VLOOKUP($C106,'CSP finance'!$C$448:$T$582,18,FALSE),"") ->  | AB106: 0 | AH106: =IFERROR('Activation list'!V53,"") ->  | AI106: =IFERROR(VLOOKUP($C106,'CSP finance'!$C$448:$R$582,14,FALSE),"") ->  | AJ106: =IFERROR(VLOOKUP($C106,'CSP finance'!$C$448:$R$582,15,FALSE),"") -> 
C107: =IFERROR('Activation list'!U54,"") ->  | I107: =IFERROR(VLOOKUP($C107,'CSP finance'!$C$448:$N$582,2,FALSE),"") ->  | K107: =IFERROR(VLOOKUP($C107,'CSP finance'!$C$448:$N$582,3,FALSE),"") ->  | L107: =IFERROR(VLOOKUP($C107,'CSP finance'!$C$448:$N$582,4,FALSE),"") ->  | M107: =IFERROR(VLOOKUP($C107,'CSP finance'!$C$448:$N$582,5,FALSE),"") ->  | N107: =IFERROR(VLOOKUP($C107,'CSP finance'!$C$448:$N$582,6,FALSE),"") ->  | O107: =IFERROR(VLOOKUP($C107,'CSP finance'!$C$448:$N$582,7,FALSE),"") ->  | P107: =IFERROR(VLOOKUP($C107,'CSP finance'!$C$448:$N$582,8,FALSE),"") ->  | Q107: =IFERROR(VLOOKUP($C107,'CSP finance'!$C$448:$N$582,9,FALSE),"") ->  | R107: =IFERROR(VLOOKUP($C107,'CSP finance'!$C$448:$N$582,10,FALSE),"") ->  | S107: =IFERROR(VLOOKUP($C107,'CSP finance'!$C$448:$N$582,11,FALSE),"") ->  | T107: =IFERROR(VLOOKUP($C107,'CSP finance'!$C$448:$N$582,12,FALSE),"") ->  | U107: =IFERROR(VLOOKUP($C107,'CSP finance'!$C$448:$S$582,17,FALSE),"") ->  | Z107: =IFERROR(VLOOKUP($C107,'CSP finance'!$C$448:$T$582,18,FALSE),"") ->  | AB107: 0 | AH107: =IFERROR('Activation list'!V54,"") ->  | AI107: =IFERROR(VLOOKUP($C107,'CSP finance'!$C$448:$R$582,14,FALSE),"") ->  | AJ107: =IFERROR(VLOOKUP($C107,'CSP finance'!$C$448:$R$582,15,FALSE),"") -> 
C108: =IFERROR('Activation list'!U55,"") ->  | I108: =IFERROR(VLOOKUP($C108,'CSP finance'!$C$448:$N$582,2,FALSE),"") ->  | K108: =IFERROR(VLOOKUP($C108,'CSP finance'!$C$448:$N$582,3,FALSE),"") ->  | L108: =IFERROR(VLOOKUP($C108,'CSP finance'!$C$448:$N$582,4,FALSE),"") ->  | M108: =IFERROR(VLOOKUP($C108,'CSP finance'!$C$448:$N$582,5,FALSE),"") ->  | N108: =IFERROR(VLOOKUP($C108,'CSP finance'!$C$448:$N$582,6,FALSE),"") ->  | O108: =IFERROR(VLOOKUP($C108,'CSP finance'!$C$448:$N$582,7,FALSE),"") ->  | P108: =IFERROR(VLOOKUP($C108,'CSP finance'!$C$448:$N$582,8,FALSE),"") ->  | Q108: =IFERROR(VLOOKUP($C108,'CSP finance'!$C$448:$N$582,9,FALSE),"") ->  | R108: =IFERROR(VLOOKUP($C108,'CSP finance'!$C$448:$N$582,10,FALSE),"") ->  | S108: =IFERROR(VLOOKUP($C108,'CSP finance'!$C$448:$N$582,11,FALSE),"") ->  | T108: =IFERROR(VLOOKUP($C108,'CSP finance'!$C$448:$N$582,12,FALSE),"") ->  | U108: =IFERROR(VLOOKUP($C108,'CSP finance'!$C$448:$S$582,17,FALSE),"") ->  | Z108: =IFERROR(VLOOKUP($C108,'CSP finance'!$C$448:$T$582,18,FALSE),"") ->  | AB108: 0 | AH108: =IFERROR('Activation list'!V55,"") ->  | AI108: =IFERROR(VLOOKUP($C108,'CSP finance'!$C$448:$R$582,14,FALSE),"") ->  | AJ108: =IFERROR(VLOOKUP($C108,'CSP finance'!$C$448:$R$582,15,FALSE),"") -> 
C109: =IFERROR('Activation list'!U56,"") ->  | I109: =IFERROR(VLOOKUP($C109,'CSP finance'!$C$448:$N$582,2,FALSE),"") ->  | K109: =IFERROR(VLOOKUP($C109,'CSP finance'!$C$448:$N$582,3,FALSE),"") ->  | L109: =IFERROR(VLOOKUP($C109,'CSP finance'!$C$448:$N$582,4,FALSE),"") ->  | M109: =IFERROR(VLOOKUP($C109,'CSP finance'!$C$448:$N$582,5,FALSE),"") ->  | N109: =IFERROR(VLOOKUP($C109,'CSP finance'!$C$448:$N$582,6,FALSE),"") ->  | O109: =IFERROR(VLOOKUP($C109,'CSP finance'!$C$448:$N$582,7,FALSE),"") ->  | P109: =IFERROR(VLOOKUP($C109,'CSP finance'!$C$448:$N$582,8,FALSE),"") ->  | Q109: =IFERROR(VLOOKUP($C109,'CSP finance'!$C$448:$N$582,9,FALSE),"") ->  | R109: =IFERROR(VLOOKUP($C109,'CSP finance'!$C$448:$N$582,10,FALSE),"") ->  | S109: =IFERROR(VLOOKUP($C109,'CSP finance'!$C$448:$N$582,11,FALSE),"") ->  | T109: =IFERROR(VLOOKUP($C109,'CSP finance'!$C$448:$N$582,12,FALSE),"") ->  | U109: =IFERROR(VLOOKUP($C109,'CSP finance'!$C$448:$S$582,17,FALSE),"") ->  | Z109: =IFERROR(VLOOKUP($C109,'CSP finance'!$C$448:$T$582,18,FALSE),"") ->  | AB109: 0 | AH109: =IFERROR('Activation list'!V56,"") ->  | AI109: =IFERROR(VLOOKUP($C109,'CSP finance'!$C$448:$R$582,14,FALSE),"") ->  | AJ109: =IFERROR(VLOOKUP($C109,'CSP finance'!$C$448:$R$582,15,FALSE),"") -> 
C110: =IFERROR('Activation list'!U57,"") ->  | I110: =IFERROR(VLOOKUP($C110,'CSP finance'!$C$448:$N$582,2,FALSE),"") ->  | K110: =IFERROR(VLOOKUP($C110,'CSP finance'!$C$448:$N$582,3,FALSE),"") ->  | L110: =IFERROR(VLOOKUP($C110,'CSP finance'!$C$448:$N$582,4,FALSE),"") ->  | M110: =IFERROR(VLOOKUP($C110,'CSP finance'!$C$448:$N$582,5,FALSE),"") ->  | N110: =IFERROR(VLOOKUP($C110,'CSP finance'!$C$448:$N$582,6,FALSE),"") ->  | O110: =IFERROR(VLOOKUP($C110,'CSP finance'!$C$448:$N$582,7,FALSE),"") ->  | P110: =IFERROR(VLOOKUP($C110,'CSP finance'!$C$448:$N$582,8,FALSE),"") ->  | Q110: =IFERROR(VLOOKUP($C110,'CSP finance'!$C$448:$N$582,9,FALSE),"") ->  | R110: =IFERROR(VLOOKUP($C110,'CSP finance'!$C$448:$N$582,10,FALSE),"") ->  | S110: =IFERROR(VLOOKUP($C110,'CSP finance'!$C$448:$N$582,11,FALSE),"") ->  | T110: =IFERROR(VLOOKUP($C110,'CSP finance'!$C$448:$N$582,12,FALSE),"") ->  | U110: =IFERROR(VLOOKUP($C110,'CSP finance'!$C$448:$S$582,17,FALSE),"") ->  | Z110: =IFERROR(VLOOKUP($C110,'CSP finance'!$C$448:$T$582,18,FALSE),"") ->  | AB110: 0 | AH110: =IFERROR('Activation list'!V57,"") ->  | AI110: =IFERROR(VLOOKUP($C110,'CSP finance'!$C$448:$R$582,14,FALSE),"") ->  | AJ110: =IFERROR(VLOOKUP($C110,'CSP finance'!$C$448:$R$582,15,FALSE),"") -> 
C111: =IFERROR('Activation list'!U58,"") ->  | I111: =IFERROR(VLOOKUP($C111,'CSP finance'!$C$448:$N$582,2,FALSE),"") ->  | K111: =IFERROR(VLOOKUP($C111,'CSP finance'!$C$448:$N$582,3,FALSE),"") ->  | L111: =IFERROR(VLOOKUP($C111,'CSP finance'!$C$448:$N$582,4,FALSE),"") ->  | M111: =IFERROR(VLOOKUP($C111,'CSP finance'!$C$448:$N$582,5,FALSE),"") ->  | N111: =IFERROR(VLOOKUP($C111,'CSP finance'!$C$448:$N$582,6,FALSE),"") ->  | O111: =IFERROR(VLOOKUP($C111,'CSP finance'!$C$448:$N$582,7,FALSE),"") ->  | P111: =IFERROR(VLOOKUP($C111,'CSP finance'!$C$448:$N$582,8,FALSE),"") ->  | Q111: =IFERROR(VLOOKUP($C111,'CSP finance'!$C$448:$N$582,9,FALSE),"") ->  | R111: =IFERROR(VLOOKUP($C111,'CSP finance'!$C$448:$N$582,10,FALSE),"") ->  | S111: =IFERROR(VLOOKUP($C111,'CSP finance'!$C$448:$N$582,11,FALSE),"") ->  | T111: =IFERROR(VLOOKUP($C111,'CSP finance'!$C$448:$N$582,12,FALSE),"") ->  | U111: =IFERROR(VLOOKUP($C111,'CSP finance'!$C$448:$S$582,17,FALSE),"") ->  | Z111: =IFERROR(VLOOKUP($C111,'CSP finance'!$C$448:$T$582,18,FALSE),"") ->  | AB111: 0 | AH111: =IFERROR('Activation list'!V58,"") ->  | AI111: =IFERROR(VLOOKUP($C111,'CSP finance'!$C$448:$R$582,14,FALSE),"") ->  | AJ111: =IFERROR(VLOOKUP($C111,'CSP finance'!$C$448:$R$582,15,FALSE),"") -> 
C112: =IFERROR('Activation list'!U59,"") ->  | I112: =IFERROR(VLOOKUP($C112,'CSP finance'!$C$448:$N$582,2,FALSE),"") ->  | K112: =IFERROR(VLOOKUP($C112,'CSP finance'!$C$448:$N$582,3,FALSE),"") ->  | L112: =IFERROR(VLOOKUP($C112,'CSP finance'!$C$448:$N$582,4,FALSE),"") ->  | M112: =IFERROR(VLOOKUP($C112,'CSP finance'!$C$448:$N$582,5,FALSE),"") ->  | N112: =IFERROR(VLOOKUP($C112,'CSP finance'!$C$448:$N$582,6,FALSE),"") ->  | O112: =IFERROR(VLOOKUP($C112,'CSP finance'!$C$448:$N$582,7,FALSE),"") ->  | P112: =IFERROR(VLOOKUP($C112,'CSP finance'!$C$448:$N$582,8,FALSE),"") ->  | Q112: =IFERROR(VLOOKUP($C112,'CSP finance'!$C$448:$N$582,9,FALSE),"") ->  | R112: =IFERROR(VLOOKUP($C112,'CSP finance'!$C$448:$N$582,10,FALSE),"") ->  | S112: =IFERROR(VLOOKUP($C112,'CSP finance'!$C$448:$N$582,11,FALSE),"") ->  | T112: =IFERROR(VLOOKUP($C112,'CSP finance'!$C$448:$N$582,12,FALSE),"") ->  | U112: =IFERROR(VLOOKUP($C112,'CSP finance'!$C$448:$S$582,17,FALSE),"") ->  | Z112: =IFERROR(VLOOKUP($C112,'CSP finance'!$C$448:$T$582,18,FALSE),"") ->  | AB112: 0 | AH112: =IFERROR('Activation list'!V59,"") ->  | AI112: =IFERROR(VLOOKUP($C112,'CSP finance'!$C$448:$R$582,14,FALSE),"") ->  | AJ112: =IFERROR(VLOOKUP($C112,'CSP finance'!$C$448:$R$582,15,FALSE),"") -> 
C113: =IFERROR('Activation list'!U60,"") ->  | I113: =IFERROR(VLOOKUP($C113,'CSP finance'!$C$448:$N$582,2,FALSE),"") ->  | K113: =IFERROR(VLOOKUP($C113,'CSP finance'!$C$448:$N$582,3,FALSE),"") ->  | L113: =IFERROR(VLOOKUP($C113,'CSP finance'!$C$448:$N$582,4,FALSE),"") ->  | M113: =IFERROR(VLOOKUP($C113,'CSP finance'!$C$448:$N$582,5,FALSE),"") ->  | N113: =IFERROR(VLOOKUP($C113,'CSP finance'!$C$448:$N$582,6,FALSE),"") ->  | O113: =IFERROR(VLOOKUP($C113,'CSP finance'!$C$448:$N$582,7,FALSE),"") ->  | P113: =IFERROR(VLOOKUP($C113,'CSP finance'!$C$448:$N$582,8,FALSE),"") ->  | Q113: =IFERROR(VLOOKUP($C113,'CSP finance'!$C$448:$N$582,9,FALSE),"") ->  | R113: =IFERROR(VLOOKUP($C113,'CSP finance'!$C$448:$N$582,10,FALSE),"") ->  | S113: =IFERROR(VLOOKUP($C113,'CSP finance'!$C$448:$N$582,11,FALSE),"") ->  | T113: =IFERROR(VLOOKUP($C113,'CSP finance'!$C$448:$N$582,12,FALSE),"") ->  | U113: =IFERROR(VLOOKUP($C113,'CSP finance'!$C$448:$S$582,17,FALSE),"") ->  | Z113: =IFERROR(VLOOKUP($C113,'CSP finance'!$C$448:$T$582,18,FALSE),"") ->  | AB113: 0 | AH113: =IFERROR('Activation list'!V60,"") ->  | AI113: =IFERROR(VLOOKUP($C113,'CSP finance'!$C$448:$R$582,14,FALSE),"") ->  | AJ113: =IFERROR(VLOOKUP($C113,'CSP finance'!$C$448:$R$582,15,FALSE),"") -> 
C114: =IFERROR('Activation list'!U61,"") ->  | I114: =IFERROR(VLOOKUP($C114,'CSP finance'!$C$448:$N$582,2,FALSE),"") ->  | K114: =IFERROR(VLOOKUP($C114,'CSP finance'!$C$448:$N$582,3,FALSE),"") ->  | L114: =IFERROR(VLOOKUP($C114,'CSP finance'!$C$448:$N$582,4,FALSE),"") ->  | M114: =IFERROR(VLOOKUP($C114,'CSP finance'!$C$448:$N$582,5,FALSE),"") ->  | N114: =IFERROR(VLOOKUP($C114,'CSP finance'!$C$448:$N$582,6,FALSE),"") ->  | O114: =IFERROR(VLOOKUP($C114,'CSP finance'!$C$448:$N$582,7,FALSE),"") ->  | P114: =IFERROR(VLOOKUP($C114,'CSP finance'!$C$448:$N$582,8,FALSE),"") ->  | Q114: =IFERROR(VLOOKUP($C114,'CSP finance'!$C$448:$N$582,9,FALSE),"") ->  | R114: =IFERROR(VLOOKUP($C114,'CSP finance'!$C$448:$N$582,10,FALSE),"") ->  | S114: =IFERROR(VLOOKUP($C114,'CSP finance'!$C$448:$N$582,11,FALSE),"") ->  | T114: =IFERROR(VLOOKUP($C114,'CSP finance'!$C$448:$N$582,12,FALSE),"") ->  | U114: =IFERROR(VLOOKUP($C114,'CSP finance'!$C$448:$S$582,17,FALSE),"") ->  | Z114: =IFERROR(VLOOKUP($C114,'CSP finance'!$C$448:$T$582,18,FALSE),"") ->  | AB114: 0 | AH114: =IFERROR('Activation list'!V61,"") ->  | AI114: =IFERROR(VLOOKUP($C114,'CSP finance'!$C$448:$R$582,14,FALSE),"") ->  | AJ114: =IFERROR(VLOOKUP($C114,'CSP finance'!$C$448:$R$582,15,FALSE),"") -> 
C115: =IFERROR('Activation list'!U62,"") ->  | I115: =IFERROR(VLOOKUP($C115,'CSP finance'!$C$448:$N$582,2,FALSE),"") ->  | K115: =IFERROR(VLOOKUP($C115,'CSP finance'!$C$448:$N$582,3,FALSE),"") ->  | L115: =IFERROR(VLOOKUP($C115,'CSP finance'!$C$448:$N$582,4,FALSE),"") ->  | M115: =IFERROR(VLOOKUP($C115,'CSP finance'!$C$448:$N$582,5,FALSE),"") ->  | N115: =IFERROR(VLOOKUP($C115,'CSP finance'!$C$448:$N$582,6,FALSE),"") ->  | O115: =IFERROR(VLOOKUP($C115,'CSP finance'!$C$448:$N$582,7,FALSE),"") ->  | P115: =IFERROR(VLOOKUP($C115,'CSP finance'!$C$448:$N$582,8,FALSE),"") ->  | Q115: =IFERROR(VLOOKUP($C115,'CSP finance'!$C$448:$N$582,9,FALSE),"") ->  | R115: =IFERROR(VLOOKUP($C115,'CSP finance'!$C$448:$N$582,10,FALSE),"") ->  | S115: =IFERROR(VLOOKUP($C115,'CSP finance'!$C$448:$N$582,11,FALSE),"") ->  | T115: =IFERROR(VLOOKUP($C115,'CSP finance'!$C$448:$N$582,12,FALSE),"") ->  | U115: =IFERROR(VLOOKUP($C115,'CSP finance'!$C$448:$S$582,17,FALSE),"") ->  | Z115: =IFERROR(VLOOKUP($C115,'CSP finance'!$C$448:$T$582,18,FALSE),"") ->  | AB115: 0 | AH115: =IFERROR('Activation list'!V62,"") ->  | AI115: =IFERROR(VLOOKUP($C115,'CSP finance'!$C$448:$R$582,14,FALSE),"") ->  | AJ115: =IFERROR(VLOOKUP($C115,'CSP finance'!$C$448:$R$582,15,FALSE),"") -> 
C116: =IFERROR('Activation list'!U63,"") ->  | I116: =IFERROR(VLOOKUP($C116,'CSP finance'!$C$448:$N$582,2,FALSE),"") ->  | K116: =IFERROR(VLOOKUP($C116,'CSP finance'!$C$448:$N$582,3,FALSE),"") ->  | L116: =IFERROR(VLOOKUP($C116,'CSP finance'!$C$448:$N$582,4,FALSE),"") ->  | M116: =IFERROR(VLOOKUP($C116,'CSP finance'!$C$448:$N$582,5,FALSE),"") ->  | N116: =IFERROR(VLOOKUP($C116,'CSP finance'!$C$448:$N$582,6,FALSE),"") ->  | O116: =IFERROR(VLOOKUP($C116,'CSP finance'!$C$448:$N$582,7,FALSE),"") ->  | P116: =IFERROR(VLOOKUP($C116,'CSP finance'!$C$448:$N$582,8,FALSE),"") ->  | Q116: =IFERROR(VLOOKUP($C116,'CSP finance'!$C$448:$N$582,9,FALSE),"") ->  | R116: =IFERROR(VLOOKUP($C116,'CSP finance'!$C$448:$N$582,10,FALSE),"") ->  | S116: =IFERROR(VLOOKUP($C116,'CSP finance'!$C$448:$N$582,11,FALSE),"") ->  | T116: =IFERROR(VLOOKUP($C116,'CSP finance'!$C$448:$N$582,12,FALSE),"") ->  | U116: =IFERROR(VLOOKUP($C116,'CSP finance'!$C$448:$S$582,17,FALSE),"") ->  | Z116: =IFERROR(VLOOKUP($C116,'CSP finance'!$C$448:$T$582,18,FALSE),"") ->  | AB116: 0 | AH116: =IFERROR('Activation list'!V63,"") ->  | AI116: =IFERROR(VLOOKUP($C116,'CSP finance'!$C$448:$R$582,14,FALSE),"") ->  | AJ116: =IFERROR(VLOOKUP($C116,'CSP finance'!$C$448:$R$582,15,FALSE),"") -> 
C117: =IFERROR('Activation list'!U64,"") ->  | I117: =IFERROR(VLOOKUP($C117,'CSP finance'!$C$448:$N$582,2,FALSE),"") ->  | K117: =IFERROR(VLOOKUP($C117,'CSP finance'!$C$448:$N$582,3,FALSE),"") ->  | L117: =IFERROR(VLOOKUP($C117,'CSP finance'!$C$448:$N$582,4,FALSE),"") ->  | M117: =IFERROR(VLOOKUP($C117,'CSP finance'!$C$448:$N$582,5,FALSE),"") ->  | N117: =IFERROR(VLOOKUP($C117,'CSP finance'!$C$448:$N$582,6,FALSE),"") ->  | O117: =IFERROR(VLOOKUP($C117,'CSP finance'!$C$448:$N$582,7,FALSE),"") ->  | P117: =IFERROR(VLOOKUP($C117,'CSP finance'!$C$448:$N$582,8,FALSE),"") ->  | Q117: =IFERROR(VLOOKUP($C117,'CSP finance'!$C$448:$N$582,9,FALSE),"") ->  | R117: =IFERROR(VLOOKUP($C117,'CSP finance'!$C$448:$N$582,10,FALSE),"") ->  | S117: =IFERROR(VLOOKUP($C117,'CSP finance'!$C$448:$N$582,11,FALSE),"") ->  | T117: =IFERROR(VLOOKUP($C117,'CSP finance'!$C$448:$N$582,12,FALSE),"") ->  | U117: =IFERROR(VLOOKUP($C117,'CSP finance'!$C$448:$S$582,17,FALSE),"") ->  | Z117: =IFERROR(VLOOKUP($C117,'CSP finance'!$C$448:$T$582,18,FALSE),"") ->  | AB117: 0 | AH117: =IFERROR('Activation list'!V64,"") ->  | AI117: =IFERROR(VLOOKUP($C117,'CSP finance'!$C$448:$R$582,14,FALSE),"") ->  | AJ117: =IFERROR(VLOOKUP($C117,'CSP finance'!$C$448:$R$582,15,FALSE),"") -> 
C118: =IFERROR('Activation list'!U65,"") ->  | I118: =IFERROR(VLOOKUP($C118,'CSP finance'!$C$448:$N$582,2,FALSE),"") ->  | K118: =IFERROR(VLOOKUP($C118,'CSP finance'!$C$448:$N$582,3,FALSE),"") ->  | L118: =IFERROR(VLOOKUP($C118,'CSP finance'!$C$448:$N$582,4,FALSE),"") ->  | M118: =IFERROR(VLOOKUP($C118,'CSP finance'!$C$448:$N$582,5,FALSE),"") ->  | N118: =IFERROR(VLOOKUP($C118,'CSP finance'!$C$448:$N$582,6,FALSE),"") ->  | O118: =IFERROR(VLOOKUP($C118,'CSP finance'!$C$448:$N$582,7,FALSE),"") ->  | P118: =IFERROR(VLOOKUP($C118,'CSP finance'!$C$448:$N$582,8,FALSE),"") ->  | Q118: =IFERROR(VLOOKUP($C118,'CSP finance'!$C$448:$N$582,9,FALSE),"") ->  | R118: =IFERROR(VLOOKUP($C118,'CSP finance'!$C$448:$N$582,10,FALSE),"") ->  | S118: =IFERROR(VLOOKUP($C118,'CSP finance'!$C$448:$N$582,11,FALSE),"") ->  | T118: =IFERROR(VLOOKUP($C118,'CSP finance'!$C$448:$N$582,12,FALSE),"") ->  | U118: =IFERROR(VLOOKUP($C118,'CSP finance'!$C$448:$S$582,17,FALSE),"") ->  | Z118: =IFERROR(VLOOKUP($C118,'CSP finance'!$C$448:$T$582,18,FALSE),"") ->  | AB118: 0 | AH118: =IFERROR('Activation list'!V65,"") ->  | AI118: =IFERROR(VLOOKUP($C118,'CSP finance'!$C$448:$R$582,14,FALSE),"") ->  | AJ118: =IFERROR(VLOOKUP($C118,'CSP finance'!$C$448:$R$582,15,FALSE),"") -> 
C119: =IFERROR('Activation list'!U66,"") ->  | I119: =IFERROR(VLOOKUP($C119,'CSP finance'!$C$448:$N$582,2,FALSE),"") ->  | K119: =IFERROR(VLOOKUP($C119,'CSP finance'!$C$448:$N$582,3,FALSE),"") ->  | L119: =IFERROR(VLOOKUP($C119,'CSP finance'!$C$448:$N$582,4,FALSE),"") ->  | M119: =IFERROR(VLOOKUP($C119,'CSP finance'!$C$448:$N$582,5,FALSE),"") ->  | N119: =IFERROR(VLOOKUP($C119,'CSP finance'!$C$448:$N$582,6,FALSE),"") ->  | O119: =IFERROR(VLOOKUP($C119,'CSP finance'!$C$448:$N$582,7,FALSE),"") ->  | P119: =IFERROR(VLOOKUP($C119,'CSP finance'!$C$448:$N$582,8,FALSE),"") ->  | Q119: =IFERROR(VLOOKUP($C119,'CSP finance'!$C$448:$N$582,9,FALSE),"") ->  | R119: =IFERROR(VLOOKUP($C119,'CSP finance'!$C$448:$N$582,10,FALSE),"") ->  | S119: =IFERROR(VLOOKUP($C119,'CSP finance'!$C$448:$N$582,11,FALSE),"") ->  | T119: =IFERROR(VLOOKUP($C119,'CSP finance'!$C$448:$N$582,12,FALSE),"") ->  | U119: =IFERROR(VLOOKUP($C119,'CSP finance'!$C$448:$S$582,17,FALSE),"") ->  | Z119: =IFERROR(VLOOKUP($C119,'CSP finance'!$C$448:$T$582,18,FALSE),"") ->  | AB119: 0 | AH119: =IFERROR('Activation list'!V66,"") ->  | AI119: =IFERROR(VLOOKUP($C119,'CSP finance'!$C$448:$R$582,14,FALSE),"") ->  | AJ119: =IFERROR(VLOOKUP($C119,'CSP finance'!$C$448:$R$582,15,FALSE),"") -> 
C120: =IFERROR('Activation list'!U67,"") ->  | I120: =IFERROR(VLOOKUP($C120,'CSP finance'!$C$448:$N$582,2,FALSE),"") ->  | K120: =IFERROR(VLOOKUP($C120,'CSP finance'!$C$448:$N$582,3,FALSE),"") ->  | L120: =IFERROR(VLOOKUP($C120,'CSP finance'!$C$448:$N$582,4,FALSE),"") ->  | M120: =IFERROR(VLOOKUP($C120,'CSP finance'!$C$448:$N$582,5,FALSE),"") ->  | N120: =IFERROR(VLOOKUP($C120,'CSP finance'!$C$448:$N$582,6,FALSE),"") ->  | O120: =IFERROR(VLOOKUP($C120,'CSP finance'!$C$448:$N$582,7,FALSE),"") ->  | P120: =IFERROR(VLOOKUP($C120,'CSP finance'!$C$448:$N$582,8,FALSE),"") ->  | Q120: =IFERROR(VLOOKUP($C120,'CSP finance'!$C$448:$N$582,9,FALSE),"") ->  | R120: =IFERROR(VLOOKUP($C120,'CSP finance'!$C$448:$N$582,10,FALSE),"") ->  | S120: =IFERROR(VLOOKUP($C120,'CSP finance'!$C$448:$N$582,11,FALSE),"") ->  | T120: =IFERROR(VLOOKUP($C120,'CSP finance'!$C$448:$N$582,12,FALSE),"") ->  | U120: =IFERROR(VLOOKUP($C120,'CSP finance'!$C$448:$S$582,17,FALSE),"") ->  | Z120: =IFERROR(VLOOKUP($C120,'CSP finance'!$C$448:$T$582,18,FALSE),"") ->  | AA120: =IF(C120<>"",1-SUM(V120:Z120),"") ->  | AB120: 0 | AH120: =IFERROR('Activation list'!V67,"") ->  | AI120: =IFERROR(VLOOKUP($C120,'CSP finance'!$C$448:$R$582,14,FALSE),"") ->  | AJ120: =IFERROR(VLOOKUP($C120,'CSP finance'!$C$448:$R$582,15,FALSE),"") -> 
C121: =IFERROR('Activation list'!U68,"") ->  | I121: =IFERROR(VLOOKUP($C121,'CSP finance'!$C$448:$N$582,2,FALSE),"") ->  | K121: =IFERROR(VLOOKUP($C121,'CSP finance'!$C$448:$N$582,3,FALSE),"") ->  | L121: =IFERROR(VLOOKUP($C121,'CSP finance'!$C$448:$N$582,4,FALSE),"") ->  | M121: =IFERROR(VLOOKUP($C121,'CSP finance'!$C$448:$N$582,5,FALSE),"") ->  | N121: =IFERROR(VLOOKUP($C121,'CSP finance'!$C$448:$N$582,6,FALSE),"") ->  | O121: =IFERROR(VLOOKUP($C121,'CSP finance'!$C$448:$N$582,7,FALSE),"") ->  | P121: =IFERROR(VLOOKUP($C121,'CSP finance'!$C$448:$N$582,8,FALSE),"") ->  | Q121: =IFERROR(VLOOKUP($C121,'CSP finance'!$C$448:$N$582,9,FALSE),"") ->  | R121: =IFERROR(VLOOKUP($C121,'CSP finance'!$C$448:$N$582,10,FALSE),"") ->  | S121: =IFERROR(VLOOKUP($C121,'CSP finance'!$C$448:$N$582,11,FALSE),"") ->  | T121: =IFERROR(VLOOKUP($C121,'CSP finance'!$C$448:$N$582,12,FALSE),"") ->  | U121: =IFERROR(VLOOKUP($C121,'CSP finance'!$C$448:$S$582,17,FALSE),"") ->  | Z121: =IFERROR(VLOOKUP($C121,'CSP finance'!$C$448:$T$582,18,FALSE),"") ->  | AB121: =IFERROR(AA121*U121,0) -> 0 | AH121: =IFERROR('Activation list'!V68,"") ->  | AI121: =IFERROR(VLOOKUP($C121,'CSP finance'!$C$448:$R$582,14,FALSE),"") ->  | AJ121: =IFERROR(VLOOKUP($C121,'CSP finance'!$C$448:$R$582,15,FALSE),"") -> 
C122: =IFERROR('Activation list'!U69,"") ->  | I122: =IFERROR(VLOOKUP($C122,'CSP finance'!$C$448:$N$582,2,FALSE),"") ->  | K122: =IFERROR(VLOOKUP($C122,'CSP finance'!$C$448:$N$582,3,FALSE),"") ->  | L122: =IFERROR(VLOOKUP($C122,'CSP finance'!$C$448:$N$582,4,FALSE),"") ->  | M122: =IFERROR(VLOOKUP($C122,'CSP finance'!$C$448:$N$582,5,FALSE),"") ->  | N122: =IFERROR(VLOOKUP($C122,'CSP finance'!$C$448:$N$582,6,FALSE),"") ->  | O122: =IFERROR(VLOOKUP($C122,'CSP finance'!$C$448:$N$582,7,FALSE),"") ->  | P122: =IFERROR(VLOOKUP($C122,'CSP finance'!$C$448:$N$582,8,FALSE),"") ->  | Q122: =IFERROR(VLOOKUP($C122,'CSP finance'!$C$448:$N$582,9,FALSE),"") ->  | R122: =IFERROR(VLOOKUP($C122,'CSP finance'!$C$448:$N$582,10,FALSE),"") ->  | S122: =IFERROR(VLOOKUP($C122,'CSP finance'!$C$448:$N$582,11,FALSE),"") ->  | T122: =IFERROR(VLOOKUP($C122,'CSP finance'!$C$448:$N$582,11,FALSE),"") ->  | U122: =IFERROR(VLOOKUP($C122,'CSP finance'!$C$448:$S$582,17,FALSE),"") ->  | Z122: =IFERROR(VLOOKUP($C122,'CSP finance'!$C$448:$T$582,18,FALSE),"") ->  | AB122: 0 | AH122: =IFERROR('Activation list'!V69,"") ->  | AI122: =IFERROR(VLOOKUP($C122,'CSP finance'!$C$448:$R$582,14,FALSE),"") ->  | AJ122: =IFERROR(VLOOKUP($C122,'CSP finance'!$C$448:$R$582,15,FALSE),"") -> 
C123: =IFERROR('Activation list'!U70,"") ->  | I123: =IFERROR(VLOOKUP($C123,'CSP finance'!$C$448:$N$582,2,FALSE),"") ->  | K123: =IFERROR(VLOOKUP($C123,'CSP finance'!$C$448:$N$582,3,FALSE),"") ->  | L123: =IFERROR(VLOOKUP($C123,'CSP finance'!$C$448:$N$582,4,FALSE),"") ->  | M123: =IFERROR(VLOOKUP($C123,'CSP finance'!$C$448:$N$582,5,FALSE),"") ->  | N123: =IFERROR(VLOOKUP($C123,'CSP finance'!$C$448:$N$582,6,FALSE),"") ->  | O123: =IFERROR(VLOOKUP($C123,'CSP finance'!$C$448:$N$582,7,FALSE),"") ->  | P123: =IFERROR(VLOOKUP($C123,'CSP finance'!$C$448:$N$582,8,FALSE),"") ->  | Q123: =IFERROR(VLOOKUP($C123,'CSP finance'!$C$448:$N$582,9,FALSE),"") ->  | R123: =IFERROR(VLOOKUP($C123,'CSP finance'!$C$448:$N$582,10,FALSE),"") ->  | S123: =IFERROR(VLOOKUP($C123,'CSP finance'!$C$448:$N$582,11,FALSE),"") ->  | T123: =IFERROR(VLOOKUP($C123,'CSP finance'!$C$448:$N$582,11,FALSE),"") ->  | U123: =IFERROR(VLOOKUP($C123,'CSP finance'!$C$448:$S$582,17,FALSE),"") ->  | Z123: =IFERROR(VLOOKUP($C123,'CSP finance'!$C$448:$T$582,18,FALSE),"") ->  | AB123: 0 | AH123: =IFERROR('Activation list'!V70,"") ->  | AI123: =IFERROR(VLOOKUP($C123,'CSP finance'!$C$448:$R$582,14,FALSE),"") ->  | AJ123: =IFERROR(VLOOKUP($C123,'CSP finance'!$C$448:$R$582,15,FALSE),"") -> 
C124: =IFERROR('Activation list'!U71,"") ->  | I124: =IFERROR(VLOOKUP($C124,'CSP finance'!$C$448:$N$582,2,FALSE),"") ->  | K124: =IFERROR(VLOOKUP($C124,'CSP finance'!$C$448:$N$582,3,FALSE),"") ->  | L124: =IFERROR(VLOOKUP($C124,'CSP finance'!$C$448:$N$582,4,FALSE),"") ->  | M124: =IFERROR(VLOOKUP($C124,'CSP finance'!$C$448:$N$582,5,FALSE),"") ->  | N124: =IFERROR(VLOOKUP($C124,'CSP finance'!$C$448:$N$582,6,FALSE),"") ->  | O124: =IFERROR(VLOOKUP($C124,'CSP finance'!$C$448:$N$582,7,FALSE),"") ->  | P124: =IFERROR(VLOOKUP($C124,'CSP finance'!$C$448:$N$582,8,FALSE),"") ->  | Q124: =IFERROR(VLOOKUP($C124,'CSP finance'!$C$448:$N$582,9,FALSE),"") ->  | R124: =IFERROR(VLOOKUP($C124,'CSP finance'!$C$448:$N$582,10,FALSE),"") ->  | S124: =IFERROR(VLOOKUP($C124,'CSP finance'!$C$448:$N$582,11,FALSE),"") ->  | T124: =IFERROR(VLOOKUP($C124,'CSP finance'!$C$448:$N$582,11,FALSE),"") ->  | U124: =IFERROR(VLOOKUP($C124,'CSP finance'!$C$448:$S$582,17,FALSE),"") ->  | Z124: =IFERROR(VLOOKUP($C124,'CSP finance'!$C$448:$T$582,18,FALSE),"") ->  | AB124: 0 | AH124: =IFERROR('Activation list'!V71,"") ->  | AI124: =IFERROR(VLOOKUP($C124,'CSP finance'!$C$448:$R$582,14,FALSE),"") ->  | AJ124: =IFERROR(VLOOKUP($C124,'CSP finance'!$C$448:$R$582,15,FALSE),"") -> 
C125: =IFERROR('Activation list'!U72,"") ->  | I125: =IFERROR(VLOOKUP($C125,'CSP finance'!$C$448:$N$582,2,FALSE),"") ->  | K125: =IFERROR(VLOOKUP($C125,'CSP finance'!$C$448:$N$582,3,FALSE),"") ->  | L125: =IFERROR(VLOOKUP($C125,'CSP finance'!$C$448:$N$582,4,FALSE),"") ->  | M125: =IFERROR(VLOOKUP($C125,'CSP finance'!$C$448:$N$582,5,FALSE),"") ->  | N125: =IFERROR(VLOOKUP($C125,'CSP finance'!$C$448:$N$582,6,FALSE),"") ->  | O125: =IFERROR(VLOOKUP($C125,'CSP finance'!$C$448:$N$582,7,FALSE),"") ->  | P125: =IFERROR(VLOOKUP($C125,'CSP finance'!$C$448:$N$582,8,FALSE),"") ->  | Q125: =IFERROR(VLOOKUP($C125,'CSP finance'!$C$448:$N$582,9,FALSE),"") ->  | R125: =IFERROR(VLOOKUP($C125,'CSP finance'!$C$448:$N$582,10,FALSE),"") ->  | S125: =IFERROR(VLOOKUP($C125,'CSP finance'!$C$448:$N$582,11,FALSE),"") ->  | T125: =IFERROR(VLOOKUP($C125,'CSP finance'!$C$448:$N$582,11,FALSE),"") ->  | U125: =IFERROR(VLOOKUP($C125,'CSP finance'!$C$448:$S$582,17,FALSE),"") ->  | Z125: =IFERROR(VLOOKUP($C125,'CSP finance'!$C$448:$T$582,18,FALSE),"") ->  | AB125: 0 | AH125: =IFERROR('Activation list'!V72,"") ->  | AI125: =IFERROR(VLOOKUP($C125,'CSP finance'!$C$448:$R$582,14,FALSE),"") ->  | AJ125: =IFERROR(VLOOKUP($C125,'CSP finance'!$C$448:$R$582,15,FALSE),"") -> 
C126: =IFERROR('Activation list'!U73,"") ->  | I126: =IFERROR(VLOOKUP($C126,'CSP finance'!$C$448:$N$582,2,FALSE),"") ->  | K126: =IFERROR(VLOOKUP($C126,'CSP finance'!$C$448:$N$582,3,FALSE),"") ->  | L126: =IFERROR(VLOOKUP($C126,'CSP finance'!$C$448:$N$582,4,FALSE),"") ->  | M126: =IFERROR(VLOOKUP($C126,'CSP finance'!$C$448:$N$582,5,FALSE),"") ->  | N126: =IFERROR(VLOOKUP($C126,'CSP finance'!$C$448:$N$582,6,FALSE),"") ->  | O126: =IFERROR(VLOOKUP($C126,'CSP finance'!$C$448:$N$582,7,FALSE),"") ->  | P126: =IFERROR(VLOOKUP($C126,'CSP finance'!$C$448:$N$582,8,FALSE),"") ->  | Q126: =IFERROR(VLOOKUP($C126,'CSP finance'!$C$448:$N$582,9,FALSE),"") ->  | R126: =IFERROR(VLOOKUP($C126,'CSP finance'!$C$448:$N$582,10,FALSE),"") ->  | S126: =IFERROR(VLOOKUP($C126,'CSP finance'!$C$448:$N$582,11,FALSE),"") ->  | T126: =IFERROR(VLOOKUP($C126,'CSP finance'!$C$448:$N$582,11,FALSE),"") ->  | U126: =IFERROR(VLOOKUP($C126,'CSP finance'!$C$448:$S$582,17,FALSE),"") ->  | Z126: =IFERROR(VLOOKUP($C126,'CSP finance'!$C$448:$T$582,18,FALSE),"") ->  | AB126: 0 | AH126: =IFERROR('Activation list'!V73,"") ->  | AI126: =IFERROR(VLOOKUP($C126,'CSP finance'!$C$448:$R$582,14,FALSE),"") ->  | AJ126: =IFERROR(VLOOKUP($C126,'CSP finance'!$C$448:$R$582,15,FALSE),"") -> 
C127: =IFERROR('Activation list'!U74,"") ->  | I127: =IFERROR(VLOOKUP($C127,'CSP finance'!$C$448:$N$582,2,FALSE),"") ->  | K127: =IFERROR(VLOOKUP($C127,'CSP finance'!$C$448:$N$582,3,FALSE),"") ->  | L127: =IFERROR(VLOOKUP($C127,'CSP finance'!$C$448:$N$582,4,FALSE),"") ->  | M127: =IFERROR(VLOOKUP($C127,'CSP finance'!$C$448:$N$582,5,FALSE),"") ->  | N127: =IFERROR(VLOOKUP($C127,'CSP finance'!$C$448:$N$582,6,FALSE),"") ->  | O127: =IFERROR(VLOOKUP($C127,'CSP finance'!$C$448:$N$582,7,FALSE),"") ->  | P127: =IFERROR(VLOOKUP($C127,'CSP finance'!$C$448:$N$582,8,FALSE),"") ->  | Q127: =IFERROR(VLOOKUP($C127,'CSP finance'!$C$448:$N$582,9,FALSE),"") ->  | R127: =IFERROR(VLOOKUP($C127,'CSP finance'!$C$448:$N$582,10,FALSE),"") ->  | S127: =IFERROR(VLOOKUP($C127,'CSP finance'!$C$448:$N$582,11,FALSE),"") ->  | T127: =IFERROR(VLOOKUP($C127,'CSP finance'!$C$448:$N$582,11,FALSE),"") ->  | U127: =IFERROR(VLOOKUP($C127,'CSP finance'!$C$448:$S$582,17,FALSE),"") ->  | Z127: =IFERROR(VLOOKUP($C127,'CSP finance'!$C$448:$T$582,18,FALSE),"") ->  | AB127: 0 | AH127: =IFERROR('Activation list'!V74,"") ->  | AI127: =IFERROR(VLOOKUP($C127,'CSP finance'!$C$448:$R$582,14,FALSE),"") ->  | AJ127: =IFERROR(VLOOKUP($C127,'CSP finance'!$C$448:$R$582,15,FALSE),"") -> 
